Organisation Name,Organisation Code,Unique Ref No,Effective Date,Directorate  where expenditure incurred,Supplier Name,Payment Date,Net Amount,Purpose of Spend,Procurement Classification (Higher Level),Procurement Classification (Lower Level),Capital/Revenue
Walsall Council,http://opendatacommunities.org/id/metropolitan-district-council/walsall,WC84-1,30/09/2017,Economy & Environment,11KBW,27/09/2017,"6,200.00",63116-EXTERNAL BARRISTERS-SERVICES-FEES,POLLUTION DIVISION,Supplies & Services,Revenue
Walsall Council,http://opendatacommunities.org/id/metropolitan-district-council/walsall,WC84-2,30/09/2017,Childrens,5 CARE SERVICES LTD,11/09/2017,409.50,63000-PROFESSIONAL FEES AND SERVICES,DIRECTLY COMMISSIONED NURSING SERVICES,Supplies & Services,Revenue
Walsall Council,http://opendatacommunities.org/id/metropolitan-district-council/walsall,WC84-3,30/09/2017,Childrens,5 CARE SERVICES LTD,11/09/2017,"1,462.50",63000-PROFESSIONAL FEES AND SERVICES,DIRECTLY COMMISSIONED NURSING SERVICES,Supplies & Services,Revenue
Walsall Council,http://opendatacommunities.org/id/metropolitan-district-council/walsall,WC84-4,30/09/2017,Childrens,5 CARE SERVICES LTD,11/09/2017,"1,488.50",63000-PROFESSIONAL FEES AND SERVICES,DIRECTLY COMMISSIONED NURSING SERVICES,Supplies & Services,Revenue
Walsall Council,http://opendatacommunities.org/id/metropolitan-district-council/walsall,WC84-5,30/09/2017,Adult Social Care,5 CARE SERVICES LTD,14/09/2017,"45,703.32",73372-DOMICILIARY CARE,OP PACKAGE/PLACEMENT COSTS,Third Party Payments,Revenue
Walsall Council,http://opendatacommunities.org/id/metropolitan-district-council/walsall,WC84-6,30/09/2017,Adult Social Care,A F BLAKEMORE & SON LTD,27/09/2017,269.15,61016-FOOD AND BEVERAGES-PROVISIONS,GOSCOTE,Supplies & Services,Revenue
Walsall Council,http://opendatacommunities.org/id/metropolitan-district-council/walsall,WC84-7,30/09/2017,Economy & Environment,A F BLAKEMORE & SON LTD,01/09/2017,297.35,61018-DRINKS-PROVISIONS,OAK PARK,Supplies & Services,Revenue
Walsall Council,http://opendatacommunities.org/id/metropolitan-district-council/walsall,WC84-8,30/09/2017,Economy & Environment,A F BLAKEMORE & SON LTD,27/09/2017,301.91,61018-DRINKS-PROVISIONS,OAK PARK,Supplies & Services,Revenue
Walsall Council,http://opendatacommunities.org/id/metropolitan-district-council/walsall,WC84-9,30/09/2017,Economy & Environment,A F BLAKEMORE & SON LTD,13/09/2017,323.52,61008-CONFECTIONERY/SNACKS-PROVISIONS,WALSALL GALA CENTRE,Supplies & Services,Revenue
Walsall Council,http://opendatacommunities.org/id/metropolitan-district-council/walsall,WC84-10,30/09/2017,Economy & Environment,A F BLAKEMORE & SON LTD,01/09/2017,329.27,61018-DRINKS-PROVISIONS,OAK PARK,Supplies & Services,Revenue
Walsall Council,http://opendatacommunities.org/id/metropolitan-district-council/walsall,WC84-11,30/09/2017,Economy & Environment,A F BLAKEMORE & SON LTD,01/09/2017,380.97,61018-DRINKS-PROVISIONS,DARLASTON LEISURE CENTRE,Supplies & Services,Revenue
Walsall Council,http://opendatacommunities.org/id/metropolitan-district-council/walsall,WC84-12,30/09/2017,Economy & Environment,A F BLAKEMORE & SON LTD,14/09/2017,396.26,61008-CONFECTIONERY/SNACKS-PROVISIONS,OAK PARK,Supplies & Services,Revenue
Walsall Council,http://opendatacommunities.org/id/metropolitan-district-council/walsall,WC84-13,30/09/2017,Adult Social Care,A F BLAKEMORE & SON LTD,13/09/2017,440.51,61016-FOOD AND BEVERAGES-PROVISIONS,REABLEMENT TEAM - HOLLY BANK,Supplies & Services,Revenue
Walsall Council,http://opendatacommunities.org/id/metropolitan-district-council/walsall,WC84-14,30/09/2017,Economy & Environment,A F BLAKEMORE & SON LTD,14/09/2017,526.60,61008-CONFECTIONERY/SNACKS-PROVISIONS,OAK PARK,Supplies & Services,Revenue
Walsall Council,http://opendatacommunities.org/id/metropolitan-district-council/walsall,WC84-15,30/09/2017,Economy & Environment,A F BLAKEMORE & SON LTD,27/09/2017,540.84,61008-CONFECTIONERY/SNACKS-PROVISIONS,OAK PARK,Supplies & Services,Revenue
Walsall Council,http://opendatacommunities.org/id/metropolitan-district-council/walsall,WC84-16,30/09/2017,Economy & Environment,A F BLAKEMORE & SON LTD,06/09/2017,708.21,61009-BEVERAGES-PROVISIONS,FOREST ARTS CENTRE,Supplies & Services,Revenue
Walsall Council,http://opendatacommunities.org/id/metropolitan-district-council/walsall,WC84-17,30/09/2017,Economy & Environment,A F BLAKEMORE & SON LTD,19/09/2017,783.15,61008-CONFECTIONERY/SNACKS-PROVISIONS,BLOXWICH LEISURE CENTRE,Supplies & Services,Revenue
Walsall Council,http://opendatacommunities.org/id/metropolitan-district-council/walsall,WC84-18,30/09/2017,Adult Social Care,A F BLAKEMORE & SON LTD,08/09/2017,"1,042.21",61016-FOOD AND BEVERAGES-PROVISIONS,REABLEMENT TEAM - HOLLY BANK,Supplies & Services,Revenue
Walsall Council,http://opendatacommunities.org/id/metropolitan-district-council/walsall,WC84-19,30/09/2017,Economy & Environment,A F BLAKEMORE & SON LTD,20/09/2017,"1,591.71",61008-CONFECTIONERY/SNACKS-PROVISIONS,BLOXWICH LEISURE CENTRE,Supplies & Services,Revenue
Walsall Council,http://opendatacommunities.org/id/metropolitan-district-council/walsall,WC84-20,30/09/2017,Economy & Environment,A KARIMS CHUCKERY PHARMACY,11/09/2017,772.25,71007-CONTRIBUTION TO PCT,PUBLIC HEALTH BUSINESS SUPPORT,Third Party Payments,Revenue
Walsall Council,http://opendatacommunities.org/id/metropolitan-district-council/walsall,WC84-21,30/09/2017,Economy & Environment,A KARIMS CHUCKERY PHARMACY,11/09/2017,869.17,71007-CONTRIBUTION TO PCT,PUBLIC HEALTH BUSINESS SUPPORT,Third Party Payments,Revenue
Walsall Council,http://opendatacommunities.org/id/metropolitan-district-council/walsall,WC84-22,30/09/2017,Economy & Environment,A1 STAGE,12/09/2017,620.00,63000-PROFESSIONAL FEES AND SERVICES,FOREST ARTS CENTRE,Supplies & Services,Revenue
Walsall Council,http://opendatacommunities.org/id/metropolitan-district-council/walsall,WC84-23,30/09/2017,Change and Governance,AA CATERING EQUIPMENT SERVICES LTD,22/09/2017,"22,453.72","40000-REPAIRS,ALTERATIONS & MAINTENANCE-PREM",RECHARGEABLE - NON SCHOOLS MAINTENANCE,Premises,Revenue
Walsall Council,http://opendatacommunities.org/id/metropolitan-district-council/walsall,WC84-24,30/09/2017,Childrens,REDACTED,11/09/2017,472.50,76422-DIRECT PAYMENTS TO SOCIAL SERVICES CLIENTS,FAMILY SUPPORT - DIRECT PAYMENTS,Transfer Payments,Revenue
Walsall Council,http://opendatacommunities.org/id/metropolitan-district-council/walsall,WC84-25,30/09/2017,Childrens,ABACUS FOSTERING LTD,11/09/2017,"5,582.86",74037-INDEPENDENT FOSTER CARE-OTH AGENCY PROVISION,EXTERNAL FOSTER CARE PROVISION,Third Party Payments,Revenue
Walsall Council,http://opendatacommunities.org/id/metropolitan-district-council/walsall,WC84-26,30/09/2017,Adult Social Care,ABBEY COURT NURSING & RESIDEN,19/09/2017,"1,728.77",73373-RESIDENTIAL & NURSING CARE PLACEMENTS,OP PACKAGE/PLACEMENT COSTS,Third Party Payments,Revenue
Walsall Council,http://opendatacommunities.org/id/metropolitan-district-council/walsall,WC84-27,30/09/2017,Adult Social Care,ABBEY COURT NURSING & RESIDEN,19/09/2017,"1,786.40",73373-RESIDENTIAL & NURSING CARE PLACEMENTS,OP PACKAGE/PLACEMENT COSTS,Third Party Payments,Revenue
Walsall Council,http://opendatacommunities.org/id/metropolitan-district-council/walsall,WC84-28,30/09/2017,Adult Social Care,ABBEY COURT NURSING & RESIDEN,19/09/2017,"1,786.40",73373-RESIDENTIAL & NURSING CARE PLACEMENTS,OP PACKAGE/PLACEMENT COSTS,Third Party Payments,Revenue
Walsall Council,http://opendatacommunities.org/id/metropolitan-district-council/walsall,WC84-29,30/09/2017,Adult Social Care,ABBEY COURT NURSING & RESIDEN,14/09/2017,"1,818.30",73373-RESIDENTIAL & NURSING CARE PLACEMENTS,OP PACKAGE/PLACEMENT COSTS,Third Party Payments,Revenue
Walsall Council,http://opendatacommunities.org/id/metropolitan-district-council/walsall,WC84-30,30/09/2017,Adult Social Care,ABBEY COURT NURSING & RESIDEN,14/09/2017,"2,075.45",73373-RESIDENTIAL & NURSING CARE PLACEMENTS,OP PACKAGE/PLACEMENT COSTS,Third Party Payments,Revenue
Walsall Council,http://opendatacommunities.org/id/metropolitan-district-council/walsall,WC84-31,30/09/2017,Adult Social Care,ABBEY HEALTHCARE HOMES LTD,26/09/2017,"1,699.16",73373-RESIDENTIAL & NURSING CARE PLACEMENTS,PD PACKAGE/PLACEMENT COSTS,Third Party Payments,Revenue
Walsall Council,http://opendatacommunities.org/id/metropolitan-district-council/walsall,WC84-32,30/09/2017,Adult Social Care,ABBEY HEALTHCARE HOMES LTD,26/09/2017,"1,699.16",73373-RESIDENTIAL & NURSING CARE PLACEMENTS,PD PACKAGE/PLACEMENT COSTS,Third Party Payments,Revenue
Walsall Council,http://opendatacommunities.org/id/metropolitan-district-council/walsall,WC84-33,30/09/2017,Adult Social Care,ABBEY HEALTHCARE HOMES LTD,26/09/2017,"1,699.16",73373-RESIDENTIAL & NURSING CARE PLACEMENTS,PD PACKAGE/PLACEMENT COSTS,Third Party Payments,Revenue
Walsall Council,http://opendatacommunities.org/id/metropolitan-district-council/walsall,WC84-34,30/09/2017,Adult Social Care,ABBEY HEALTHCARE HOMES LTD,26/09/2017,"2,294.08",73373-RESIDENTIAL & NURSING CARE PLACEMENTS,PD PACKAGE/PLACEMENT COSTS,Third Party Payments,Revenue
Walsall Council,http://opendatacommunities.org/id/metropolitan-district-council/walsall,WC84-35,30/09/2017,Adult Social Care,ABBEY HEALTHCARE HOMES LTD,26/09/2017,"2,294.08",73373-RESIDENTIAL & NURSING CARE PLACEMENTS,PD PACKAGE/PLACEMENT COSTS,Third Party Payments,Revenue
Walsall Council,http://opendatacommunities.org/id/metropolitan-district-council/walsall,WC84-36,30/09/2017,Adult Social Care,ABBEY HEALTHCARE HOMES LTD,26/09/2017,"2,294.08",73373-RESIDENTIAL & NURSING CARE PLACEMENTS,PD PACKAGE/PLACEMENT COSTS,Third Party Payments,Revenue
Walsall Council,http://opendatacommunities.org/id/metropolitan-district-council/walsall,WC84-37,30/09/2017,Childrens,ABC DAY NURSERY (WILLENHALL) LIMITED,01/09/2017,"14,784.00",66505-OTHER-GRANTS TO OTHER ORGS,EARLY YEARS - 3 YR OLDS,Third Party Payments,Revenue
Walsall Council,http://opendatacommunities.org/id/metropolitan-district-council/walsall,WC84-38,30/09/2017,Childrens,ABC DAY NURSERY (WILLENHALL) LIMITED,01/09/2017,"32,572.00",66505-OTHER-GRANTS TO OTHER ORGS,EARLY YEARS - 2 YR OLDS,Third Party Payments,Revenue
Walsall Council,http://opendatacommunities.org/id/metropolitan-district-council/walsall,WC84-39,30/09/2017,Childrens,ABC FOSTERING,11/09/2017,"2,635.20",74037-INDEPENDENT FOSTER CARE-OTH AGENCY PROVISION,EXTERNAL FOSTER CARE PROVISION,Third Party Payments,Revenue
Walsall Council,http://opendatacommunities.org/id/metropolitan-district-council/walsall,WC84-40,30/09/2017,Childrens,ABC FOSTERING,11/09/2017,"2,859.48",74037-INDEPENDENT FOSTER CARE-OTH AGENCY PROVISION,EXTERNAL FOSTER CARE PROVISION,Third Party Payments,Revenue
Walsall Council,http://opendatacommunities.org/id/metropolitan-district-council/walsall,WC84-41,30/09/2017,Childrens,ABC FOSTERING,11/09/2017,"2,880.00",74037-INDEPENDENT FOSTER CARE-OTH AGENCY PROVISION,EXTERNAL FOSTER CARE PROVISION,Third Party Payments,Revenue
Walsall Council,http://opendatacommunities.org/id/metropolitan-district-council/walsall,WC84-42,30/09/2017,Childrens,ABC FOSTERING,11/09/2017,"3,042.00",74037-INDEPENDENT FOSTER CARE-OTH AGENCY PROVISION,EXTERNAL FOSTER CARE PROVISION,Third Party Payments,Revenue
Walsall Council,http://opendatacommunities.org/id/metropolitan-district-council/walsall,WC84-43,30/09/2017,Childrens,ABC FOSTERING,11/09/2017,"3,182.40",74037-INDEPENDENT FOSTER CARE-OTH AGENCY PROVISION,EXTERNAL FOSTER CARE PROVISION,Third Party Payments,Revenue
Walsall Council,http://opendatacommunities.org/id/metropolitan-district-council/walsall,WC84-44,30/09/2017,Adult Social Care,REDACTED,11/09/2017,"1,947.10",76422-DIRECT PAYMENTS TO SOCIAL SERVICES CLIENTS,LD PACKAGE/PLACEMENT COSTS,Transfer Payments,Revenue
Walsall Council,http://opendatacommunities.org/id/metropolitan-district-council/walsall,WC84-45,30/09/2017,Adult Social Care,REDACTED,11/09/2017,"2,947.49",76422-DIRECT PAYMENTS TO SOCIAL SERVICES CLIENTS,LD PACKAGE/PLACEMENT COSTS,Transfer Payments,Revenue
Walsall Council,http://opendatacommunities.org/id/metropolitan-district-council/walsall,WC84-46,30/09/2017,Childrens,ABU BAKR NURSERY,01/09/2017,"1,424.31",66505-OTHER-GRANTS TO OTHER ORGS,EARLY YEARS - 2 YR OLDS,Third Party Payments,Revenue
Walsall Council,http://opendatacommunities.org/id/metropolitan-district-council/walsall,WC84-47,30/09/2017,Childrens,ABU BAKR NURSERY,01/09/2017,"14,112.00",66505-OTHER-GRANTS TO OTHER ORGS,EARLY YEARS - 3 YR OLDS,Third Party Payments,Revenue
Walsall Council,http://opendatacommunities.org/id/metropolitan-district-council/walsall,WC84-48,30/09/2017,Childrens,ACCORD HOUSING ASSOCIATION LTD#135,06/09/2017,275.25,43000-RENTS,SAFEGUARDING & FAMILY SUPPORT,Premises,Revenue
Walsall Council,http://opendatacommunities.org/id/metropolitan-district-council/walsall,WC84-49,30/09/2017,Adult Social Care,ACCORD HOUSING ASSOCIATION LTD#135,25/09/2017,346.48,73374-SUPPORTED & OTHER ACCOMMODATION,MH COMMISSIONING,Third Party Payments,Revenue
Walsall Council,http://opendatacommunities.org/id/metropolitan-district-council/walsall,WC84-50,30/09/2017,Childrens,ACCORD HOUSING ASSOCIATION LTD#135,06/09/2017,458.75,43000-RENTS,SAFEGUARDING & FAMILY SUPPORT,Premises,Revenue
Walsall Council,http://opendatacommunities.org/id/metropolitan-district-council/walsall,WC84-51,30/09/2017,Childrens,ACCORD HOUSING ASSOCIATION LTD#135,08/09/2017,693.42,43000-RENTS,SAFEGUARDING & FAMILY SUPPORT,Premises,Revenue
Walsall Council,http://opendatacommunities.org/id/metropolitan-district-council/walsall,WC84-52,30/09/2017,Adult Social Care,ACCORD HOUSING ASSOCIATION LTD#135,22/09/2017,772.80,73372-DOMICILIARY CARE,OP PACKAGE/PLACEMENT COSTS,Third Party Payments,Revenue
Walsall Council,http://opendatacommunities.org/id/metropolitan-district-council/walsall,WC84-53,30/09/2017,Adult Social Care,ACCORD HOUSING ASSOCIATION LTD#135,25/09/2017,944.48,73374-SUPPORTED & OTHER ACCOMMODATION,LD PACKAGE/PLACEMENT COSTS,Third Party Payments,Revenue
Walsall Council,http://opendatacommunities.org/id/metropolitan-district-council/walsall,WC84-54,30/09/2017,Adult Social Care,ACCORD HOUSING ASSOCIATION LTD#135,13/09/2017,956.15,73374-SUPPORTED & OTHER ACCOMMODATION,OP PACKAGE/PLACEMENT COSTS,Third Party Payments,Revenue
Walsall Council,http://opendatacommunities.org/id/metropolitan-district-council/walsall,WC84-55,30/09/2017,Adult Social Care,ACCORD HOUSING ASSOCIATION LTD#135,19/09/2017,964.82,73374-SUPPORTED & OTHER ACCOMMODATION,LD PACKAGE/PLACEMENT COSTS,Third Party Payments,Revenue
Walsall Council,http://opendatacommunities.org/id/metropolitan-district-council/walsall,WC84-56,30/09/2017,Adult Social Care,ACCORD HOUSING ASSOCIATION LTD#135,13/09/2017,"1,161.70",73374-SUPPORTED & OTHER ACCOMMODATION,LD PACKAGE/PLACEMENT COSTS,Third Party Payments,Revenue
Walsall Council,http://opendatacommunities.org/id/metropolitan-district-council/walsall,WC84-57,30/09/2017,Adult Social Care,ACCORD HOUSING ASSOCIATION LTD#135,01/09/2017,"1,227.84",73374-SUPPORTED & OTHER ACCOMMODATION,MH COMMISSIONING,Third Party Payments,Revenue
Walsall Council,http://opendatacommunities.org/id/metropolitan-district-council/walsall,WC84-58,30/09/2017,Adult Social Care,ACCORD HOUSING ASSOCIATION LTD#135,20/09/2017,"1,259.30",73374-SUPPORTED & OTHER ACCOMMODATION,LD PACKAGE/PLACEMENT COSTS,Third Party Payments,Revenue
Walsall Council,http://opendatacommunities.org/id/metropolitan-district-council/walsall,WC84-59,30/09/2017,Adult Social Care,ACCORD HOUSING ASSOCIATION LTD#135,13/09/2017,"1,350.63",73374-SUPPORTED & OTHER ACCOMMODATION,MH COMMISSIONING,Third Party Payments,Revenue
Walsall Council,http://opendatacommunities.org/id/metropolitan-district-council/walsall,WC84-60,30/09/2017,Adult Social Care,ACCORD HOUSING ASSOCIATION LTD#135,25/09/2017,"1,529.15",73374-SUPPORTED & OTHER ACCOMMODATION,LD PACKAGE/PLACEMENT COSTS,Third Party Payments,Revenue
Walsall Council,http://opendatacommunities.org/id/metropolitan-district-council/walsall,WC84-61,30/09/2017,Adult Social Care,ACCORD HOUSING ASSOCIATION LTD#135,25/09/2017,"1,529.15",73374-SUPPORTED & OTHER ACCOMMODATION,LD PACKAGE/PLACEMENT COSTS,Third Party Payments,Revenue
Walsall Council,http://opendatacommunities.org/id/metropolitan-district-council/walsall,WC84-62,30/09/2017,Adult Social Care,ACCORD HOUSING ASSOCIATION LTD#135,13/09/2017,"3,639.17",73374-SUPPORTED & OTHER ACCOMMODATION,OP PACKAGE/PLACEMENT COSTS,Third Party Payments,Revenue
Walsall Council,http://opendatacommunities.org/id/metropolitan-district-council/walsall,WC84-63,30/09/2017,Adult Social Care,ACCORD HOUSING ASSOCIATION LTD#135,26/09/2017,"4,284.72",73373-RESIDENTIAL & NURSING CARE PLACEMENTS,LD PACKAGE/PLACEMENT COSTS,Third Party Payments,Revenue
Walsall Council,http://opendatacommunities.org/id/metropolitan-district-council/walsall,WC84-64,30/09/2017,Adult Social Care,ACCORD HOUSING ASSOCIATION LTD#135,05/09/2017,"4,285.72",73373-RESIDENTIAL & NURSING CARE PLACEMENTS,LD PACKAGE/PLACEMENT COSTS,Third Party Payments,Revenue
Walsall Council,http://opendatacommunities.org/id/metropolitan-district-council/walsall,WC84-65,30/09/2017,Adult Social Care,ACCORD HOUSING ASSOCIATION LTD#135,05/09/2017,"4,285.72",73373-RESIDENTIAL & NURSING CARE PLACEMENTS,LD PACKAGE/PLACEMENT COSTS,Third Party Payments,Revenue
Walsall Council,http://opendatacommunities.org/id/metropolitan-district-council/walsall,WC84-66,30/09/2017,Adult Social Care,ACCORD HOUSING ASSOCIATION LTD#135,05/09/2017,"4,285.72",73373-RESIDENTIAL & NURSING CARE PLACEMENTS,LD PACKAGE/PLACEMENT COSTS,Third Party Payments,Revenue
Walsall Council,http://opendatacommunities.org/id/metropolitan-district-council/walsall,WC84-67,30/09/2017,Adult Social Care,ACCORD HOUSING ASSOCIATION LTD#135,05/09/2017,"4,285.72",73373-RESIDENTIAL & NURSING CARE PLACEMENTS,LD PACKAGE/PLACEMENT COSTS,Third Party Payments,Revenue
Walsall Council,http://opendatacommunities.org/id/metropolitan-district-council/walsall,WC84-68,30/09/2017,Adult Social Care,ACCORD HOUSING ASSOCIATION LTD#135,05/09/2017,"4,285.72",73373-RESIDENTIAL & NURSING CARE PLACEMENTS,LD PACKAGE/PLACEMENT COSTS,Third Party Payments,Revenue
Walsall Council,http://opendatacommunities.org/id/metropolitan-district-council/walsall,WC84-69,30/09/2017,Adult Social Care,ACCORD HOUSING ASSOCIATION LTD#135,05/09/2017,"4,285.72",73373-RESIDENTIAL & NURSING CARE PLACEMENTS,LD PACKAGE/PLACEMENT COSTS,Third Party Payments,Revenue
Walsall Council,http://opendatacommunities.org/id/metropolitan-district-council/walsall,WC84-70,30/09/2017,Adult Social Care,ACCORD HOUSING ASSOCIATION LTD#135,05/09/2017,"4,285.72",73373-RESIDENTIAL & NURSING CARE PLACEMENTS,LD PACKAGE/PLACEMENT COSTS,Third Party Payments,Revenue
Walsall Council,http://opendatacommunities.org/id/metropolitan-district-council/walsall,WC84-71,30/09/2017,Adult Social Care,ACCORD HOUSING ASSOCIATION LTD#135,05/09/2017,"4,285.72",73373-RESIDENTIAL & NURSING CARE PLACEMENTS,LD PACKAGE/PLACEMENT COSTS,Third Party Payments,Revenue
Walsall Council,http://opendatacommunities.org/id/metropolitan-district-council/walsall,WC84-72,30/09/2017,Adult Social Care,ACCORD HOUSING ASSOCIATION LTD#135,26/09/2017,"4,285.72",73373-RESIDENTIAL & NURSING CARE PLACEMENTS,LD PACKAGE/PLACEMENT COSTS,Third Party Payments,Revenue
Walsall Council,http://opendatacommunities.org/id/metropolitan-district-council/walsall,WC84-73,30/09/2017,Adult Social Care,ACCORD HOUSING ASSOCIATION LTD#135,26/09/2017,"4,285.72",73373-RESIDENTIAL & NURSING CARE PLACEMENTS,LD PACKAGE/PLACEMENT COSTS,Third Party Payments,Revenue
Walsall Council,http://opendatacommunities.org/id/metropolitan-district-council/walsall,WC84-74,30/09/2017,Adult Social Care,ACCORD HOUSING ASSOCIATION LTD#135,26/09/2017,"4,285.72",73373-RESIDENTIAL & NURSING CARE PLACEMENTS,LD PACKAGE/PLACEMENT COSTS,Third Party Payments,Revenue
Walsall Council,http://opendatacommunities.org/id/metropolitan-district-council/walsall,WC84-75,30/09/2017,Adult Social Care,ACCORD HOUSING ASSOCIATION LTD#135,01/09/2017,"4,537.00",70000-SOCIAL SERVICES-FEES TO VOLUNTARY BODIES,COMPLEX NEEDS CONTRACTS/SLA's,Third Party Payments,Revenue
Walsall Council,http://opendatacommunities.org/id/metropolitan-district-council/walsall,WC84-76,30/09/2017,Adult Social Care,ACCORD HOUSING ASSOCIATION LTD#135,14/09/2017,"5,105.75",70000-SOCIAL SERVICES-FEES TO VOLUNTARY BODIES,COMPLEX NEEDS CONTRACTS/SLA's,Third Party Payments,Revenue
Walsall Council,http://opendatacommunities.org/id/metropolitan-district-council/walsall,WC84-77,30/09/2017,Adult Social Care,ACCORD HOUSING ASSOCIATION LTD#135,26/09/2017,"5,981.48",73373-RESIDENTIAL & NURSING CARE PLACEMENTS,LD PACKAGE/PLACEMENT COSTS,Third Party Payments,Revenue
Walsall Council,http://opendatacommunities.org/id/metropolitan-district-council/walsall,WC84-78,30/09/2017,Adult Social Care,ACCORD HOUSING ASSOCIATION LTD#135,26/09/2017,"5,981.48",73373-RESIDENTIAL & NURSING CARE PLACEMENTS,LD PACKAGE/PLACEMENT COSTS,Third Party Payments,Revenue
Walsall Council,http://opendatacommunities.org/id/metropolitan-district-council/walsall,WC84-79,30/09/2017,Adult Social Care,ACCORD HOUSING ASSOCIATION LTD#135,26/09/2017,"5,981.48",73373-RESIDENTIAL & NURSING CARE PLACEMENTS,LD PACKAGE/PLACEMENT COSTS,Third Party Payments,Revenue
Walsall Council,http://opendatacommunities.org/id/metropolitan-district-council/walsall,WC84-80,30/09/2017,Childrens,ACCORD HOUSING ASSOCIATION LTD#135,12/09/2017,"6,655.50",63102-CONSULTANTS FEES - CORPORATE,TOXIC TRIO,Supplies & Services,Revenue
Walsall Council,http://opendatacommunities.org/id/metropolitan-district-council/walsall,WC84-81,30/09/2017,Adult Social Care,ACCORD HOUSING ASSOCIATION LTD#135,19/09/2017,"7,149.60",73373-RESIDENTIAL & NURSING CARE PLACEMENTS,LD PACKAGE/PLACEMENT COSTS,Third Party Payments,Revenue
Walsall Council,http://opendatacommunities.org/id/metropolitan-district-council/walsall,WC84-82,30/09/2017,Adult Social Care,ACCORD HOUSING ASSOCIATION LTD#135,15/09/2017,"11,164.00",73365-BLOCK GROSS-SUPPORTING PEOPLE,OLDER PEOPLE SLA,Third Party Payments,Revenue
Walsall Council,http://opendatacommunities.org/id/metropolitan-district-council/walsall,WC84-83,30/09/2017,Adult Social Care,ACCORD HOUSING ASSOCIATION LTD#135,15/09/2017,"11,164.00",73365-BLOCK GROSS-SUPPORTING PEOPLE,OLDER PEOPLE SLA,Third Party Payments,Revenue
Walsall Council,http://opendatacommunities.org/id/metropolitan-district-council/walsall,WC84-84,30/09/2017,Adult Social Care,ACCORD HOUSING ASSOCIATION LTD#135,22/09/2017,"14,052.90",73374-SUPPORTED & OTHER ACCOMMODATION,OP PACKAGE/PLACEMENT COSTS,Third Party Payments,Revenue
Walsall Council,http://opendatacommunities.org/id/metropolitan-district-council/walsall,WC84-85,30/09/2017,Adult Social Care,ACCORD HOUSING ASSOCIATION LTD#135,15/09/2017,"29,330.75",73365-BLOCK GROSS-SUPPORTING PEOPLE,OLDER PEOPLE SLA,Third Party Payments,Revenue
Walsall Council,http://opendatacommunities.org/id/metropolitan-district-council/walsall,WC84-86,30/09/2017,Adult Social Care,ACCORD HOUSING ASSOCIATION LTD#135,12/09/2017,"31,185.63",73372-DOMICILIARY CARE,OP PACKAGE/PLACEMENT COSTS,Third Party Payments,Revenue
Walsall Council,http://opendatacommunities.org/id/metropolitan-district-council/walsall,WC84-87,30/09/2017,Childrens,ACORN ABA LIMITED,15/09/2017,304.71,66502-TOP UP FUNDING -GRANTS TO SCHOOLS,INDEPENDENT PROVIDERS - SPECIAL & AP,Third Party Payments,Revenue
Walsall Council,http://opendatacommunities.org/id/metropolitan-district-council/walsall,WC84-88,30/09/2017,Childrens,ACORN ABA LIMITED,15/09/2017,356.71,66502-TOP UP FUNDING -GRANTS TO SCHOOLS,INDEPENDENT PROVIDERS - SPECIAL & AP,Third Party Payments,Revenue
Walsall Council,http://opendatacommunities.org/id/metropolitan-district-council/walsall,WC84-89,30/09/2017,Childrens,ACORN ABA LIMITED,15/09/2017,"1,041.63",66502-TOP UP FUNDING -GRANTS TO SCHOOLS,INDEPENDENT PROVIDERS - SPECIAL & AP,Third Party Payments,Revenue
Walsall Council,http://opendatacommunities.org/id/metropolitan-district-council/walsall,WC84-90,30/09/2017,Childrens,ACORN CARE & EDUCATION LTD (SALES),18/09/2017,"13,831.66",66502-TOP UP FUNDING -GRANTS TO SCHOOLS,INDEPENDENT PROVIDERS - SPECIAL & AP,Third Party Payments,Revenue
Walsall Council,http://opendatacommunities.org/id/metropolitan-district-council/walsall,WC84-91,30/09/2017,Childrens,ACORN CHILDREN'S HOME,19/09/2017,"19,542.86",74036-EXTERNAL RESIDENTIAL CARE-OTH AGENCY PROVISION,INDEPENDENT RESIDENTIAL HOMES,Third Party Payments,Revenue
Walsall Council,http://opendatacommunities.org/id/metropolitan-district-council/walsall,WC84-92,30/09/2017,Economy & Environment,ACTION DIGITAL MEDIA LTD,27/09/2017,514.50,63000-PROFESSIONAL FEES AND SERVICES,PHOTOGRAPHY EXHIBITION NO. 2 WSA,Supplies & Services,Revenue
Walsall Council,http://opendatacommunities.org/id/metropolitan-district-council/walsall,WC84-93,30/09/2017,Economy & Environment,ACTION MIDLANDS LTD,05/09/2017,450.00,63000-PROFESSIONAL FEES AND SERVICES,YEI (IMPACT) PROGRAMME,Supplies & Services,Revenue
Walsall Council,http://opendatacommunities.org/id/metropolitan-district-council/walsall,WC84-94,30/09/2017,Economy & Environment,ACTION MIDLANDS LTD,05/09/2017,450.00,63000-PROFESSIONAL FEES AND SERVICES,YEI ESF FUNDING,Supplies & Services,Revenue
Walsall Council,http://opendatacommunities.org/id/metropolitan-district-council/walsall,WC84-95,30/09/2017,Adult Social Care,ACTION ON HEARING LOSS,18/09/2017,"1,008.00",73374-SUPPORTED & OTHER ACCOMMODATION,MH COMMISSIONING,Third Party Payments,Revenue
Walsall Council,http://opendatacommunities.org/id/metropolitan-district-council/walsall,WC84-96,30/09/2017,Adult Social Care,ACTON BANKS LTD,25/09/2017,848.04,34305-AGENCY STAFF-EMPLOYEES,GOSCOTE,Employees,Revenue
Walsall Council,http://opendatacommunities.org/id/metropolitan-district-council/walsall,WC84-97,30/09/2017,Adult Social Care,ACTON BANKS LTD,06/09/2017,862.37,34305-AGENCY STAFF-EMPLOYEES,GOSCOTE,Employees,Revenue
Walsall Council,http://opendatacommunities.org/id/metropolitan-district-council/walsall,WC84-98,30/09/2017,Adult Social Care,ACTON BANKS LTD,21/09/2017,"2,122.56",73025-PROFESSIONAL SERVICES-PRIV CONTRACTOR & OTHER AGENCIES,REABLEMENT TEAM - HOLLY BANK,Third Party Payments,Revenue
Walsall Council,http://opendatacommunities.org/id/metropolitan-district-council/walsall,WC84-99,30/09/2017,Adult Social Care,ACTON BANKS LTD,21/09/2017,"2,253.18",73025-PROFESSIONAL SERVICES-PRIV CONTRACTOR & OTHER AGENCIES,REABLEMENT TEAM - HOLLY BANK,Third Party Payments,Revenue
Walsall Council,http://opendatacommunities.org/id/metropolitan-district-council/walsall,WC84-100,30/09/2017,Adult Social Care,ACTON BANKS LTD,21/09/2017,"2,746.59",73025-PROFESSIONAL SERVICES-PRIV CONTRACTOR & OTHER AGENCIES,REABLEMENT TEAM - HOLLY BANK,Third Party Payments,Revenue
Walsall Council,http://opendatacommunities.org/id/metropolitan-district-council/walsall,WC84-101,30/09/2017,Adult Social Care,REDACTED,11/09/2017,606.55,76422-DIRECT PAYMENTS TO SOCIAL SERVICES CLIENTS,OP PACKAGE/PLACEMENT COSTS,Transfer Payments,Revenue
Walsall Council,http://opendatacommunities.org/id/metropolitan-district-council/walsall,WC84-102,30/09/2017,Economy & Environment,REDACTED,06/09/2017,397.92,63239-EXTERNAL WORKS-PAYMENT TO CONTRACTOR,EXHIBITIONS - SPECIAL PROJECTS/PARTNERSHIPS,Third Party Payments,Revenue
Walsall Council,http://opendatacommunities.org/id/metropolitan-district-council/walsall,WC84-103,30/09/2017,Economy & Environment,REDACTED,06/09/2017,416.67,63239-EXTERNAL WORKS-PAYMENT TO CONTRACTOR,NAG - EXTERNALLY FUNDED PROJECTS,Third Party Payments,Revenue
Walsall Council,http://opendatacommunities.org/id/metropolitan-district-council/walsall,WC84-104,30/09/2017,Adult Social Care,REDACTED,11/09/2017,579.45,76422-DIRECT PAYMENTS TO SOCIAL SERVICES CLIENTS,LD PACKAGE/PLACEMENT COSTS,Transfer Payments,Revenue
Walsall Council,http://opendatacommunities.org/id/metropolitan-district-council/walsall,WC84-105,30/09/2017,Adult Social Care,REDACTED,11/09/2017,"1,205.00",76422-DIRECT PAYMENTS TO SOCIAL SERVICES CLIENTS,OP PACKAGE/PLACEMENT COSTS,Transfer Payments,Revenue
Walsall Council,http://opendatacommunities.org/id/metropolitan-district-council/walsall,WC84-106,30/09/2017,Adult Social Care,ADMIRAL SELF STORAGE LTD,05/09/2017,215.10,63000-PROFESSIONAL FEES AND SERVICES,MENTAL HEALTH MANAGEMENT TEAM,Supplies & Services,Revenue
Walsall Council,http://opendatacommunities.org/id/metropolitan-district-council/walsall,WC84-107,30/09/2017,Adult Social Care,ADMIRAL SELF STORAGE LTD,08/09/2017,236.57,43000-RENTS,MENTAL HEALTH MANAGEMENT TEAM,Premises,Revenue
Walsall Council,http://opendatacommunities.org/id/metropolitan-district-council/walsall,WC84-108,30/09/2017,Adult Social Care,ADMIRAL SELF STORAGE LTD,08/09/2017,495.00,43000-RENTS,MENTAL HEALTH MANAGEMENT TEAM,Premises,Revenue
Walsall Council,http://opendatacommunities.org/id/metropolitan-district-council/walsall,WC84-109,30/09/2017,Childrens,ADMIRAL SELF STORAGE LTD,26/09/2017,"1,384.39",60009-LEASING/HIRE/RENTAL-EQUIPMENT,TRANSITION AND LEAVING CARE,Supplies & Services,Revenue
Walsall Council,http://opendatacommunities.org/id/metropolitan-district-council/walsall,WC84-110,30/09/2017,Childrens,ADMIRAL SELF STORAGE LTD,20/09/2017,"1,564.29",63102-CONSULTANTS FEES - CORPORATE,EDUCATION BUSINESS PARTNERSHIP (EBP),Supplies & Services,Revenue
Walsall Council,http://opendatacommunities.org/id/metropolitan-district-council/walsall,WC84-111,30/09/2017,Childrens,REDACTED,25/09/2017,333.12,74510-RESIDENTS ORDERS,ADOPTION ALLOWANCES,Third Party Payments,Revenue
Walsall Council,http://opendatacommunities.org/id/metropolitan-district-council/walsall,WC84-112,30/09/2017,Childrens,REDACTED,25/09/2017,361.12,74510-RESIDENTS ORDERS,ADOPTION ALLOWANCES,Third Party Payments,Revenue
Walsall Council,http://opendatacommunities.org/id/metropolitan-district-council/walsall,WC84-113,30/09/2017,Adult Social Care,ADVANCE HEALTH CARE (UK) LTD,21/09/2017,273.00,73019-PSE'S-PRIV CONTRACTOR FEES,TRANSITIONAL CARE SUPPORT TEAM,Third Party Payments,Revenue
Walsall Council,http://opendatacommunities.org/id/metropolitan-district-council/walsall,WC84-114,30/09/2017,Adult Social Care,ADVANCE HEALTH CARE (UK) LTD,21/09/2017,273.00,73019-PSE'S-PRIV CONTRACTOR FEES,TRANSITIONAL CARE SUPPORT TEAM,Third Party Payments,Revenue
Walsall Council,http://opendatacommunities.org/id/metropolitan-district-council/walsall,WC84-115,30/09/2017,Adult Social Care,ADVANCE HEALTH CARE (UK) LTD,27/09/2017,279.50,73025-PROFESSIONAL SERVICES-PRIV CONTRACTOR & OTHER AGENCIES,COMMUNITY INTERMEDIATE CARE,Third Party Payments,Revenue
Walsall Council,http://opendatacommunities.org/id/metropolitan-district-council/walsall,WC84-116,30/09/2017,Adult Social Care,ADVANCE HEALTH CARE (UK) LTD,26/09/2017,340.60,73025-PROFESSIONAL SERVICES-PRIV CONTRACTOR & OTHER AGENCIES,ACM MANAGEMENT TEAM,Third Party Payments,Revenue
Walsall Council,http://opendatacommunities.org/id/metropolitan-district-council/walsall,WC84-117,30/09/2017,Adult Social Care,ADVANCE HEALTH CARE (UK) LTD,27/09/2017,424.25,73025-PROFESSIONAL SERVICES-PRIV CONTRACTOR & OTHER AGENCIES,COMMUNITY INTERMEDIATE CARE,Third Party Payments,Revenue
Walsall Council,http://opendatacommunities.org/id/metropolitan-district-council/walsall,WC84-118,30/09/2017,Adult Social Care,ADVANCE HEALTH CARE (UK) LTD,22/09/2017,"1,388.76",73372-DOMICILIARY CARE,OP PACKAGE/PLACEMENT COSTS,Third Party Payments,Revenue
Walsall Council,http://opendatacommunities.org/id/metropolitan-district-council/walsall,WC84-119,30/09/2017,Adult Social Care,ADVANCE HEALTH CARE (UK) LTD,11/09/2017,"3,802.28",73025-PROFESSIONAL SERVICES-PRIV CONTRACTOR & OTHER AGENCIES,COMMUNITY INTERMEDIATE CARE,Third Party Payments,Revenue
Walsall Council,http://opendatacommunities.org/id/metropolitan-district-council/walsall,WC84-120,30/09/2017,Adult Social Care,ADVANCE HEALTH CARE (UK) LTD,27/09/2017,"4,755.30",73025-PROFESSIONAL SERVICES-PRIV CONTRACTOR & OTHER AGENCIES,COMMUNITY INTERMEDIATE CARE,Third Party Payments,Revenue
Walsall Council,http://opendatacommunities.org/id/metropolitan-district-council/walsall,WC84-121,30/09/2017,Adult Social Care,ADVANCE HEALTH CARE (UK) LTD,27/09/2017,"5,633.00",73025-PROFESSIONAL SERVICES-PRIV CONTRACTOR & OTHER AGENCIES,COMMUNITY INTERMEDIATE CARE,Third Party Payments,Revenue
Walsall Council,http://opendatacommunities.org/id/metropolitan-district-council/walsall,WC84-122,30/09/2017,Adult Social Care,ADVANCE HEALTH CARE (UK) LTD,07/09/2017,"5,793.48",73025-PROFESSIONAL SERVICES-PRIV CONTRACTOR & OTHER AGENCIES,COMMUNITY INTERMEDIATE CARE,Third Party Payments,Revenue
Walsall Council,http://opendatacommunities.org/id/metropolitan-district-council/walsall,WC84-123,30/09/2017,Adult Social Care,ADVANCE HEALTH CARE (UK) LTD,15/09/2017,"73,104.15",73372-DOMICILIARY CARE,OP PACKAGE/PLACEMENT COSTS,Third Party Payments,Revenue
Walsall Council,http://opendatacommunities.org/id/metropolitan-district-council/walsall,WC84-124,30/09/2017,Childrens,ADVENTURELAND DAY NURSERY,13/09/2017,640.00,77200-TRANSFER PAYMENTS-OTHER SCHOOLCHILDREN/STUDENT RELATED ITEMS,EARLY YEARS - SOCIAL INCLUSION FUND - 3/4 YR OLD,Transfer Payments,Revenue
Walsall Council,http://opendatacommunities.org/id/metropolitan-district-council/walsall,WC84-125,30/09/2017,Childrens,ADVENTURELAND DAY NURSERY,25/09/2017,"3,360.00",66505-OTHER-GRANTS TO OTHER ORGS,EARLY YEARS - 3 YR OLDS,Third Party Payments,Revenue
Walsall Council,http://opendatacommunities.org/id/metropolitan-district-council/walsall,WC84-126,30/09/2017,Childrens,ADVENTURELAND DAY NURSERY,01/09/2017,"14,112.00",66505-OTHER-GRANTS TO OTHER ORGS,EARLY YEARS - 3 YR OLDS,Third Party Payments,Revenue
Walsall Council,http://opendatacommunities.org/id/metropolitan-district-council/walsall,WC84-127,30/09/2017,Childrens,ADVENTURELAND DAY NURSERY,01/09/2017,"14,965.60",66505-OTHER-GRANTS TO OTHER ORGS,EARLY YEARS - 2 YR OLDS,Third Party Payments,Revenue
Walsall Council,http://opendatacommunities.org/id/metropolitan-district-council/walsall,WC84-128,30/09/2017,Adult Social Care,ADVOCACY MATTERS LIMITED,08/09/2017,"-16,774.50",70000-SOCIAL SERVICES-FEES TO VOLUNTARY BODIES,COMPLEX NEEDS CONTRACTS/SLA's,Third Party Payments,Revenue
Walsall Council,http://opendatacommunities.org/id/metropolitan-district-council/walsall,WC84-129,30/09/2017,Adult Social Care,ADVOCACY MATTERS LIMITED,01/09/2017,"13,819.66",70000-SOCIAL SERVICES-FEES TO VOLUNTARY BODIES,OLDER PEOPLE SLA,Third Party Payments,Revenue
Walsall Council,http://opendatacommunities.org/id/metropolitan-district-council/walsall,WC84-130,30/09/2017,Adult Social Care,ADVOCACY MATTERS LIMITED,04/09/2017,"13,819.67",70000-SOCIAL SERVICES-FEES TO VOLUNTARY BODIES,OLDER PEOPLE SLA,Third Party Payments,Revenue
Walsall Council,http://opendatacommunities.org/id/metropolitan-district-council/walsall,WC84-131,30/09/2017,Economy & Environment,AECOM LIMITED,20/09/2017,"7,458.00",01001-OTHER CONSULTANTS FEES,CFR 876 DARLASTON DSDA,Capital,Capital
Walsall Council,http://opendatacommunities.org/id/metropolitan-district-council/walsall,WC84-132,30/09/2017,Economy & Environment,AECOM LIMITED,13/09/2017,"21,118.66",01002-PROJECT FEES,CFR 1072 M6 JUNCTION 10,Capital,Capital
Walsall Council,http://opendatacommunities.org/id/metropolitan-district-council/walsall,WC84-133,30/09/2017,Adult Social Care,AGE UK WALSALL,11/09/2017,"7,086.00",76423-DIRECT PAYMENTS SUPPORT,DIRECT PAYMENT SUPPORT ORGANISATIONS,Transfer Payments,Revenue
Walsall Council,http://opendatacommunities.org/id/metropolitan-district-council/walsall,WC84-134,30/09/2017,Adult Social Care,AGE UK WALSALL,01/09/2017,"8,475.00",76423-DIRECT PAYMENTS SUPPORT,DIRECT PAYMENT SUPPORT ORGANISATIONS,Transfer Payments,Revenue
Walsall Council,http://opendatacommunities.org/id/metropolitan-district-council/walsall,WC84-135,30/09/2017,Economy & Environment,AGE UK WALSALL,11/09/2017,"11,250.00",63000-PROFESSIONAL FEES AND SERVICES,FALLS PREVENTION,Supplies & Services,Revenue
Walsall Council,http://opendatacommunities.org/id/metropolitan-district-council/walsall,WC84-136,30/09/2017,Change and Governance,AGGORA TECHNICAL LTD,13/09/2017,"1,298.40",60006-NEW-FURNITURE & EQUIPMENT,CA OLD HALL SPECIAL SCHOOL,Supplies & Services,Revenue
Walsall Council,http://opendatacommunities.org/id/metropolitan-district-council/walsall,WC84-137,30/09/2017,Adult Social Care,AGINCARE UK LTD,18/09/2017,"1,536.64",73372-DOMICILIARY CARE,OP PACKAGE/PLACEMENT COSTS,Third Party Payments,Revenue
Walsall Council,http://opendatacommunities.org/id/metropolitan-district-council/walsall,WC84-138,30/09/2017,Adult Social Care,REDACTED,11/09/2017,"2,352.50",76422-DIRECT PAYMENTS TO SOCIAL SERVICES CLIENTS,LD PACKAGE/PLACEMENT COSTS,Transfer Payments,Revenue
Walsall Council,http://opendatacommunities.org/id/metropolitan-district-council/walsall,WC84-139,30/09/2017,Economy & Environment,AIRQUEE,21/09/2017,300.00,60007-REPAIR OF EQUIPMENT-EQUIPMENT,DARLASTON LEISURE CENTRE,Supplies & Services,Revenue
Walsall Council,http://opendatacommunities.org/id/metropolitan-district-council/walsall,WC84-140,30/09/2017,Adult Social Care,REDACTED,11/09/2017,"1,142.75",76422-DIRECT PAYMENTS TO SOCIAL SERVICES CLIENTS,OP PACKAGE/PLACEMENT COSTS,Transfer Payments,Revenue
Walsall Council,http://opendatacommunities.org/id/metropolitan-district-council/walsall,WC84-141,30/09/2017,Adult Social Care,REDACTED,11/09/2017,910.00,76422-DIRECT PAYMENTS TO SOCIAL SERVICES CLIENTS,OP PACKAGE/PLACEMENT COSTS,Transfer Payments,Revenue
Walsall Council,http://opendatacommunities.org/id/metropolitan-district-council/walsall,WC84-142,30/09/2017,Childrens,ALBRIGHTON CARE LTD,11/09/2017,"9,980.00",74036-EXTERNAL RESIDENTIAL CARE-OTH AGENCY PROVISION,INDEPENDENT RESIDENTIAL HOMES,Third Party Payments,Revenue
Walsall Council,http://opendatacommunities.org/id/metropolitan-district-council/walsall,WC84-143,30/09/2017,Childrens,ALBRIGHTON CARE LTD,25/09/2017,"15,780.00",74036-EXTERNAL RESIDENTIAL CARE-OTH AGENCY PROVISION,INDEPENDENT RESIDENTIAL HOMES,Third Party Payments,Revenue
Walsall Council,http://opendatacommunities.org/id/metropolitan-district-council/walsall,WC84-144,30/09/2017,Childrens,ALBRIGHTON CARE LTD,11/09/2017,"20,460.00",74036-EXTERNAL RESIDENTIAL CARE-OTH AGENCY PROVISION,INDEPENDENT RESIDENTIAL HOMES,Third Party Payments,Revenue
Walsall Council,http://opendatacommunities.org/id/metropolitan-district-council/walsall,WC84-145,30/09/2017,Adult Social Care,REDACTED,11/09/2017,"1,505.00",76422-DIRECT PAYMENTS TO SOCIAL SERVICES CLIENTS,PD PACKAGE/PLACEMENT COSTS,Transfer Payments,Revenue
Walsall Council,http://opendatacommunities.org/id/metropolitan-district-council/walsall,WC84-146,30/09/2017,Childrens,ALEXANDER JAMES ESTATE AGENTS,11/09/2017,400.00,76010-ACCOMMODATION AND RELATED COSTS-ASSISTANCE TO S/S CLIENTS,SAFEGUARDING & FAMILY SUPPORT,Transfer Payments,Revenue
Walsall Council,http://opendatacommunities.org/id/metropolitan-district-council/walsall,WC84-147,30/09/2017,Adult Social Care,ALEXANDRA HOUSE CARE SERVICES LTD T/A STONEBRIDGE NURSING HOME,14/09/2017,"7,117.44",73373-RESIDENTIAL & NURSING CARE PLACEMENTS,LD PACKAGE/PLACEMENT COSTS,Third Party Payments,Revenue
Walsall Council,http://opendatacommunities.org/id/metropolitan-district-council/walsall,WC84-148,30/09/2017,Childrens,REDACTED,11/09/2017,728.33,76422-DIRECT PAYMENTS TO SOCIAL SERVICES CLIENTS,FAMILY SUPPORT - DIRECT PAYMENTS,Transfer Payments,Revenue
Walsall Council,http://opendatacommunities.org/id/metropolitan-district-council/walsall,WC84-149,30/09/2017,Childrens,REDACTED,11/09/2017,360.00,76422-DIRECT PAYMENTS TO SOCIAL SERVICES CLIENTS,FAMILY SUPPORT - DIRECT PAYMENTS,Transfer Payments,Revenue
Walsall Council,http://opendatacommunities.org/id/metropolitan-district-council/walsall,WC84-150,30/09/2017,Adult Social Care,REDACTED,11/09/2017,"1,122.50",76422-DIRECT PAYMENTS TO SOCIAL SERVICES CLIENTS,PD PACKAGE/PLACEMENT COSTS,Transfer Payments,Revenue
Walsall Council,http://opendatacommunities.org/id/metropolitan-district-council/walsall,WC84-151,30/09/2017,Adult Social Care,REDACTED,11/09/2017,765.00,76422-DIRECT PAYMENTS TO SOCIAL SERVICES CLIENTS,OP PACKAGE/PLACEMENT COSTS,Transfer Payments,Revenue
Walsall Council,http://opendatacommunities.org/id/metropolitan-district-council/walsall,WC84-152,30/09/2017,Capital Financing,ALLPAY LTD,05/09/2017,462.04,82500-BANK CHARGES-CENTRAL EXPENSES,BANK CHARGES,Supplies & Services,Revenue
Walsall Council,http://opendatacommunities.org/id/metropolitan-district-council/walsall,WC84-153,30/09/2017,Economy & Environment,ALLSORTS OFFICE SUPPLIES LTD,06/09/2017,"1,388.54",01006-SITE WORKS MAIN CONTRACTORS,CFR 791 SMARTER WORKPLACES - PROPERTY INVESTMENT,Capital,Capital
Walsall Council,http://opendatacommunities.org/id/metropolitan-district-council/walsall,WC84-154,30/09/2017,Adult Social Care,ALLSORTS OFFICE SUPPLIES LTD,21/09/2017,"1,770.00",60100-NEW ITEMS OF FURNITURE,SENIOR MANAGEMENT TEAM,Supplies & Services,Revenue
Walsall Council,http://opendatacommunities.org/id/metropolitan-district-council/walsall,WC84-155,30/09/2017,Childrens,ALLSORTS OFFICE SUPPLIES LTD,21/09/2017,"3,013.60",60000-FURNITURE & EQUIPMENT,YOUTH JUSTICE SERVICE,Supplies & Services,Revenue
Walsall Council,http://opendatacommunities.org/id/metropolitan-district-council/walsall,WC84-156,30/09/2017,Change and Governance,ALLSORTS OFFICE SUPPLIES LTD,22/09/2017,"3,250.00",63800-COMPUTER EQUIPMENT AND SUPPLIES,RECHARGEABLE EQUIPMENT,Supplies & Services,Revenue
Walsall Council,http://opendatacommunities.org/id/metropolitan-district-council/walsall,WC84-157,30/09/2017,Adult Social Care,ALMA COURT,26/09/2017,"2,071.43",73373-RESIDENTIAL & NURSING CARE PLACEMENTS,MH COMMISSIONING,Third Party Payments,Revenue
Walsall Council,http://opendatacommunities.org/id/metropolitan-district-council/walsall,WC84-158,30/09/2017,Adult Social Care,ALMA COURT,14/09/2017,"6,113.10",73373-RESIDENTIAL & NURSING CARE PLACEMENTS,MH COMMISSIONING,Third Party Payments,Revenue
Walsall Council,http://opendatacommunities.org/id/metropolitan-district-council/walsall,WC84-159,30/09/2017,Adult Social Care,ALMA COURT,26/09/2017,"10,978.57",73373-RESIDENTIAL & NURSING CARE PLACEMENTS,MH COMMISSIONING,Third Party Payments,Revenue
Walsall Council,http://opendatacommunities.org/id/metropolitan-district-council/walsall,WC84-160,30/09/2017,Childrens,ALMOZENE NURSERY & CHILDRENS CENTRE,13/09/2017,640.00,66502-TOP UP FUNDING -GRANTS TO SCHOOLS,INDEPENDENT PROVIDERS - SPECIAL & AP,Third Party Payments,Revenue
Walsall Council,http://opendatacommunities.org/id/metropolitan-district-council/walsall,WC84-161,30/09/2017,Childrens,ALMOZENE NURSERY & CHILDRENS CENTRE,05/09/2017,"5,376.00",66505-OTHER-GRANTS TO OTHER ORGS,EARLY YEARS - 3 YR OLDS,Third Party Payments,Revenue
Walsall Council,http://opendatacommunities.org/id/metropolitan-district-council/walsall,WC84-162,30/09/2017,Childrens,ALMOZENE NURSERY & CHILDRENS CENTRE,01/09/2017,"7,392.00",66505-OTHER-GRANTS TO OTHER ORGS,EARLY YEARS - 3 YR OLDS,Third Party Payments,Revenue
Walsall Council,http://opendatacommunities.org/id/metropolitan-district-council/walsall,WC84-163,30/09/2017,Childrens,ALMOZENE NURSERY & CHILDRENS CENTRE,01/09/2017,"9,683.20",66505-OTHER-GRANTS TO OTHER ORGS,EARLY YEARS - 2 YR OLDS,Third Party Payments,Revenue
Walsall Council,http://opendatacommunities.org/id/metropolitan-district-council/walsall,WC84-164,30/09/2017,Adult Social Care,ALPHA HEALTH CARE LTD,14/09/2017,"-4,350.00",73373-RESIDENTIAL & NURSING CARE PLACEMENTS,MH COMMISSIONING,Third Party Payments,Revenue
Walsall Council,http://opendatacommunities.org/id/metropolitan-district-council/walsall,WC84-165,30/09/2017,Adult Social Care,ALPHA HEALTH CARE LTD,26/09/2017,"1,656.00",73373-RESIDENTIAL & NURSING CARE PLACEMENTS,OP PACKAGE/PLACEMENT COSTS,Third Party Payments,Revenue
Walsall Council,http://opendatacommunities.org/id/metropolitan-district-council/walsall,WC84-166,30/09/2017,Adult Social Care,ALPHA HEALTH CARE LTD,26/09/2017,"1,656.00",73373-RESIDENTIAL & NURSING CARE PLACEMENTS,OP PACKAGE/PLACEMENT COSTS,Third Party Payments,Revenue
Walsall Council,http://opendatacommunities.org/id/metropolitan-district-council/walsall,WC84-167,30/09/2017,Adult Social Care,ALPHA HEALTH CARE LTD,26/09/2017,"1,656.00",73373-RESIDENTIAL & NURSING CARE PLACEMENTS,OP PACKAGE/PLACEMENT COSTS,Third Party Payments,Revenue
Walsall Council,http://opendatacommunities.org/id/metropolitan-district-council/walsall,WC84-168,30/09/2017,Adult Social Care,ALPHA HEALTH CARE LTD,26/09/2017,"1,840.00",73373-RESIDENTIAL & NURSING CARE PLACEMENTS,OP PACKAGE/PLACEMENT COSTS,Third Party Payments,Revenue
Walsall Council,http://opendatacommunities.org/id/metropolitan-district-council/walsall,WC84-169,30/09/2017,Adult Social Care,ALPHA HEALTH CARE LTD,26/09/2017,"1,928.57",73373-RESIDENTIAL & NURSING CARE PLACEMENTS,OP PACKAGE/PLACEMENT COSTS,Third Party Payments,Revenue
Walsall Council,http://opendatacommunities.org/id/metropolitan-district-council/walsall,WC84-170,30/09/2017,Adult Social Care,ALPHA HEALTH CARE LTD,14/09/2017,"2,000.00",73373-RESIDENTIAL & NURSING CARE PLACEMENTS,OP PACKAGE/PLACEMENT COSTS,Third Party Payments,Revenue
Walsall Council,http://opendatacommunities.org/id/metropolitan-district-council/walsall,WC84-171,30/09/2017,Adult Social Care,ALPHA HEALTH CARE LTD,26/09/2017,"2,000.00",73373-RESIDENTIAL & NURSING CARE PLACEMENTS,OP PACKAGE/PLACEMENT COSTS,Third Party Payments,Revenue
Walsall Council,http://opendatacommunities.org/id/metropolitan-district-council/walsall,WC84-172,30/09/2017,Adult Social Care,ALPHA HEALTH CARE LTD,26/09/2017,"2,160.00",73373-RESIDENTIAL & NURSING CARE PLACEMENTS,OP PACKAGE/PLACEMENT COSTS,Third Party Payments,Revenue
Walsall Council,http://opendatacommunities.org/id/metropolitan-district-council/walsall,WC84-173,30/09/2017,Adult Social Care,ALPHA HEALTH CARE LTD,14/09/2017,"2,200.00",73373-RESIDENTIAL & NURSING CARE PLACEMENTS,OP PACKAGE/PLACEMENT COSTS,Third Party Payments,Revenue
Walsall Council,http://opendatacommunities.org/id/metropolitan-district-council/walsall,WC84-174,30/09/2017,Adult Social Care,ALPHA HEALTH CARE LTD,14/09/2017,"2,200.00",73373-RESIDENTIAL & NURSING CARE PLACEMENTS,OP PACKAGE/PLACEMENT COSTS,Third Party Payments,Revenue
Walsall Council,http://opendatacommunities.org/id/metropolitan-district-council/walsall,WC84-175,30/09/2017,Adult Social Care,ALPHA HEALTH CARE LTD,14/09/2017,"2,200.00",73373-RESIDENTIAL & NURSING CARE PLACEMENTS,OP PACKAGE/PLACEMENT COSTS,Third Party Payments,Revenue
Walsall Council,http://opendatacommunities.org/id/metropolitan-district-council/walsall,WC84-176,30/09/2017,Adult Social Care,ALPHA HEALTH CARE LTD,26/09/2017,"2,200.00",73373-RESIDENTIAL & NURSING CARE PLACEMENTS,OP PACKAGE/PLACEMENT COSTS,Third Party Payments,Revenue
Walsall Council,http://opendatacommunities.org/id/metropolitan-district-council/walsall,WC84-177,30/09/2017,Adult Social Care,ALPHA HEALTH CARE LTD,26/09/2017,"2,200.00",73373-RESIDENTIAL & NURSING CARE PLACEMENTS,MH COMMISSIONING,Third Party Payments,Revenue
Walsall Council,http://opendatacommunities.org/id/metropolitan-district-council/walsall,WC84-178,30/09/2017,Adult Social Care,ALPHA HEALTH CARE LTD,26/09/2017,"2,200.00",73373-RESIDENTIAL & NURSING CARE PLACEMENTS,OP PACKAGE/PLACEMENT COSTS,Third Party Payments,Revenue
Walsall Council,http://opendatacommunities.org/id/metropolitan-district-council/walsall,WC84-179,30/09/2017,Adult Social Care,ALPHA HEALTH CARE LTD,26/09/2017,"2,200.00",73373-RESIDENTIAL & NURSING CARE PLACEMENTS,OP PACKAGE/PLACEMENT COSTS,Third Party Payments,Revenue
Walsall Council,http://opendatacommunities.org/id/metropolitan-district-council/walsall,WC84-180,30/09/2017,Adult Social Care,ALPHA HEALTH CARE LTD,26/09/2017,"2,200.00",73373-RESIDENTIAL & NURSING CARE PLACEMENTS,OP PACKAGE/PLACEMENT COSTS,Third Party Payments,Revenue
Walsall Council,http://opendatacommunities.org/id/metropolitan-district-council/walsall,WC84-181,30/09/2017,Adult Social Care,ALPHA HEALTH CARE LTD,26/09/2017,"2,200.00",73373-RESIDENTIAL & NURSING CARE PLACEMENTS,MH COMMISSIONING,Third Party Payments,Revenue
Walsall Council,http://opendatacommunities.org/id/metropolitan-district-council/walsall,WC84-182,30/09/2017,Adult Social Care,ALPHA HEALTH CARE LTD,26/09/2017,"2,239.28",73373-RESIDENTIAL & NURSING CARE PLACEMENTS,MH COMMISSIONING,Third Party Payments,Revenue
Walsall Council,http://opendatacommunities.org/id/metropolitan-district-council/walsall,WC84-183,30/09/2017,Adult Social Care,ALPHA HEALTH CARE LTD,14/09/2017,"3,107.14",73373-RESIDENTIAL & NURSING CARE PLACEMENTS,MH COMMISSIONING,Third Party Payments,Revenue
Walsall Council,http://opendatacommunities.org/id/metropolitan-district-council/walsall,WC84-184,30/09/2017,Adult Social Care,ALPHA HEALTH CARE LTD,14/09/2017,"3,192.86",73373-RESIDENTIAL & NURSING CARE PLACEMENTS,MH COMMISSIONING,Third Party Payments,Revenue
Walsall Council,http://opendatacommunities.org/id/metropolitan-district-council/walsall,WC84-185,30/09/2017,Adult Social Care,ALPHA HEALTH CARE LTD,19/09/2017,"4,652.00",73373-RESIDENTIAL & NURSING CARE PLACEMENTS,MH COMMISSIONING,Third Party Payments,Revenue
Walsall Council,http://opendatacommunities.org/id/metropolitan-district-council/walsall,WC84-186,30/09/2017,Adult Social Care,ALPHA HEALTH CARE LTD,14/09/2017,"6,838.39",73373-RESIDENTIAL & NURSING CARE PLACEMENTS,MH COMMISSIONING,Third Party Payments,Revenue
Walsall Council,http://opendatacommunities.org/id/metropolitan-district-council/walsall,WC84-187,30/09/2017,Economy & Environment,ALPHA SAM PPE RECYCLING LTD,21/09/2017,441.00,61500-CLOTHING & LAUNDRY,WASTE COLLECTIONS,Supplies & Services,Revenue
Walsall Council,http://opendatacommunities.org/id/metropolitan-district-council/walsall,WC84-188,30/09/2017,Childrens,ALUMWELLIES NURSERY,13/09/2017,640.00,66502-TOP UP FUNDING -GRANTS TO SCHOOLS,INDEPENDENT PROVIDERS - SPECIAL & AP,Third Party Payments,Revenue
Walsall Council,http://opendatacommunities.org/id/metropolitan-district-council/walsall,WC84-189,30/09/2017,Childrens,ALUMWELLIES NURSERY,13/09/2017,640.00,66502-TOP UP FUNDING -GRANTS TO SCHOOLS,INDEPENDENT PROVIDERS - SPECIAL & AP,Third Party Payments,Revenue
Walsall Council,http://opendatacommunities.org/id/metropolitan-district-council/walsall,WC84-190,30/09/2017,Childrens,ALUMWELLIES NURSERY,13/09/2017,640.00,77200-TRANSFER PAYMENTS-OTHER SCHOOLCHILDREN/STUDENT RELATED ITEMS,EARLY YEARS - SOCIAL INCLUSION FUND - 3/4 YR OLD,Transfer Payments,Revenue
Walsall Council,http://opendatacommunities.org/id/metropolitan-district-council/walsall,WC84-191,30/09/2017,Childrens,ALUMWELLIES NURSERY,13/09/2017,640.00,77200-TRANSFER PAYMENTS-OTHER SCHOOLCHILDREN/STUDENT RELATED ITEMS,EARLY YEARS - SOCIAL INCLUSION FUND - 3/4 YR OLD,Transfer Payments,Revenue
Walsall Council,http://opendatacommunities.org/id/metropolitan-district-council/walsall,WC84-192,30/09/2017,Childrens,AMAH NURSERIES LIMITED T/A BANANA MOON WALSALL,01/09/2017,"4,401.60",66505-OTHER-GRANTS TO OTHER ORGS,EARLY YEARS - 2 YR OLDS,Third Party Payments,Revenue
Walsall Council,http://opendatacommunities.org/id/metropolitan-district-council/walsall,WC84-193,30/09/2017,Childrens,AMAH NURSERIES LIMITED T/A BANANA MOON WALSALL,05/09/2017,"6,720.00",66505-OTHER-GRANTS TO OTHER ORGS,EARLY YEARS - 3 YR OLDS,Third Party Payments,Revenue
Walsall Council,http://opendatacommunities.org/id/metropolitan-district-council/walsall,WC84-194,30/09/2017,Childrens,AMAH NURSERIES LIMITED T/A BANANA MOON WALSALL,01/09/2017,"8,064.00",66505-OTHER-GRANTS TO OTHER ORGS,EARLY YEARS - 3 YR OLDS,Third Party Payments,Revenue
Walsall Council,http://opendatacommunities.org/id/metropolitan-district-council/walsall,WC84-195,30/09/2017,Childrens,REDACTED,25/09/2017,808.04,74009-ADOPTION ALLOWANCE,ADOPTION ALLOWANCES,Transfer Payments,Revenue
Walsall Council,http://opendatacommunities.org/id/metropolitan-district-council/walsall,WC84-196,30/09/2017,Childrens,REDACTED,11/09/2017,9.24,60006-NEW-FURNITURE & EQUIPMENT,INTERNAL FOSTER CARE PROVISION,Supplies & Services,Revenue
Walsall Council,http://opendatacommunities.org/id/metropolitan-district-council/walsall,WC84-197,30/09/2017,Childrens,REDACTED,11/09/2017,530.96,74508-INTERNAL FOSTER CARERS-CARER FEES,INTERNAL FOSTER CARE PROVISION,Transfer Payments,Revenue
Walsall Council,http://opendatacommunities.org/id/metropolitan-district-council/walsall,WC84-198,30/09/2017,Childrens,REDACTED,11/09/2017,650.92,74501-MAINTENANCE ALLOWANCE-FOSTER CARERS,INTERNAL FOSTER CARE PROVISION,Transfer Payments,Revenue
Walsall Council,http://opendatacommunities.org/id/metropolitan-district-council/walsall,WC84-199,30/09/2017,Childrens,REDACTED,11/09/2017,421.15,76422-DIRECT PAYMENTS TO SOCIAL SERVICES CLIENTS,FAMILY SUPPORT - DIRECT PAYMENTS,Transfer Payments,Revenue
Walsall Council,http://opendatacommunities.org/id/metropolitan-district-council/walsall,WC84-200,30/09/2017,Economy & Environment,AMEY LG LIMITED,22/09/2017,336.51,01006-SITE WORKS MAIN CONTRACTORS,CFR 1198 SAFER ROUTES TO SCHOOL PALFREY JNR,Capital,Capital
Walsall Council,http://opendatacommunities.org/id/metropolitan-district-council/walsall,WC84-201,30/09/2017,Change and Governance,AMEY LG LIMITED,13/09/2017,389.75,60008-MAINTENANCE-FURNITURE & EQUIPMENT,CCTV,Supplies & Services,Revenue
Walsall Council,http://opendatacommunities.org/id/metropolitan-district-council/walsall,WC84-202,30/09/2017,Economy & Environment,AMEY LG LIMITED,13/09/2017,640.32,73002-SECURITY-PRIV CONTRACTOR FEES,TRAFFIC CONTROL,Third Party Payments,Revenue
Walsall Council,http://opendatacommunities.org/id/metropolitan-district-council/walsall,WC84-203,30/09/2017,Economy & Environment,AMEY LG LIMITED,14/09/2017,720.36,73002-SECURITY-PRIV CONTRACTOR FEES,TRAFFIC CONTROL,Third Party Payments,Revenue
Walsall Council,http://opendatacommunities.org/id/metropolitan-district-council/walsall,WC84-204,30/09/2017,Economy & Environment,AMEY LG LIMITED,01/09/2017,"12,243.44",73025-PROFESSIONAL SERVICES-PRIV CONTRACTOR & OTHER AGENCIES,TRAFFIC MANAGEMENT,Third Party Payments,Revenue
Walsall Council,http://opendatacommunities.org/id/metropolitan-district-council/walsall,WC84-205,30/09/2017,Childrens,AMG NURSING CARE SERVICES,01/09/2017,"2,274.48",63000-PROFESSIONAL FEES AND SERVICES,DIRECTLY COMMISSIONED NURSING SERVICES,Supplies & Services,Revenue
Walsall Council,http://opendatacommunities.org/id/metropolitan-district-council/walsall,WC84-206,30/09/2017,Childrens,AMG NURSING CARE SERVICES,01/09/2017,"2,644.72",63000-PROFESSIONAL FEES AND SERVICES,DIRECTLY COMMISSIONED NURSING SERVICES,Supplies & Services,Revenue
Walsall Council,http://opendatacommunities.org/id/metropolitan-district-council/walsall,WC84-207,30/09/2017,Adult Social Care,AMG NURSING CARE SERVICES,15/09/2017,"3,693.60",73374-SUPPORTED & OTHER ACCOMMODATION,PD PACKAGE/PLACEMENT COSTS,Third Party Payments,Revenue
Walsall Council,http://opendatacommunities.org/id/metropolitan-district-council/walsall,WC84-208,30/09/2017,Adult Social Care,AMG NURSING CARE SERVICES,15/09/2017,"3,800.80",73374-SUPPORTED & OTHER ACCOMMODATION,PD PACKAGE/PLACEMENT COSTS,Third Party Payments,Revenue
Walsall Council,http://opendatacommunities.org/id/metropolitan-district-council/walsall,WC84-209,30/09/2017,Adult Social Care,AMG NURSING CARE SERVICES,15/09/2017,"3,854.40",73374-SUPPORTED & OTHER ACCOMMODATION,PD PACKAGE/PLACEMENT COSTS,Third Party Payments,Revenue
Walsall Council,http://opendatacommunities.org/id/metropolitan-district-council/walsall,WC84-210,30/09/2017,Economy & Environment,AMX SOLUTIONS LIMITED,18/09/2017,999.80,63800-COMPUTER EQUIPMENT AND SUPPLIES,ENGINEERING MANAGEMENT,Supplies & Services,Revenue
Walsall Council,http://opendatacommunities.org/id/metropolitan-district-council/walsall,WC84-211,30/09/2017,Childrens,REDACTED,25/09/2017,9.24,60006-NEW-FURNITURE & EQUIPMENT,FAMILY & FRIENDS FOSTER CARE PROVISION,Supplies & Services,Revenue
Walsall Council,http://opendatacommunities.org/id/metropolitan-district-council/walsall,WC84-212,30/09/2017,Childrens,REDACTED,25/09/2017,345.24,74508-INTERNAL FOSTER CARERS-CARER FEES,FAMILY & FRIENDS FOSTER CARE PROVISION,Transfer Payments,Revenue
Walsall Council,http://opendatacommunities.org/id/metropolitan-district-council/walsall,WC84-213,30/09/2017,Childrens,REDACTED,25/09/2017,571.44,74501-MAINTENANCE ALLOWANCE-FOSTER CARERS,FAMILY & FRIENDS FOSTER CARE PROVISION,Transfer Payments,Revenue
Walsall Council,http://opendatacommunities.org/id/metropolitan-district-council/walsall,WC84-214,30/09/2017,Childrens,REDACTED,25/09/2017,425.08,74510-RESIDENTS ORDERS,ADOPTION ALLOWANCES,Third Party Payments,Revenue
Walsall Council,http://opendatacommunities.org/id/metropolitan-district-council/walsall,WC84-215,30/09/2017,Adult Social Care,REDACTED,11/09/2017,337.50,76422-DIRECT PAYMENTS TO SOCIAL SERVICES CLIENTS,OP PACKAGE/PLACEMENT COSTS,Transfer Payments,Revenue
Walsall Council,http://opendatacommunities.org/id/metropolitan-district-council/walsall,WC84-216,30/09/2017,Adult Social Care,ANCHOR,05/09/2017,454.00,73373-RESIDENTIAL & NURSING CARE PLACEMENTS,OP PACKAGE/PLACEMENT COSTS,Third Party Payments,Revenue
Walsall Council,http://opendatacommunities.org/id/metropolitan-district-council/walsall,WC84-217,30/09/2017,Adult Social Care,ANCHOR,14/09/2017,771.43,73373-RESIDENTIAL & NURSING CARE PLACEMENTS,OP PACKAGE/PLACEMENT COSTS,Third Party Payments,Revenue
Walsall Council,http://opendatacommunities.org/id/metropolitan-district-council/walsall,WC84-218,30/09/2017,Adult Social Care,ANCHOR,14/09/2017,900.00,73373-RESIDENTIAL & NURSING CARE PLACEMENTS,OP PACKAGE/PLACEMENT COSTS,Third Party Payments,Revenue
Walsall Council,http://opendatacommunities.org/id/metropolitan-district-council/walsall,WC84-219,30/09/2017,Adult Social Care,ANCHOR,14/09/2017,"1,620.00",73373-RESIDENTIAL & NURSING CARE PLACEMENTS,OP PACKAGE/PLACEMENT COSTS,Third Party Payments,Revenue
Walsall Council,http://opendatacommunities.org/id/metropolitan-district-council/walsall,WC84-220,30/09/2017,Adult Social Care,ANCHOR,14/09/2017,"1,620.00",73373-RESIDENTIAL & NURSING CARE PLACEMENTS,OP PACKAGE/PLACEMENT COSTS,Third Party Payments,Revenue
Walsall Council,http://opendatacommunities.org/id/metropolitan-district-council/walsall,WC84-221,30/09/2017,Adult Social Care,ANCHOR,14/09/2017,"1,800.00",73373-RESIDENTIAL & NURSING CARE PLACEMENTS,OP PACKAGE/PLACEMENT COSTS,Third Party Payments,Revenue
Walsall Council,http://opendatacommunities.org/id/metropolitan-district-council/walsall,WC84-222,30/09/2017,Adult Social Care,ANCHOR,14/09/2017,"1,800.00",73373-RESIDENTIAL & NURSING CARE PLACEMENTS,OP PACKAGE/PLACEMENT COSTS,Third Party Payments,Revenue
Walsall Council,http://opendatacommunities.org/id/metropolitan-district-council/walsall,WC84-223,30/09/2017,Adult Social Care,ANCHOR,14/09/2017,"1,800.00",73373-RESIDENTIAL & NURSING CARE PLACEMENTS,OP PACKAGE/PLACEMENT COSTS,Third Party Payments,Revenue
Walsall Council,http://opendatacommunities.org/id/metropolitan-district-council/walsall,WC84-224,30/09/2017,Adult Social Care,ANCHOR,14/09/2017,"1,800.00",73373-RESIDENTIAL & NURSING CARE PLACEMENTS,OP PACKAGE/PLACEMENT COSTS,Third Party Payments,Revenue
Walsall Council,http://opendatacommunities.org/id/metropolitan-district-council/walsall,WC84-225,30/09/2017,Adult Social Care,ANCHOR,14/09/2017,"1,800.00",73373-RESIDENTIAL & NURSING CARE PLACEMENTS,OP PACKAGE/PLACEMENT COSTS,Third Party Payments,Revenue
Walsall Council,http://opendatacommunities.org/id/metropolitan-district-council/walsall,WC84-226,30/09/2017,Adult Social Care,ANCHOR,14/09/2017,"1,800.00",73373-RESIDENTIAL & NURSING CARE PLACEMENTS,OP PACKAGE/PLACEMENT COSTS,Third Party Payments,Revenue
Walsall Council,http://opendatacommunities.org/id/metropolitan-district-council/walsall,WC84-227,30/09/2017,Adult Social Care,ANCHOR,14/09/2017,"1,800.00",73373-RESIDENTIAL & NURSING CARE PLACEMENTS,OP PACKAGE/PLACEMENT COSTS,Third Party Payments,Revenue
Walsall Council,http://opendatacommunities.org/id/metropolitan-district-council/walsall,WC84-228,30/09/2017,Adult Social Care,ANCHOR,14/09/2017,"1,800.00",73373-RESIDENTIAL & NURSING CARE PLACEMENTS,OP PACKAGE/PLACEMENT COSTS,Third Party Payments,Revenue
Walsall Council,http://opendatacommunities.org/id/metropolitan-district-council/walsall,WC84-229,30/09/2017,Adult Social Care,ANCHOR,14/09/2017,"1,800.00",73373-RESIDENTIAL & NURSING CARE PLACEMENTS,OP PACKAGE/PLACEMENT COSTS,Third Party Payments,Revenue
Walsall Council,http://opendatacommunities.org/id/metropolitan-district-council/walsall,WC84-230,30/09/2017,Adult Social Care,ANCHOR,26/09/2017,"1,800.00",73373-RESIDENTIAL & NURSING CARE PLACEMENTS,OP PACKAGE/PLACEMENT COSTS,Third Party Payments,Revenue
Walsall Council,http://opendatacommunities.org/id/metropolitan-district-council/walsall,WC84-231,30/09/2017,Adult Social Care,ANCHOR,26/09/2017,"1,800.00",73373-RESIDENTIAL & NURSING CARE PLACEMENTS,MH COMMISSIONING,Third Party Payments,Revenue
Walsall Council,http://opendatacommunities.org/id/metropolitan-district-council/walsall,WC84-232,30/09/2017,Adult Social Care,ANCHOR,26/09/2017,"1,800.00",73373-RESIDENTIAL & NURSING CARE PLACEMENTS,OP PACKAGE/PLACEMENT COSTS,Third Party Payments,Revenue
Walsall Council,http://opendatacommunities.org/id/metropolitan-district-council/walsall,WC84-233,30/09/2017,Adult Social Care,ANCHOR,05/09/2017,"1,816.00",73373-RESIDENTIAL & NURSING CARE PLACEMENTS,OP PACKAGE/PLACEMENT COSTS,Third Party Payments,Revenue
Walsall Council,http://opendatacommunities.org/id/metropolitan-district-council/walsall,WC84-234,30/09/2017,Adult Social Care,ANCHOR,05/09/2017,"1,816.00",73373-RESIDENTIAL & NURSING CARE PLACEMENTS,OP PACKAGE/PLACEMENT COSTS,Third Party Payments,Revenue
Walsall Council,http://opendatacommunities.org/id/metropolitan-district-council/walsall,WC84-235,30/09/2017,Adult Social Care,ANCHOR,14/09/2017,"1,816.00",73373-RESIDENTIAL & NURSING CARE PLACEMENTS,OP PACKAGE/PLACEMENT COSTS,Third Party Payments,Revenue
Walsall Council,http://opendatacommunities.org/id/metropolitan-district-council/walsall,WC84-236,30/09/2017,Adult Social Care,ANCHOR,14/09/2017,"2,080.00",73373-RESIDENTIAL & NURSING CARE PLACEMENTS,MH COMMISSIONING,Third Party Payments,Revenue
Walsall Council,http://opendatacommunities.org/id/metropolitan-district-council/walsall,WC84-237,30/09/2017,Childrens,REDACTED,11/09/2017,9.24,60006-NEW-FURNITURE & EQUIPMENT,INTERNAL FOSTER CARE PROVISION,Supplies & Services,Revenue
Walsall Council,http://opendatacommunities.org/id/metropolitan-district-council/walsall,WC84-238,30/09/2017,Childrens,REDACTED,11/09/2017,810.32,74501-MAINTENANCE ALLOWANCE-FOSTER CARERS,INTERNAL FOSTER CARE PROVISION,Transfer Payments,Revenue
Walsall Council,http://opendatacommunities.org/id/metropolitan-district-council/walsall,WC84-239,30/09/2017,Childrens,REDACTED,11/09/2017,"1,147.52",74508-INTERNAL FOSTER CARERS-CARER FEES,INTERNAL FOSTER CARE PROVISION,Transfer Payments,Revenue
Walsall Council,http://opendatacommunities.org/id/metropolitan-district-council/walsall,WC84-240,30/09/2017,Childrens,ANDREWS ELECTRICAL LTD,27/09/2017,"1,043.31",01044-PURCHASE OF FURNITURE & EQUIPMENT,NEW LEAF DEV FORMULA CAPITAL,Capital,Capital
Walsall Council,http://opendatacommunities.org/id/metropolitan-district-council/walsall,WC84-241,30/09/2017,Childrens,REDACTED,25/09/2017,368.76,74509-SPECIAL GUARDIANSHIP ORDERS,ADOPTION ALLOWANCES,Transfer Payments,Revenue
Walsall Council,http://opendatacommunities.org/id/metropolitan-district-council/walsall,WC84-242,30/09/2017,Childrens,REDACTED,25/09/2017,368.76,74509-SPECIAL GUARDIANSHIP ORDERS,ADOPTION ALLOWANCES,Transfer Payments,Revenue
Walsall Council,http://opendatacommunities.org/id/metropolitan-district-council/walsall,WC84-243,30/09/2017,Childrens,REDACTED,25/09/2017,500.16,74509-SPECIAL GUARDIANSHIP ORDERS,ADOPTION ALLOWANCES,Transfer Payments,Revenue
Walsall Council,http://opendatacommunities.org/id/metropolitan-district-council/walsall,WC84-244,30/09/2017,Childrens,REDACTED,25/09/2017,312.04,74509-SPECIAL GUARDIANSHIP ORDERS,ADOPTION ALLOWANCES,Transfer Payments,Revenue
Walsall Council,http://opendatacommunities.org/id/metropolitan-district-council/walsall,WC84-245,30/09/2017,Adult Social Care,REDACTED,11/09/2017,409.20,76422-DIRECT PAYMENTS TO SOCIAL SERVICES CLIENTS,LD PACKAGE/PLACEMENT COSTS,Transfer Payments,Revenue
Walsall Council,http://opendatacommunities.org/id/metropolitan-district-council/walsall,WC84-246,30/09/2017,Adult Social Care,ANSON COURT RESIDENTIAL HOME,19/09/2017,"-1,607.14",73373-RESIDENTIAL & NURSING CARE PLACEMENTS,MH COMMISSIONING,Third Party Payments,Revenue
Walsall Council,http://opendatacommunities.org/id/metropolitan-district-council/walsall,WC84-247,30/09/2017,Adult Social Care,ANSON COURT RESIDENTIAL HOME,19/09/2017,"-1,248.57",73373-RESIDENTIAL & NURSING CARE PLACEMENTS,OP PACKAGE/PLACEMENT COSTS,Third Party Payments,Revenue
Walsall Council,http://opendatacommunities.org/id/metropolitan-district-council/walsall,WC84-248,30/09/2017,Adult Social Care,ANSON COURT RESIDENTIAL HOME,14/09/2017,"1,380.00",73373-RESIDENTIAL & NURSING CARE PLACEMENTS,OP PACKAGE/PLACEMENT COSTS,Third Party Payments,Revenue
Walsall Council,http://opendatacommunities.org/id/metropolitan-district-council/walsall,WC84-249,30/09/2017,Adult Social Care,ANSON COURT RESIDENTIAL HOME,05/09/2017,"1,840.00",73373-RESIDENTIAL & NURSING CARE PLACEMENTS,OP PACKAGE/PLACEMENT COSTS,Third Party Payments,Revenue
Walsall Council,http://opendatacommunities.org/id/metropolitan-district-council/walsall,WC84-250,30/09/2017,Adult Social Care,ANSON COURT RESIDENTIAL HOME,05/09/2017,"1,840.00",73373-RESIDENTIAL & NURSING CARE PLACEMENTS,OP PACKAGE/PLACEMENT COSTS,Third Party Payments,Revenue
Walsall Council,http://opendatacommunities.org/id/metropolitan-district-council/walsall,WC84-251,30/09/2017,Adult Social Care,ANSON COURT RESIDENTIAL HOME,05/09/2017,"1,840.00",73373-RESIDENTIAL & NURSING CARE PLACEMENTS,OP PACKAGE/PLACEMENT COSTS,Third Party Payments,Revenue
Walsall Council,http://opendatacommunities.org/id/metropolitan-district-council/walsall,WC84-252,30/09/2017,Adult Social Care,ANSON COURT RESIDENTIAL HOME,05/09/2017,"1,840.00",73373-RESIDENTIAL & NURSING CARE PLACEMENTS,OP PACKAGE/PLACEMENT COSTS,Third Party Payments,Revenue
Walsall Council,http://opendatacommunities.org/id/metropolitan-district-council/walsall,WC84-253,30/09/2017,Adult Social Care,ANSON COURT RESIDENTIAL HOME,05/09/2017,"1,840.00",73373-RESIDENTIAL & NURSING CARE PLACEMENTS,OP PACKAGE/PLACEMENT COSTS,Third Party Payments,Revenue
Walsall Council,http://opendatacommunities.org/id/metropolitan-district-council/walsall,WC84-254,30/09/2017,Adult Social Care,ANSON COURT RESIDENTIAL HOME,05/09/2017,"1,840.00",73373-RESIDENTIAL & NURSING CARE PLACEMENTS,OP PACKAGE/PLACEMENT COSTS,Third Party Payments,Revenue
Walsall Council,http://opendatacommunities.org/id/metropolitan-district-council/walsall,WC84-255,30/09/2017,Adult Social Care,ANSON COURT RESIDENTIAL HOME,05/09/2017,"1,840.00",73373-RESIDENTIAL & NURSING CARE PLACEMENTS,OP PACKAGE/PLACEMENT COSTS,Third Party Payments,Revenue
Walsall Council,http://opendatacommunities.org/id/metropolitan-district-council/walsall,WC84-256,30/09/2017,Adult Social Care,ANSON COURT RESIDENTIAL HOME,05/09/2017,"1,840.00",73373-RESIDENTIAL & NURSING CARE PLACEMENTS,MH COMMISSIONING,Third Party Payments,Revenue
Walsall Council,http://opendatacommunities.org/id/metropolitan-district-council/walsall,WC84-257,30/09/2017,Adult Social Care,ANSON COURT RESIDENTIAL HOME,05/09/2017,"1,840.00",73373-RESIDENTIAL & NURSING CARE PLACEMENTS,OP PACKAGE/PLACEMENT COSTS,Third Party Payments,Revenue
Walsall Council,http://opendatacommunities.org/id/metropolitan-district-council/walsall,WC84-258,30/09/2017,Adult Social Care,ANSON COURT RESIDENTIAL HOME,05/09/2017,"1,840.00",73373-RESIDENTIAL & NURSING CARE PLACEMENTS,MH COMMISSIONING,Third Party Payments,Revenue
Walsall Council,http://opendatacommunities.org/id/metropolitan-district-council/walsall,WC84-259,30/09/2017,Adult Social Care,ANSON COURT RESIDENTIAL HOME,05/09/2017,"1,840.00",73373-RESIDENTIAL & NURSING CARE PLACEMENTS,OP PACKAGE/PLACEMENT COSTS,Third Party Payments,Revenue
Walsall Council,http://opendatacommunities.org/id/metropolitan-district-council/walsall,WC84-260,30/09/2017,Adult Social Care,ANSON COURT RESIDENTIAL HOME,05/09/2017,"1,840.00",73373-RESIDENTIAL & NURSING CARE PLACEMENTS,MH COMMISSIONING,Third Party Payments,Revenue
Walsall Council,http://opendatacommunities.org/id/metropolitan-district-council/walsall,WC84-261,30/09/2017,Adult Social Care,ANSON COURT RESIDENTIAL HOME,05/09/2017,"1,840.00",73373-RESIDENTIAL & NURSING CARE PLACEMENTS,OP PACKAGE/PLACEMENT COSTS,Third Party Payments,Revenue
Walsall Council,http://opendatacommunities.org/id/metropolitan-district-council/walsall,WC84-262,30/09/2017,Adult Social Care,ANSON COURT RESIDENTIAL HOME,05/09/2017,"1,840.00",73373-RESIDENTIAL & NURSING CARE PLACEMENTS,OP PACKAGE/PLACEMENT COSTS,Third Party Payments,Revenue
Walsall Council,http://opendatacommunities.org/id/metropolitan-district-council/walsall,WC84-263,30/09/2017,Adult Social Care,ANSON COURT RESIDENTIAL HOME,05/09/2017,"1,840.00",73373-RESIDENTIAL & NURSING CARE PLACEMENTS,OP PACKAGE/PLACEMENT COSTS,Third Party Payments,Revenue
Walsall Council,http://opendatacommunities.org/id/metropolitan-district-council/walsall,WC84-264,30/09/2017,Adult Social Care,ANSON COURT RESIDENTIAL HOME,05/09/2017,"1,840.00",73373-RESIDENTIAL & NURSING CARE PLACEMENTS,OP PACKAGE/PLACEMENT COSTS,Third Party Payments,Revenue
Walsall Council,http://opendatacommunities.org/id/metropolitan-district-council/walsall,WC84-265,30/09/2017,Adult Social Care,ANSON COURT RESIDENTIAL HOME,05/09/2017,"1,840.00",73373-RESIDENTIAL & NURSING CARE PLACEMENTS,OP PACKAGE/PLACEMENT COSTS,Third Party Payments,Revenue
Walsall Council,http://opendatacommunities.org/id/metropolitan-district-council/walsall,WC84-266,30/09/2017,Adult Social Care,ANSON COURT RESIDENTIAL HOME,05/09/2017,"1,840.00",73373-RESIDENTIAL & NURSING CARE PLACEMENTS,OP PACKAGE/PLACEMENT COSTS,Third Party Payments,Revenue
Walsall Council,http://opendatacommunities.org/id/metropolitan-district-council/walsall,WC84-267,30/09/2017,Adult Social Care,ANSON COURT RESIDENTIAL HOME,05/09/2017,"1,840.00",73373-RESIDENTIAL & NURSING CARE PLACEMENTS,OP PACKAGE/PLACEMENT COSTS,Third Party Payments,Revenue
Walsall Council,http://opendatacommunities.org/id/metropolitan-district-council/walsall,WC84-268,30/09/2017,Adult Social Care,ANSON COURT RESIDENTIAL HOME,05/09/2017,"1,840.00",73373-RESIDENTIAL & NURSING CARE PLACEMENTS,OP PACKAGE/PLACEMENT COSTS,Third Party Payments,Revenue
Walsall Council,http://opendatacommunities.org/id/metropolitan-district-council/walsall,WC84-269,30/09/2017,Adult Social Care,ANSON COURT RESIDENTIAL HOME,05/09/2017,"1,840.00",73373-RESIDENTIAL & NURSING CARE PLACEMENTS,OP PACKAGE/PLACEMENT COSTS,Third Party Payments,Revenue
Walsall Council,http://opendatacommunities.org/id/metropolitan-district-council/walsall,WC84-270,30/09/2017,Adult Social Care,ANSON COURT RESIDENTIAL HOME,26/09/2017,"1,840.00",73373-RESIDENTIAL & NURSING CARE PLACEMENTS,OP PACKAGE/PLACEMENT COSTS,Third Party Payments,Revenue
Walsall Council,http://opendatacommunities.org/id/metropolitan-district-council/walsall,WC84-271,30/09/2017,Adult Social Care,ANSON COURT RESIDENTIAL HOME,26/09/2017,"1,840.00",73373-RESIDENTIAL & NURSING CARE PLACEMENTS,OP PACKAGE/PLACEMENT COSTS,Third Party Payments,Revenue
Walsall Council,http://opendatacommunities.org/id/metropolitan-district-council/walsall,WC84-272,30/09/2017,Adult Social Care,ANSON COURT RESIDENTIAL HOME,26/09/2017,"1,840.00",73373-RESIDENTIAL & NURSING CARE PLACEMENTS,OP PACKAGE/PLACEMENT COSTS,Third Party Payments,Revenue
Walsall Council,http://opendatacommunities.org/id/metropolitan-district-council/walsall,WC84-273,30/09/2017,Adult Social Care,ANSON COURT RESIDENTIAL HOME,26/09/2017,"1,840.00",73373-RESIDENTIAL & NURSING CARE PLACEMENTS,OP PACKAGE/PLACEMENT COSTS,Third Party Payments,Revenue
Walsall Council,http://opendatacommunities.org/id/metropolitan-district-council/walsall,WC84-274,30/09/2017,Adult Social Care,ANSON COURT RESIDENTIAL HOME,26/09/2017,"1,840.00",73373-RESIDENTIAL & NURSING CARE PLACEMENTS,OP PACKAGE/PLACEMENT COSTS,Third Party Payments,Revenue
Walsall Council,http://opendatacommunities.org/id/metropolitan-district-council/walsall,WC84-275,30/09/2017,Adult Social Care,ANSON COURT RESIDENTIAL HOME,26/09/2017,"1,840.00",73373-RESIDENTIAL & NURSING CARE PLACEMENTS,OP PACKAGE/PLACEMENT COSTS,Third Party Payments,Revenue
Walsall Council,http://opendatacommunities.org/id/metropolitan-district-council/walsall,WC84-276,30/09/2017,Adult Social Care,ANSON COURT RESIDENTIAL HOME,26/09/2017,"1,840.00",73373-RESIDENTIAL & NURSING CARE PLACEMENTS,MH COMMISSIONING,Third Party Payments,Revenue
Walsall Council,http://opendatacommunities.org/id/metropolitan-district-council/walsall,WC84-277,30/09/2017,Adult Social Care,ANSON COURT RESIDENTIAL HOME,26/09/2017,"1,840.00",73373-RESIDENTIAL & NURSING CARE PLACEMENTS,OP PACKAGE/PLACEMENT COSTS,Third Party Payments,Revenue
Walsall Council,http://opendatacommunities.org/id/metropolitan-district-council/walsall,WC84-278,30/09/2017,Adult Social Care,ANSON COURT RESIDENTIAL HOME,26/09/2017,"1,840.00",73373-RESIDENTIAL & NURSING CARE PLACEMENTS,OP PACKAGE/PLACEMENT COSTS,Third Party Payments,Revenue
Walsall Council,http://opendatacommunities.org/id/metropolitan-district-council/walsall,WC84-279,30/09/2017,Adult Social Care,ANSON COURT RESIDENTIAL HOME,26/09/2017,"1,840.00",73373-RESIDENTIAL & NURSING CARE PLACEMENTS,MH COMMISSIONING,Third Party Payments,Revenue
Walsall Council,http://opendatacommunities.org/id/metropolitan-district-council/walsall,WC84-280,30/09/2017,Adult Social Care,ANSON COURT RESIDENTIAL HOME,26/09/2017,"1,840.00",73373-RESIDENTIAL & NURSING CARE PLACEMENTS,OP PACKAGE/PLACEMENT COSTS,Third Party Payments,Revenue
Walsall Council,http://opendatacommunities.org/id/metropolitan-district-council/walsall,WC84-281,30/09/2017,Adult Social Care,ANSON COURT RESIDENTIAL HOME,26/09/2017,"1,840.00",73373-RESIDENTIAL & NURSING CARE PLACEMENTS,OP PACKAGE/PLACEMENT COSTS,Third Party Payments,Revenue
Walsall Council,http://opendatacommunities.org/id/metropolitan-district-council/walsall,WC84-282,30/09/2017,Adult Social Care,ANSON COURT RESIDENTIAL HOME,26/09/2017,"1,840.00",73373-RESIDENTIAL & NURSING CARE PLACEMENTS,OP PACKAGE/PLACEMENT COSTS,Third Party Payments,Revenue
Walsall Council,http://opendatacommunities.org/id/metropolitan-district-council/walsall,WC84-283,30/09/2017,Adult Social Care,ANSON COURT RESIDENTIAL HOME,26/09/2017,"1,840.00",73373-RESIDENTIAL & NURSING CARE PLACEMENTS,OP PACKAGE/PLACEMENT COSTS,Third Party Payments,Revenue
Walsall Council,http://opendatacommunities.org/id/metropolitan-district-council/walsall,WC84-284,30/09/2017,Adult Social Care,ANSON COURT RESIDENTIAL HOME,26/09/2017,"1,840.00",73373-RESIDENTIAL & NURSING CARE PLACEMENTS,OP PACKAGE/PLACEMENT COSTS,Third Party Payments,Revenue
Walsall Council,http://opendatacommunities.org/id/metropolitan-district-council/walsall,WC84-285,30/09/2017,Adult Social Care,ANSON COURT RESIDENTIAL HOME,26/09/2017,"1,840.00",73373-RESIDENTIAL & NURSING CARE PLACEMENTS,OP PACKAGE/PLACEMENT COSTS,Third Party Payments,Revenue
Walsall Council,http://opendatacommunities.org/id/metropolitan-district-council/walsall,WC84-286,30/09/2017,Adult Social Care,ANSON COURT RESIDENTIAL HOME,26/09/2017,"1,840.00",73373-RESIDENTIAL & NURSING CARE PLACEMENTS,OP PACKAGE/PLACEMENT COSTS,Third Party Payments,Revenue
Walsall Council,http://opendatacommunities.org/id/metropolitan-district-council/walsall,WC84-287,30/09/2017,Adult Social Care,ANSON COURT RESIDENTIAL HOME,26/09/2017,"1,840.00",73373-RESIDENTIAL & NURSING CARE PLACEMENTS,OP PACKAGE/PLACEMENT COSTS,Third Party Payments,Revenue
Walsall Council,http://opendatacommunities.org/id/metropolitan-district-council/walsall,WC84-288,30/09/2017,Adult Social Care,ANSON COURT RESIDENTIAL HOME,26/09/2017,"1,840.00",73373-RESIDENTIAL & NURSING CARE PLACEMENTS,OP PACKAGE/PLACEMENT COSTS,Third Party Payments,Revenue
Walsall Council,http://opendatacommunities.org/id/metropolitan-district-council/walsall,WC84-289,30/09/2017,Adult Social Care,ANSON COURT RESIDENTIAL HOME,05/09/2017,"1,920.00",73373-RESIDENTIAL & NURSING CARE PLACEMENTS,OP PACKAGE/PLACEMENT COSTS,Third Party Payments,Revenue
Walsall Council,http://opendatacommunities.org/id/metropolitan-district-council/walsall,WC84-290,30/09/2017,Adult Social Care,ANSON COURT RESIDENTIAL HOME,05/09/2017,"1,920.00",73373-RESIDENTIAL & NURSING CARE PLACEMENTS,OP PACKAGE/PLACEMENT COSTS,Third Party Payments,Revenue
Walsall Council,http://opendatacommunities.org/id/metropolitan-district-council/walsall,WC84-291,30/09/2017,Adult Social Care,ANSON COURT RESIDENTIAL HOME,26/09/2017,"1,920.00",73373-RESIDENTIAL & NURSING CARE PLACEMENTS,OP PACKAGE/PLACEMENT COSTS,Third Party Payments,Revenue
Walsall Council,http://opendatacommunities.org/id/metropolitan-district-council/walsall,WC84-292,30/09/2017,Adult Social Care,ANSON COURT RESIDENTIAL HOME,26/09/2017,"6,714.28",73373-RESIDENTIAL & NURSING CARE PLACEMENTS,OP PACKAGE/PLACEMENT COSTS,Third Party Payments,Revenue
Walsall Council,http://opendatacommunities.org/id/metropolitan-district-council/walsall,WC84-293,30/09/2017,Childrens,REDACTED,25/09/2017,604.00,74510-RESIDENTS ORDERS,ADOPTION ALLOWANCES,Third Party Payments,Revenue
Walsall Council,http://opendatacommunities.org/id/metropolitan-district-council/walsall,WC84-294,30/09/2017,Childrens,REDACTED,25/09/2017,333.12,74509-SPECIAL GUARDIANSHIP ORDERS,ADOPTION ALLOWANCES,Transfer Payments,Revenue
Walsall Council,http://opendatacommunities.org/id/metropolitan-district-council/walsall,WC84-295,30/09/2017,Adult Social Care,ANVILLE COURT CARE LTD,26/09/2017,460.50,73373-RESIDENTIAL & NURSING CARE PLACEMENTS,OP PACKAGE/PLACEMENT COSTS,Third Party Payments,Revenue
Walsall Council,http://opendatacommunities.org/id/metropolitan-district-council/walsall,WC84-296,30/09/2017,Adult Social Care,ANVILLE COURT CARE LTD,14/09/2017,537.25,73373-RESIDENTIAL & NURSING CARE PLACEMENTS,OP PACKAGE/PLACEMENT COSTS,Third Party Payments,Revenue
Walsall Council,http://opendatacommunities.org/id/metropolitan-district-council/walsall,WC84-297,30/09/2017,Adult Social Care,ANVILLE COURT CARE LTD,14/09/2017,537.25,73373-RESIDENTIAL & NURSING CARE PLACEMENTS,OP PACKAGE/PLACEMENT COSTS,Third Party Payments,Revenue
Walsall Council,http://opendatacommunities.org/id/metropolitan-district-council/walsall,WC84-298,30/09/2017,Adult Social Care,ANVILLE COURT CARE LTD,14/09/2017,537.25,73373-RESIDENTIAL & NURSING CARE PLACEMENTS,OP PACKAGE/PLACEMENT COSTS,Third Party Payments,Revenue
Walsall Council,http://opendatacommunities.org/id/metropolitan-district-council/walsall,WC84-299,30/09/2017,Adult Social Care,ANVILLE COURT CARE LTD,14/09/2017,537.25,73373-RESIDENTIAL & NURSING CARE PLACEMENTS,OP PACKAGE/PLACEMENT COSTS,Third Party Payments,Revenue
Walsall Council,http://opendatacommunities.org/id/metropolitan-district-council/walsall,WC84-300,30/09/2017,Adult Social Care,ANVILLE COURT CARE LTD,14/09/2017,537.25,73373-RESIDENTIAL & NURSING CARE PLACEMENTS,OP PACKAGE/PLACEMENT COSTS,Third Party Payments,Revenue
Walsall Council,http://opendatacommunities.org/id/metropolitan-district-council/walsall,WC84-301,30/09/2017,Adult Social Care,ANVILLE COURT CARE LTD,14/09/2017,537.25,73373-RESIDENTIAL & NURSING CARE PLACEMENTS,OP PACKAGE/PLACEMENT COSTS,Third Party Payments,Revenue
Walsall Council,http://opendatacommunities.org/id/metropolitan-district-council/walsall,WC84-302,30/09/2017,Adult Social Care,ANVILLE COURT CARE LTD,14/09/2017,537.25,73373-RESIDENTIAL & NURSING CARE PLACEMENTS,OP PACKAGE/PLACEMENT COSTS,Third Party Payments,Revenue
Walsall Council,http://opendatacommunities.org/id/metropolitan-district-council/walsall,WC84-303,30/09/2017,Economy & Environment,APCOA PARKING SERVICES (UK) LTD,06/09/2017,"45,861.20",73025-PROFESSIONAL SERVICES-PRIV CONTRACTOR & OTHER AGENCIES,PARKING SERVICES OFF-STREET,Third Party Payments,Revenue
Walsall Council,http://opendatacommunities.org/id/metropolitan-district-council/walsall,WC84-304,30/09/2017,Childrens,APPLE TRANSCRIPTION LIMITED,13/09/2017,252.00,73014-LEGAL FEES-PRIV CONTRACTOR FEES,GENERAL MANAGEMENT SUPPORT (INC LEGAL),Third Party Payments,Revenue
Walsall Council,http://opendatacommunities.org/id/metropolitan-district-council/walsall,WC84-305,30/09/2017,Economy & Environment,AQUA FORCE SPECIAL WASTE LTD,13/09/2017,385.00,73029-HAZARDOUS WASTE REMOVAL/DISPOSAL-PRIV CONTRACTOR FEES,WASTE DISPOSAL - RESIDUAL,Third Party Payments,Revenue
Walsall Council,http://opendatacommunities.org/id/metropolitan-district-council/walsall,WC84-306,30/09/2017,Economy & Environment,AQUALYMPIC,06/09/2017,832.50,34305-AGENCY STAFF-EMPLOYEES,BLOXWICH LEISURE CENTRE,Employees,Revenue
Walsall Council,http://opendatacommunities.org/id/metropolitan-district-council/walsall,WC84-307,30/09/2017,Economy & Environment,AQUALYMPIC,01/09/2017,"1,035.00",34305-AGENCY STAFF-EMPLOYEES,OAK PARK,Employees,Revenue
Walsall Council,http://opendatacommunities.org/id/metropolitan-district-council/walsall,WC84-308,30/09/2017,Economy & Environment,AQUALYMPIC,13/09/2017,"1,057.50",34305-AGENCY STAFF-EMPLOYEES,OAK PARK,Employees,Revenue
Walsall Council,http://opendatacommunities.org/id/metropolitan-district-council/walsall,WC84-309,30/09/2017,Economy & Environment,AQUALYMPIC,01/09/2017,"1,425.00",34305-AGENCY STAFF-EMPLOYEES,OAK PARK,Employees,Revenue
Walsall Council,http://opendatacommunities.org/id/metropolitan-district-council/walsall,WC84-310,30/09/2017,Adult Social Care,ARBORETUM NURSING HOME.,14/09/2017,"-1,322.88",73373-RESIDENTIAL & NURSING CARE PLACEMENTS,OP PACKAGE/PLACEMENT COSTS,Third Party Payments,Revenue
Walsall Council,http://opendatacommunities.org/id/metropolitan-district-council/walsall,WC84-311,30/09/2017,Adult Social Care,ARBORETUM NURSING HOME.,26/09/2017,324.29,73373-RESIDENTIAL & NURSING CARE PLACEMENTS,PD PACKAGE/PLACEMENT COSTS,Third Party Payments,Revenue
Walsall Council,http://opendatacommunities.org/id/metropolitan-district-council/walsall,WC84-312,30/09/2017,Adult Social Care,ARBORETUM NURSING HOME.,26/09/2017,741.34,73373-RESIDENTIAL & NURSING CARE PLACEMENTS,OP PACKAGE/PLACEMENT COSTS,Third Party Payments,Revenue
Walsall Council,http://opendatacommunities.org/id/metropolitan-district-council/walsall,WC84-313,30/09/2017,Adult Social Care,ARBORETUM NURSING HOME.,26/09/2017,765.98,73373-RESIDENTIAL & NURSING CARE PLACEMENTS,PD PACKAGE/PLACEMENT COSTS,Third Party Payments,Revenue
Walsall Council,http://opendatacommunities.org/id/metropolitan-district-council/walsall,WC84-314,30/09/2017,Adult Social Care,ARBORETUM NURSING HOME.,26/09/2017,"1,000.00",73373-RESIDENTIAL & NURSING CARE PLACEMENTS,PD PACKAGE/PLACEMENT COSTS,Third Party Payments,Revenue
Walsall Council,http://opendatacommunities.org/id/metropolitan-district-council/walsall,WC84-315,30/09/2017,Adult Social Care,ARBORETUM NURSING HOME.,26/09/2017,"1,040.00",73373-RESIDENTIAL & NURSING CARE PLACEMENTS,OP PACKAGE/PLACEMENT COSTS,Third Party Payments,Revenue
Walsall Council,http://opendatacommunities.org/id/metropolitan-district-council/walsall,WC84-316,30/09/2017,Adult Social Care,ARBORETUM NURSING HOME.,14/09/2017,"2,000.00",73373-RESIDENTIAL & NURSING CARE PLACEMENTS,OP PACKAGE/PLACEMENT COSTS,Third Party Payments,Revenue
Walsall Council,http://opendatacommunities.org/id/metropolitan-district-council/walsall,WC84-317,30/09/2017,Adult Social Care,ARBORETUM NURSING HOME.,14/09/2017,"2,000.00",73373-RESIDENTIAL & NURSING CARE PLACEMENTS,OP PACKAGE/PLACEMENT COSTS,Third Party Payments,Revenue
Walsall Council,http://opendatacommunities.org/id/metropolitan-district-council/walsall,WC84-318,30/09/2017,Adult Social Care,ARBORETUM NURSING HOME.,14/09/2017,"2,000.00",73373-RESIDENTIAL & NURSING CARE PLACEMENTS,OP PACKAGE/PLACEMENT COSTS,Third Party Payments,Revenue
Walsall Council,http://opendatacommunities.org/id/metropolitan-district-council/walsall,WC84-319,30/09/2017,Adult Social Care,ARBORETUM NURSING HOME.,19/09/2017,"2,000.00",73373-RESIDENTIAL & NURSING CARE PLACEMENTS,OP PACKAGE/PLACEMENT COSTS,Third Party Payments,Revenue
Walsall Council,http://opendatacommunities.org/id/metropolitan-district-council/walsall,WC84-320,30/09/2017,Adult Social Care,ARBORETUM NURSING HOME.,14/09/2017,"2,500.00",73373-RESIDENTIAL & NURSING CARE PLACEMENTS,PD PACKAGE/PLACEMENT COSTS,Third Party Payments,Revenue
Walsall Council,http://opendatacommunities.org/id/metropolitan-district-council/walsall,WC84-321,30/09/2017,Adult Social Care,ARBORETUM NURSING HOME.,26/09/2017,"2,500.00",73373-RESIDENTIAL & NURSING CARE PLACEMENTS,OP PACKAGE/PLACEMENT COSTS,Third Party Payments,Revenue
Walsall Council,http://opendatacommunities.org/id/metropolitan-district-council/walsall,WC84-322,30/09/2017,Adult Social Care,ARBORETUM NURSING HOME.,26/09/2017,"2,500.00",73373-RESIDENTIAL & NURSING CARE PLACEMENTS,OP PACKAGE/PLACEMENT COSTS,Third Party Payments,Revenue
Walsall Council,http://opendatacommunities.org/id/metropolitan-district-council/walsall,WC84-323,30/09/2017,Adult Social Care,ARBORETUM NURSING HOME.,26/09/2017,"2,600.00",73373-RESIDENTIAL & NURSING CARE PLACEMENTS,OP PACKAGE/PLACEMENT COSTS,Third Party Payments,Revenue
Walsall Council,http://opendatacommunities.org/id/metropolitan-district-council/walsall,WC84-324,30/09/2017,Adult Social Care,ARBORETUM NURSING HOME.,13/09/2017,"14,900.00",73019-PSE'S-PRIV CONTRACTOR FEES,TRANSITIONAL CARE SUPPORT TEAM,Third Party Payments,Revenue
Walsall Council,http://opendatacommunities.org/id/metropolitan-district-council/walsall,WC84-325,30/09/2017,Economy & Environment,ARCHWAY TCS LTD,20/09/2017,707.50,60537-VEHICLE WASH PLANT-MATERIALS,DEPOT,Supplies & Services,Revenue
Walsall Council,http://opendatacommunities.org/id/metropolitan-district-council/walsall,WC84-326,30/09/2017,Economy & Environment,ARCO GROUP,28/09/2017,264.60,60514-MATERIALS TO STORES,FLEET PARTS STOCK ACCOUNT,Supplies & Services,Revenue
Walsall Council,http://opendatacommunities.org/id/metropolitan-district-council/walsall,WC84-327,30/09/2017,Adult Social Care,ARK HOME HEALTHCARE LIMITED,13/09/2017,"39,811.34",73372-DOMICILIARY CARE,OP PACKAGE/PLACEMENT COSTS,Third Party Payments,Revenue
Walsall Council,http://opendatacommunities.org/id/metropolitan-district-council/walsall,WC84-328,30/09/2017,Childrens,ARNFIELD CARE LIMITED,11/09/2017,"15,616.00",74036-EXTERNAL RESIDENTIAL CARE-OTH AGENCY PROVISION,INDEPENDENT RESIDENTIAL HOMES,Third Party Payments,Revenue
Walsall Council,http://opendatacommunities.org/id/metropolitan-district-council/walsall,WC84-329,30/09/2017,Holding Accounts,ARTHUR J GALLAGHER INTERNATIONAL,01/09/2017,255.94,89012-TEACHERS SICKNESS SCHEME PREMIUM INSURANCE POLICY,PUBLIC LIABILITY,Supplies & Services,Revenue
Walsall Council,http://opendatacommunities.org/id/metropolitan-district-council/walsall,WC84-330,30/09/2017,Childrens,ARTHUR M GRIFFITHS & SON LTD,11/09/2017,"116,871.90",01006-SITE WORKS MAIN CONTRACTORS,CFR 929 FIBBERSLEY PRIMARY SIGNIFICANT ENLARGEMENT,Capital,Capital
Walsall Council,http://opendatacommunities.org/id/metropolitan-district-council/walsall,WC84-331,30/09/2017,Economy & Environment,ASDA PHARMACY,11/09/2017,281.64,71007-CONTRIBUTION TO PCT,PUBLIC HEALTH BUSINESS SUPPORT,Third Party Payments,Revenue
Walsall Council,http://opendatacommunities.org/id/metropolitan-district-council/walsall,WC84-332,30/09/2017,Economy & Environment,ASDA PHARMACY,11/09/2017,447.29,71007-CONTRIBUTION TO PCT,PUBLIC HEALTH BUSINESS SUPPORT,Third Party Payments,Revenue
Walsall Council,http://opendatacommunities.org/id/metropolitan-district-council/walsall,WC84-333,30/09/2017,Adult Social Care,ASH GRANGE CARE HOME,05/09/2017,"-2,283.60",73373-RESIDENTIAL & NURSING CARE PLACEMENTS,OP PACKAGE/PLACEMENT COSTS,Third Party Payments,Revenue
Walsall Council,http://opendatacommunities.org/id/metropolitan-district-council/walsall,WC84-334,30/09/2017,Adult Social Care,ASH GRANGE CARE HOME,26/09/2017,412.45,73373-RESIDENTIAL & NURSING CARE PLACEMENTS,OP PACKAGE/PLACEMENT COSTS,Third Party Payments,Revenue
Walsall Council,http://opendatacommunities.org/id/metropolitan-district-council/walsall,WC84-335,30/09/2017,Adult Social Care,ASH GRANGE CARE HOME,26/09/2017,"1,033.85",73373-RESIDENTIAL & NURSING CARE PLACEMENTS,OP PACKAGE/PLACEMENT COSTS,Third Party Payments,Revenue
Walsall Council,http://opendatacommunities.org/id/metropolitan-district-council/walsall,WC84-336,30/09/2017,Adult Social Care,ASH GRANGE CARE HOME,19/09/2017,"1,448.72",73373-RESIDENTIAL & NURSING CARE PLACEMENTS,OP PACKAGE/PLACEMENT COSTS,Third Party Payments,Revenue
Walsall Council,http://opendatacommunities.org/id/metropolitan-district-council/walsall,WC84-337,30/09/2017,Adult Social Care,ASH GRANGE CARE HOME,19/09/2017,"1,448.74",73373-RESIDENTIAL & NURSING CARE PLACEMENTS,OP PACKAGE/PLACEMENT COSTS,Third Party Payments,Revenue
Walsall Council,http://opendatacommunities.org/id/metropolitan-district-council/walsall,WC84-338,30/09/2017,Adult Social Care,ASH GRANGE CARE HOME,19/09/2017,"1,656.00",73373-RESIDENTIAL & NURSING CARE PLACEMENTS,OP PACKAGE/PLACEMENT COSTS,Third Party Payments,Revenue
Walsall Council,http://opendatacommunities.org/id/metropolitan-district-council/walsall,WC84-339,30/09/2017,Adult Social Care,ASH GRANGE CARE HOME,19/09/2017,"1,656.00",73373-RESIDENTIAL & NURSING CARE PLACEMENTS,OP PACKAGE/PLACEMENT COSTS,Third Party Payments,Revenue
Walsall Council,http://opendatacommunities.org/id/metropolitan-district-council/walsall,WC84-340,30/09/2017,Adult Social Care,ASH GRANGE CARE HOME,26/09/2017,"1,999.60",73373-RESIDENTIAL & NURSING CARE PLACEMENTS,OP PACKAGE/PLACEMENT COSTS,Third Party Payments,Revenue
Walsall Council,http://opendatacommunities.org/id/metropolitan-district-council/walsall,WC84-341,30/09/2017,Adult Social Care,ASH GRANGE CARE HOME,26/09/2017,"1,999.60",73373-RESIDENTIAL & NURSING CARE PLACEMENTS,OP PACKAGE/PLACEMENT COSTS,Third Party Payments,Revenue
Walsall Council,http://opendatacommunities.org/id/metropolitan-district-council/walsall,WC84-342,30/09/2017,Adult Social Care,ASH GRANGE CARE HOME,19/09/2017,"2,000.00",73373-RESIDENTIAL & NURSING CARE PLACEMENTS,OP PACKAGE/PLACEMENT COSTS,Third Party Payments,Revenue
Walsall Council,http://opendatacommunities.org/id/metropolitan-district-council/walsall,WC84-343,30/09/2017,Adult Social Care,ASH GRANGE CARE HOME,19/09/2017,"2,000.00",73373-RESIDENTIAL & NURSING CARE PLACEMENTS,OP PACKAGE/PLACEMENT COSTS,Third Party Payments,Revenue
Walsall Council,http://opendatacommunities.org/id/metropolitan-district-council/walsall,WC84-344,30/09/2017,Adult Social Care,ASH GRANGE CARE HOME,19/09/2017,"2,000.00",73373-RESIDENTIAL & NURSING CARE PLACEMENTS,OP PACKAGE/PLACEMENT COSTS,Third Party Payments,Revenue
Walsall Council,http://opendatacommunities.org/id/metropolitan-district-council/walsall,WC84-345,30/09/2017,Adult Social Care,ASH GRANGE CARE HOME,19/09/2017,"2,000.00",73373-RESIDENTIAL & NURSING CARE PLACEMENTS,OP PACKAGE/PLACEMENT COSTS,Third Party Payments,Revenue
Walsall Council,http://opendatacommunities.org/id/metropolitan-district-council/walsall,WC84-346,30/09/2017,Adult Social Care,ASH GRANGE CARE HOME,19/09/2017,"2,000.00",73373-RESIDENTIAL & NURSING CARE PLACEMENTS,OP PACKAGE/PLACEMENT COSTS,Third Party Payments,Revenue
Walsall Council,http://opendatacommunities.org/id/metropolitan-district-council/walsall,WC84-347,30/09/2017,Adult Social Care,ASH GRANGE CARE HOME,19/09/2017,"2,000.00",73373-RESIDENTIAL & NURSING CARE PLACEMENTS,OP PACKAGE/PLACEMENT COSTS,Third Party Payments,Revenue
Walsall Council,http://opendatacommunities.org/id/metropolitan-district-council/walsall,WC84-348,30/09/2017,Adult Social Care,ASH GRANGE CARE HOME,26/09/2017,"2,000.00",73373-RESIDENTIAL & NURSING CARE PLACEMENTS,MH COMMISSIONING,Third Party Payments,Revenue
Walsall Council,http://opendatacommunities.org/id/metropolitan-district-council/walsall,WC84-349,30/09/2017,Adult Social Care,ASH GRANGE CARE HOME,26/09/2017,"2,000.00",73373-RESIDENTIAL & NURSING CARE PLACEMENTS,OP PACKAGE/PLACEMENT COSTS,Third Party Payments,Revenue
Walsall Council,http://opendatacommunities.org/id/metropolitan-district-council/walsall,WC84-350,30/09/2017,Adult Social Care,ASH GRANGE CARE HOME,26/09/2017,"2,000.00",73373-RESIDENTIAL & NURSING CARE PLACEMENTS,OP PACKAGE/PLACEMENT COSTS,Third Party Payments,Revenue
Walsall Council,http://opendatacommunities.org/id/metropolitan-district-council/walsall,WC84-351,30/09/2017,Adult Social Care,ASH GRANGE CARE HOME,26/09/2017,"2,000.00",73373-RESIDENTIAL & NURSING CARE PLACEMENTS,OP PACKAGE/PLACEMENT COSTS,Third Party Payments,Revenue
Walsall Council,http://opendatacommunities.org/id/metropolitan-district-council/walsall,WC84-352,30/09/2017,Adult Social Care,ASH GRANGE CARE HOME,26/09/2017,"2,000.00",73373-RESIDENTIAL & NURSING CARE PLACEMENTS,OP PACKAGE/PLACEMENT COSTS,Third Party Payments,Revenue
Walsall Council,http://opendatacommunities.org/id/metropolitan-district-council/walsall,WC84-353,30/09/2017,Adult Social Care,ASH GRANGE CARE HOME,26/09/2017,"2,000.00",73373-RESIDENTIAL & NURSING CARE PLACEMENTS,OP PACKAGE/PLACEMENT COSTS,Third Party Payments,Revenue
Walsall Council,http://opendatacommunities.org/id/metropolitan-district-council/walsall,WC84-354,30/09/2017,Adult Social Care,ASH GRANGE CARE HOME,26/09/2017,"2,000.00",73373-RESIDENTIAL & NURSING CARE PLACEMENTS,MH COMMISSIONING,Third Party Payments,Revenue
Walsall Council,http://opendatacommunities.org/id/metropolitan-district-council/walsall,WC84-355,30/09/2017,Adult Social Care,ASH GRANGE CARE HOME,26/09/2017,"2,000.00",73373-RESIDENTIAL & NURSING CARE PLACEMENTS,OP PACKAGE/PLACEMENT COSTS,Third Party Payments,Revenue
Walsall Council,http://opendatacommunities.org/id/metropolitan-district-council/walsall,WC84-356,30/09/2017,Adult Social Care,ASH GRANGE CARE HOME,26/09/2017,"2,000.00",73373-RESIDENTIAL & NURSING CARE PLACEMENTS,OP PACKAGE/PLACEMENT COSTS,Third Party Payments,Revenue
Walsall Council,http://opendatacommunities.org/id/metropolitan-district-council/walsall,WC84-357,30/09/2017,Adult Social Care,ASH GRANGE CARE HOME,26/09/2017,"2,000.00",73373-RESIDENTIAL & NURSING CARE PLACEMENTS,OP PACKAGE/PLACEMENT COSTS,Third Party Payments,Revenue
Walsall Council,http://opendatacommunities.org/id/metropolitan-district-council/walsall,WC84-358,30/09/2017,Adult Social Care,ASH GRANGE CARE HOME,26/09/2017,"2,000.00",73373-RESIDENTIAL & NURSING CARE PLACEMENTS,OP PACKAGE/PLACEMENT COSTS,Third Party Payments,Revenue
Walsall Council,http://opendatacommunities.org/id/metropolitan-district-council/walsall,WC84-359,30/09/2017,Adult Social Care,ASH GRANGE CARE HOME,26/09/2017,"2,000.00",73373-RESIDENTIAL & NURSING CARE PLACEMENTS,OP PACKAGE/PLACEMENT COSTS,Third Party Payments,Revenue
Walsall Council,http://opendatacommunities.org/id/metropolitan-district-council/walsall,WC84-360,30/09/2017,Adult Social Care,ASH GRANGE CARE HOME,26/09/2017,"2,200.00",73373-RESIDENTIAL & NURSING CARE PLACEMENTS,OP PACKAGE/PLACEMENT COSTS,Third Party Payments,Revenue
Walsall Council,http://opendatacommunities.org/id/metropolitan-district-council/walsall,WC84-361,30/09/2017,Adult Social Care,ASH GRANGE CARE HOME,26/09/2017,"2,200.00",73373-RESIDENTIAL & NURSING CARE PLACEMENTS,OP PACKAGE/PLACEMENT COSTS,Third Party Payments,Revenue
Walsall Council,http://opendatacommunities.org/id/metropolitan-district-council/walsall,WC84-362,30/09/2017,Adult Social Care,ASH GRANGE CARE HOME,26/09/2017,"2,200.00",73373-RESIDENTIAL & NURSING CARE PLACEMENTS,OP PACKAGE/PLACEMENT COSTS,Third Party Payments,Revenue
Walsall Council,http://opendatacommunities.org/id/metropolitan-district-council/walsall,WC84-363,30/09/2017,Adult Social Care,ASH GRANGE CARE HOME,26/09/2017,"2,280.00",73373-RESIDENTIAL & NURSING CARE PLACEMENTS,OP PACKAGE/PLACEMENT COSTS,Third Party Payments,Revenue
Walsall Council,http://opendatacommunities.org/id/metropolitan-district-council/walsall,WC84-364,30/09/2017,Adult Social Care,ASH GRANGE CARE HOME,26/09/2017,"2,280.00",73373-RESIDENTIAL & NURSING CARE PLACEMENTS,OP PACKAGE/PLACEMENT COSTS,Third Party Payments,Revenue
Walsall Council,http://opendatacommunities.org/id/metropolitan-district-council/walsall,WC84-365,30/09/2017,Adult Social Care,ASH GRANGE CARE HOME,26/09/2017,"2,396.90",73373-RESIDENTIAL & NURSING CARE PLACEMENTS,OP PACKAGE/PLACEMENT COSTS,Third Party Payments,Revenue
Walsall Council,http://opendatacommunities.org/id/metropolitan-district-council/walsall,WC84-366,30/09/2017,Adult Social Care,ASH GRANGE CARE HOME,26/09/2017,"2,495.72",73373-RESIDENTIAL & NURSING CARE PLACEMENTS,PD PACKAGE/PLACEMENT COSTS,Third Party Payments,Revenue
Walsall Council,http://opendatacommunities.org/id/metropolitan-district-council/walsall,WC84-367,30/09/2017,Adult Social Care,ASH GRANGE CARE HOME,26/09/2017,"2,495.72",73373-RESIDENTIAL & NURSING CARE PLACEMENTS,PD PACKAGE/PLACEMENT COSTS,Third Party Payments,Revenue
Walsall Council,http://opendatacommunities.org/id/metropolitan-district-council/walsall,WC84-368,30/09/2017,Adult Social Care,ASH GRANGE CARE HOME,14/09/2017,"2,620.20",73373-RESIDENTIAL & NURSING CARE PLACEMENTS,OP PACKAGE/PLACEMENT COSTS,Third Party Payments,Revenue
Walsall Council,http://opendatacommunities.org/id/metropolitan-district-council/walsall,WC84-369,30/09/2017,Adult Social Care,ASH GRANGE CARE HOME,26/09/2017,"2,620.20",73373-RESIDENTIAL & NURSING CARE PLACEMENTS,OP PACKAGE/PLACEMENT COSTS,Third Party Payments,Revenue
Walsall Council,http://opendatacommunities.org/id/metropolitan-district-council/walsall,WC84-370,30/09/2017,Adult Social Care,ASH GRANGE CARE HOME,26/09/2017,"2,746.12",73373-RESIDENTIAL & NURSING CARE PLACEMENTS,OP PACKAGE/PLACEMENT COSTS,Third Party Payments,Revenue
Walsall Council,http://opendatacommunities.org/id/metropolitan-district-council/walsall,WC84-371,30/09/2017,Adult Social Care,ASH GRANGE CARE HOME,14/09/2017,"5,053.24",73373-RESIDENTIAL & NURSING CARE PLACEMENTS,OP PACKAGE/PLACEMENT COSTS,Third Party Payments,Revenue
Walsall Council,http://opendatacommunities.org/id/metropolitan-district-council/walsall,WC84-372,30/09/2017,Adult Social Care,ASHBOURNE LODGE,14/09/2017,"2,103.86",73373-RESIDENTIAL & NURSING CARE PLACEMENTS,OP PACKAGE/PLACEMENT COSTS,Third Party Payments,Revenue
Walsall Council,http://opendatacommunities.org/id/metropolitan-district-council/walsall,WC84-373,30/09/2017,Economy & Environment,ASKEWS AND HOLTS LIBRARY SERVICES LTD,20/09/2017,232.50,60501-LIBRARY BOOKS,LIBRARY STOCK AND PERFORMANCE,Supplies & Services,Revenue
Walsall Council,http://opendatacommunities.org/id/metropolitan-district-council/walsall,WC84-374,30/09/2017,Economy & Environment,ASKEWS AND HOLTS LIBRARY SERVICES LTD,20/09/2017,286.47,60501-LIBRARY BOOKS,LIBRARY STOCK AND PERFORMANCE,Supplies & Services,Revenue
Walsall Council,http://opendatacommunities.org/id/metropolitan-district-council/walsall,WC84-375,30/09/2017,Economy & Environment,ASKEWS AND HOLTS LIBRARY SERVICES LTD,01/09/2017,297.34,60501-LIBRARY BOOKS,LIBRARY STOCK AND PERFORMANCE,Supplies & Services,Revenue
Walsall Council,http://opendatacommunities.org/id/metropolitan-district-council/walsall,WC84-376,30/09/2017,Economy & Environment,ASKEWS AND HOLTS LIBRARY SERVICES LTD,01/09/2017,371.48,60501-LIBRARY BOOKS,LIBRARY STOCK AND PERFORMANCE,Supplies & Services,Revenue
Walsall Council,http://opendatacommunities.org/id/metropolitan-district-council/walsall,WC84-377,30/09/2017,Economy & Environment,ASKEWS AND HOLTS LIBRARY SERVICES LTD,19/09/2017,468.50,60501-LIBRARY BOOKS,LIBRARY STOCK AND PERFORMANCE,Supplies & Services,Revenue
Walsall Council,http://opendatacommunities.org/id/metropolitan-district-council/walsall,WC84-378,30/09/2017,Economy & Environment,ASKEWS AND HOLTS LIBRARY SERVICES LTD,20/09/2017,516.83,60501-LIBRARY BOOKS,LIBRARY STOCK AND PERFORMANCE,Supplies & Services,Revenue
Walsall Council,http://opendatacommunities.org/id/metropolitan-district-council/walsall,WC84-379,30/09/2017,Economy & Environment,ASKEWS AND HOLTS LIBRARY SERVICES LTD,19/09/2017,544.28,60501-LIBRARY BOOKS,LIBRARY STOCK AND PERFORMANCE,Supplies & Services,Revenue
Walsall Council,http://opendatacommunities.org/id/metropolitan-district-council/walsall,WC84-380,30/09/2017,Economy & Environment,ASKEWS AND HOLTS LIBRARY SERVICES LTD,27/09/2017,553.71,60501-LIBRARY BOOKS,LIBRARY STOCK AND PERFORMANCE,Supplies & Services,Revenue
Walsall Council,http://opendatacommunities.org/id/metropolitan-district-council/walsall,WC84-381,30/09/2017,Economy & Environment,ASKEWS AND HOLTS LIBRARY SERVICES LTD,20/09/2017,588.24,60501-LIBRARY BOOKS,LIBRARY STOCK AND PERFORMANCE,Supplies & Services,Revenue
Walsall Council,http://opendatacommunities.org/id/metropolitan-district-council/walsall,WC84-382,30/09/2017,Economy & Environment,ASKEWS AND HOLTS LIBRARY SERVICES LTD,19/09/2017,591.62,60501-LIBRARY BOOKS,LIBRARY STOCK AND PERFORMANCE,Supplies & Services,Revenue
Walsall Council,http://opendatacommunities.org/id/metropolitan-district-council/walsall,WC84-383,30/09/2017,Economy & Environment,ASKEWS AND HOLTS LIBRARY SERVICES LTD,20/09/2017,618.05,60501-LIBRARY BOOKS,LIBRARY STOCK AND PERFORMANCE,Supplies & Services,Revenue
Walsall Council,http://opendatacommunities.org/id/metropolitan-district-council/walsall,WC84-384,30/09/2017,Economy & Environment,ASKEWS AND HOLTS LIBRARY SERVICES LTD,19/09/2017,765.25,60501-LIBRARY BOOKS,LIBRARY STOCK AND PERFORMANCE,Supplies & Services,Revenue
Walsall Council,http://opendatacommunities.org/id/metropolitan-district-council/walsall,WC84-385,30/09/2017,Adult Social Care,REDACTED,11/09/2017,945.00,76422-DIRECT PAYMENTS TO SOCIAL SERVICES CLIENTS,OP PACKAGE/PLACEMENT COSTS,Transfer Payments,Revenue
Walsall Council,http://opendatacommunities.org/id/metropolitan-district-council/walsall,WC84-386,30/09/2017,Childrens,ASPIRE PEOPLE LTD.,13/09/2017,620.00,63000-PROFESSIONAL FEES AND SERVICES,VIRTUAL SCHOOL CENTRAL PUPIL PREMIUM,Supplies & Services,Revenue
Walsall Council,http://opendatacommunities.org/id/metropolitan-district-council/walsall,WC84-387,30/09/2017,Childrens,ASPIRE PEOPLE LTD.,13/09/2017,635.12,63000-PROFESSIONAL FEES AND SERVICES,VIRTUAL SCHOOL CENTRAL PUPIL PREMIUM,Supplies & Services,Revenue
Walsall Council,http://opendatacommunities.org/id/metropolitan-district-council/walsall,WC84-388,30/09/2017,Childrens,ASPIRE PEOPLE LTD.,13/09/2017,775.00,63000-PROFESSIONAL FEES AND SERVICES,VIRTUAL SCHOOL CENTRAL PUPIL PREMIUM,Supplies & Services,Revenue
Walsall Council,http://opendatacommunities.org/id/metropolitan-district-council/walsall,WC84-389,30/09/2017,Childrens,ATG CONTRACT SERVICES LIMITED,22/09/2017,"7,516.74",52000-WITH DRIVER-HIRE OF VEHICLES,SCHOOL TRANSPORT,Transport,Revenue
Walsall Council,http://opendatacommunities.org/id/metropolitan-district-council/walsall,WC84-390,30/09/2017,Change and Governance,AURORA GRAPHICS & DISPLAYS LTD,14/09/2017,253.39,62008-OUTWORK-PRINT ROOM,PRINTING SERVICES,Supplies & Services,Revenue
Walsall Council,http://opendatacommunities.org/id/metropolitan-district-council/walsall,WC84-391,30/09/2017,Economy & Environment,AUTO EXTRACT SYSTEMS LTD,27/09/2017,580.00,73025-PROFESSIONAL SERVICES-PRIV CONTRACTOR & OTHER AGENCIES,DEPOT,Third Party Payments,Revenue
Walsall Council,http://opendatacommunities.org/id/metropolitan-district-council/walsall,WC84-392,30/09/2017,Economy & Environment,AVALON PROMOTIONS LTD,27/09/2017,"4,000.00",63000-PROFESSIONAL FEES AND SERVICES,FOREST ARTS CENTRE,Supplies & Services,Revenue
Walsall Council,http://opendatacommunities.org/id/metropolitan-district-council/walsall,WC84-393,30/09/2017,Adult Social Care,REDACTED,11/09/2017,"1,236.30",76422-DIRECT PAYMENTS TO SOCIAL SERVICES CLIENTS,OP PACKAGE/PLACEMENT COSTS,Transfer Payments,Revenue
Walsall Council,http://opendatacommunities.org/id/metropolitan-district-council/walsall,WC84-394,30/09/2017,Economy & Environment,AXIELL LIMITED,27/09/2017,511.91,63000-PROFESSIONAL FEES AND SERVICES,LIBRARY DEVELOPMENT 1,Supplies & Services,Revenue
Walsall Council,http://opendatacommunities.org/id/metropolitan-district-council/walsall,WC84-395,30/09/2017,Childrens,REDACTED,11/09/2017,"1,605.00",76422-DIRECT PAYMENTS TO SOCIAL SERVICES CLIENTS,FAMILY SUPPORT - DIRECT PAYMENTS,Transfer Payments,Revenue
Walsall Council,http://opendatacommunities.org/id/metropolitan-district-council/walsall,WC84-396,30/09/2017,Adult Social Care,REDACTED,11/09/2017,"3,510.00",76422-DIRECT PAYMENTS TO SOCIAL SERVICES CLIENTS,LD PACKAGE/PLACEMENT COSTS,Transfer Payments,Revenue
Walsall Council,http://opendatacommunities.org/id/metropolitan-district-council/walsall,WC84-397,30/09/2017,Childrens,REDACTED,25/09/2017,985.76,74501-MAINTENANCE ALLOWANCE-FOSTER CARERS,FAMILY & FRIENDS FOSTER CARE PROVISION,Transfer Payments,Revenue
Walsall Council,http://opendatacommunities.org/id/metropolitan-district-council/walsall,WC84-398,30/09/2017,Childrens,REDACTED,12/09/2017,464.00,76000-TRANSFER PAYMENTS - SOCIAL SERVICES CLIENTS,TRANSITION AND LEAVING CARE,Transfer Payments,Revenue
Walsall Council,http://opendatacommunities.org/id/metropolitan-district-council/walsall,WC84-399,30/09/2017,Childrens,REDACTED,12/09/2017,464.00,76000-TRANSFER PAYMENTS - SOCIAL SERVICES CLIENTS,TRANSITION AND LEAVING CARE,Transfer Payments,Revenue
Walsall Council,http://opendatacommunities.org/id/metropolitan-district-council/walsall,WC84-400,30/09/2017,Childrens,REDACTED,26/09/2017,464.00,76000-TRANSFER PAYMENTS - SOCIAL SERVICES CLIENTS,TRANSITION AND LEAVING CARE,Transfer Payments,Revenue
Walsall Council,http://opendatacommunities.org/id/metropolitan-district-council/walsall,WC84-401,30/09/2017,Childrens,REDACTED,26/09/2017,464.00,76000-TRANSFER PAYMENTS - SOCIAL SERVICES CLIENTS,TRANSITION AND LEAVING CARE,Transfer Payments,Revenue
Walsall Council,http://opendatacommunities.org/id/metropolitan-district-council/walsall,WC84-402,30/09/2017,Economy & Environment,BAART HARRIES NEWALL,11/09/2017,"2,515.50",01002-PROJECT FEES,CFR 632 WALSALL ARBORETUM RESTORATION PROGRAMME,Capital,Capital
Walsall Council,http://opendatacommunities.org/id/metropolitan-district-council/walsall,WC84-403,30/09/2017,Change and Governance,BABINGTON GROUP,06/09/2017,"2,716.67",63000-PROFESSIONAL FEES AND SERVICES,PROCESSING,Supplies & Services,Revenue
Walsall Council,http://opendatacommunities.org/id/metropolitan-district-council/walsall,WC84-404,30/09/2017,Change and Governance,BADENOCH & CLARK 002,20/09/2017,"2,806.95",34305-AGENCY STAFF-EMPLOYEES,CORPORATE MANAGEMENT TEAM,Employees,Revenue
Walsall Council,http://opendatacommunities.org/id/metropolitan-district-council/walsall,WC84-405,30/09/2017,Change and Governance,BADENOCH & CLARK 002,13/09/2017,"5,613.90",34305-AGENCY STAFF-EMPLOYEES,CORPORATE MANAGEMENT TEAM,Employees,Revenue
Walsall Council,http://opendatacommunities.org/id/metropolitan-district-council/walsall,WC84-406,30/09/2017,Adult Social Care,REDACTED,11/09/2017,600.00,76422-DIRECT PAYMENTS TO SOCIAL SERVICES CLIENTS,MH COMMISSIONING,Transfer Payments,Revenue
Walsall Council,http://opendatacommunities.org/id/metropolitan-district-council/walsall,WC84-407,30/09/2017,Adult Social Care,REDACTED,11/09/2017,"4,073.70",76422-DIRECT PAYMENTS TO SOCIAL SERVICES CLIENTS,LD PACKAGE/PLACEMENT COSTS,Transfer Payments,Revenue
Walsall Council,http://opendatacommunities.org/id/metropolitan-district-council/walsall,WC84-408,30/09/2017,Adult Social Care,REDACTED,11/09/2017,"1,000.00",76422-DIRECT PAYMENTS TO SOCIAL SERVICES CLIENTS,OP PACKAGE/PLACEMENT COSTS,Transfer Payments,Revenue
Walsall Council,http://opendatacommunities.org/id/metropolitan-district-council/walsall,WC84-409,30/09/2017,Adult Social Care,REDACTED,11/09/2017,"1,978.58",76422-DIRECT PAYMENTS TO SOCIAL SERVICES CLIENTS,OP PACKAGE/PLACEMENT COSTS,Transfer Payments,Revenue
Walsall Council,http://opendatacommunities.org/id/metropolitan-district-council/walsall,WC84-410,30/09/2017,Childrens,REDACTED,25/09/2017,9.24,60006-NEW-FURNITURE & EQUIPMENT,FAMILY & FRIENDS FOSTER CARE PROVISION,Supplies & Services,Revenue
Walsall Council,http://opendatacommunities.org/id/metropolitan-district-council/walsall,WC84-411,30/09/2017,Childrens,REDACTED,25/09/2017,370.24,74508-INTERNAL FOSTER CARERS-CARER FEES,FAMILY & FRIENDS FOSTER CARE PROVISION,Transfer Payments,Revenue
Walsall Council,http://opendatacommunities.org/id/metropolitan-district-council/walsall,WC84-412,30/09/2017,Childrens,REDACTED,25/09/2017,571.44,74501-MAINTENANCE ALLOWANCE-FOSTER CARERS,FAMILY & FRIENDS FOSTER CARE PROVISION,Transfer Payments,Revenue
Walsall Council,http://opendatacommunities.org/id/metropolitan-district-council/walsall,WC84-413,30/09/2017,Adult Social Care,REDACTED,11/09/2017,"1,062.05",76422-DIRECT PAYMENTS TO SOCIAL SERVICES CLIENTS,OP PACKAGE/PLACEMENT COSTS,Transfer Payments,Revenue
Walsall Council,http://opendatacommunities.org/id/metropolitan-district-council/walsall,WC84-414,30/09/2017,Childrens,BARNARDOS SERVICES LTD,11/09/2017,"3,116.40",74037-INDEPENDENT FOSTER CARE-OTH AGENCY PROVISION,EXTERNAL FOSTER CARE PROVISION,Third Party Payments,Revenue
Walsall Council,http://opendatacommunities.org/id/metropolitan-district-council/walsall,WC84-415,30/09/2017,Childrens,BARNARDOS SERVICES LTD,06/09/2017,"18,000.00",63000-PROFESSIONAL FEES AND SERVICES,ADOPTION TEAM,Supplies & Services,Revenue
Walsall Council,http://opendatacommunities.org/id/metropolitan-district-council/walsall,WC84-416,30/09/2017,Change and Governance,BARNBOROUGH LTD,01/09/2017,-383.70,60007-REPAIR OF EQUIPMENT-EQUIPMENT,CL ADMIN,Supplies & Services,Revenue
Walsall Council,http://opendatacommunities.org/id/metropolitan-district-council/walsall,WC84-417,30/09/2017,Change and Governance,BARNBOROUGH LTD,20/09/2017,383.70,60007-REPAIR OF EQUIPMENT-EQUIPMENT,CL ADMIN,Supplies & Services,Revenue
Walsall Council,http://opendatacommunities.org/id/metropolitan-district-council/walsall,WC84-418,30/09/2017,Adult Social Care,REDACTED,11/09/2017,613.00,76422-DIRECT PAYMENTS TO SOCIAL SERVICES CLIENTS,OP PACKAGE/PLACEMENT COSTS,Transfer Payments,Revenue
Walsall Council,http://opendatacommunities.org/id/metropolitan-district-council/walsall,WC84-419,30/09/2017,Economy & Environment,BAT FABRICATIONS LTD,01/09/2017,220.00,60006-NEW-FURNITURE & EQUIPMENT,INFRASTRUCTURE MAINTENANCE,Supplies & Services,Revenue
Walsall Council,http://opendatacommunities.org/id/metropolitan-district-council/walsall,WC84-420,30/09/2017,Economy & Environment,BAT FABRICATIONS LTD,25/09/2017,360.00,60006-NEW-FURNITURE & EQUIPMENT,INFRASTRUCTURE MAINTENANCE,Supplies & Services,Revenue
Walsall Council,http://opendatacommunities.org/id/metropolitan-district-council/walsall,WC84-421,30/09/2017,Economy & Environment,BAT FABRICATIONS LTD,01/09/2017,900.00,60006-NEW-FURNITURE & EQUIPMENT,INFRASTRUCTURE MAINTENANCE,Supplies & Services,Revenue
Walsall Council,http://opendatacommunities.org/id/metropolitan-district-council/walsall,WC84-422,30/09/2017,Economy & Environment,BAT FABRICATIONS LTD,13/09/2017,"1,770.00",60008-MAINTENANCE-FURNITURE & EQUIPMENT,SECTION 106,Supplies & Services,Revenue
Walsall Council,http://opendatacommunities.org/id/metropolitan-district-council/walsall,WC84-423,30/09/2017,Economy & Environment,BEACON PHARMACY,11/09/2017,317.16,71007-CONTRIBUTION TO PCT,PUBLIC HEALTH BUSINESS SUPPORT,Third Party Payments,Revenue
Walsall Council,http://opendatacommunities.org/id/metropolitan-district-council/walsall,WC84-424,30/09/2017,Childrens,BEADEN POWERLEC LIMITED,14/09/2017,"1,862.00",01017-PURCHASE OF VEHICLES & PLANT,RUSHALL PRIMARY DEV FORMULA CAPITAL,Capital,Capital
Walsall Council,http://opendatacommunities.org/id/metropolitan-district-council/walsall,WC84-425,30/09/2017,Childrens,REDACTED,11/09/2017,9.24,60006-NEW-FURNITURE & EQUIPMENT,INTERNAL FOSTER CARE PROVISION,Supplies & Services,Revenue
Walsall Council,http://opendatacommunities.org/id/metropolitan-district-council/walsall,WC84-426,30/09/2017,Childrens,REDACTED,11/09/2017,530.96,74508-INTERNAL FOSTER CARERS-CARER FEES,INTERNAL FOSTER CARE PROVISION,Transfer Payments,Revenue
Walsall Council,http://opendatacommunities.org/id/metropolitan-district-council/walsall,WC84-427,30/09/2017,Childrens,REDACTED,11/09/2017,650.92,74501-MAINTENANCE ALLOWANCE-FOSTER CARERS,INTERNAL FOSTER CARE PROVISION,Transfer Payments,Revenue
Walsall Council,http://opendatacommunities.org/id/metropolitan-district-council/walsall,WC84-428,30/09/2017,Childrens,BECKYS CHILDMINDING SERVICE,25/09/2017,880.32,66505-OTHER-GRANTS TO OTHER ORGS,EARLY YEARS - 2 YR OLDS,Third Party Payments,Revenue
Walsall Council,http://opendatacommunities.org/id/metropolitan-district-council/walsall,WC84-429,30/09/2017,Childrens,BECKYS CHILDMINDING SERVICE,25/09/2017,"1,344.00",66505-OTHER-GRANTS TO OTHER ORGS,EARLY YEARS - 3 YR OLDS,Third Party Payments,Revenue
Walsall Council,http://opendatacommunities.org/id/metropolitan-district-council/walsall,WC84-430,30/09/2017,Childrens,REDACTED,11/09/2017,9.24,60006-NEW-FURNITURE & EQUIPMENT,INTERNAL FOSTER CARE PROVISION,Supplies & Services,Revenue
Walsall Council,http://opendatacommunities.org/id/metropolitan-district-council/walsall,WC84-431,30/09/2017,Childrens,REDACTED,11/09/2017,530.96,74508-INTERNAL FOSTER CARERS-CARER FEES,INTERNAL FOSTER CARE PROVISION,Transfer Payments,Revenue
Walsall Council,http://opendatacommunities.org/id/metropolitan-district-council/walsall,WC84-432,30/09/2017,Adult Social Care,BELVIDERE COURT,14/09/2017,"1,825.41",73373-RESIDENTIAL & NURSING CARE PLACEMENTS,MH COMMISSIONING,Third Party Payments,Revenue
Walsall Council,http://opendatacommunities.org/id/metropolitan-district-council/walsall,WC84-433,30/09/2017,Adult Social Care,BELVIDERE COURT,14/09/2017,"3,642.86",73373-RESIDENTIAL & NURSING CARE PLACEMENTS,MH COMMISSIONING,Third Party Payments,Revenue
Walsall Council,http://opendatacommunities.org/id/metropolitan-district-council/walsall,WC84-434,30/09/2017,Adult Social Care,REDACTED,11/09/2017,"2,887.50",76422-DIRECT PAYMENTS TO SOCIAL SERVICES CLIENTS,LD PACKAGE/PLACEMENT COSTS,Transfer Payments,Revenue
Walsall Council,http://opendatacommunities.org/id/metropolitan-district-council/walsall,WC84-435,30/09/2017,Childrens,BENJAMIN UK LTD,11/09/2017,"44,425.71",74036-EXTERNAL RESIDENTIAL CARE-OTH AGENCY PROVISION,INDEPENDENT RESIDENTIAL HOMES,Third Party Payments,Revenue
Walsall Council,http://opendatacommunities.org/id/metropolitan-district-council/walsall,WC84-436,30/09/2017,Adult Social Care,BENTLEY COURT PRIORY,14/09/2017,"2,041.20",73373-RESIDENTIAL & NURSING CARE PLACEMENTS,OP PACKAGE/PLACEMENT COSTS,Third Party Payments,Revenue
Walsall Council,http://opendatacommunities.org/id/metropolitan-district-council/walsall,WC84-437,30/09/2017,Adult Social Care,BENTLEY COURT PRIORY,14/09/2017,"2,109.24",73373-RESIDENTIAL & NURSING CARE PLACEMENTS,OP PACKAGE/PLACEMENT COSTS,Third Party Payments,Revenue
Walsall Council,http://opendatacommunities.org/id/metropolitan-district-council/walsall,WC84-438,30/09/2017,Adult Social Care,BENTLEY COURT PRIORY,14/09/2017,"2,109.24",73373-RESIDENTIAL & NURSING CARE PLACEMENTS,OP PACKAGE/PLACEMENT COSTS,Third Party Payments,Revenue
Walsall Council,http://opendatacommunities.org/id/metropolitan-district-council/walsall,WC84-439,30/09/2017,Childrens,BERRY GIFFORD LTD,21/09/2017,"8,956.56",76010-ACCOMMODATION AND RELATED COSTS-ASSISTANCE TO S/S CLIENTS,TRANSITION AND LEAVING CARE,Transfer Payments,Revenue
Walsall Council,http://opendatacommunities.org/id/metropolitan-district-council/walsall,WC84-440,30/09/2017,Childrens,BERRY GIFFORD LTD,21/09/2017,"8,956.56",76010-ACCOMMODATION AND RELATED COSTS-ASSISTANCE TO S/S CLIENTS,TRANSITION AND LEAVING CARE,Transfer Payments,Revenue
Walsall Council,http://opendatacommunities.org/id/metropolitan-district-council/walsall,WC84-441,30/09/2017,Holding Accounts,BERRYMANS LACE MAWER LLP,13/09/2017,839.50,67001-MISC INSURANCES - PAYMENT OF CLAIMS,PUBLIC LIABILITY,Supplies & Services,Revenue
Walsall Council,http://opendatacommunities.org/id/metropolitan-district-council/walsall,WC84-442,30/09/2017,Holding Accounts,BERRYMANS LACE MAWER LLP,13/09/2017,"1,403.00",67001-MISC INSURANCES - PAYMENT OF CLAIMS,PUBLIC LIABILITY,Supplies & Services,Revenue
Walsall Council,http://opendatacommunities.org/id/metropolitan-district-council/walsall,WC84-443,30/09/2017,Adult Social Care,REDACTED,11/09/2017,"1,259.80",76422-DIRECT PAYMENTS TO SOCIAL SERVICES CLIENTS,OP PACKAGE/PLACEMENT COSTS,Transfer Payments,Revenue
Walsall Council,http://opendatacommunities.org/id/metropolitan-district-council/walsall,WC84-444,30/09/2017,Adult Social Care,REDACTED,11/09/2017,"5,239.00",76422-DIRECT PAYMENTS TO SOCIAL SERVICES CLIENTS,OP PACKAGE/PLACEMENT COSTS,Transfer Payments,Revenue
Walsall Council,http://opendatacommunities.org/id/metropolitan-district-council/walsall,WC84-445,30/09/2017,Childrens,REDACTED,11/09/2017,-395.20,74501-MAINTENANCE ALLOWANCE-FOSTER CARERS,INTERNAL FOSTER CARE PROVISION,Transfer Payments,Revenue
Walsall Council,http://opendatacommunities.org/id/metropolitan-district-council/walsall,WC84-446,30/09/2017,Childrens,REDACTED,11/09/2017,9.24,60006-NEW-FURNITURE & EQUIPMENT,INTERNAL FOSTER CARE PROVISION,Supplies & Services,Revenue
Walsall Council,http://opendatacommunities.org/id/metropolitan-district-council/walsall,WC84-447,30/09/2017,Childrens,REDACTED,11/09/2017,571.44,74501-MAINTENANCE ALLOWANCE-FOSTER CARERS,INTERNAL FOSTER CARE PROVISION,Transfer Payments,Revenue
Walsall Council,http://opendatacommunities.org/id/metropolitan-district-council/walsall,WC84-448,30/09/2017,Childrens,REDACTED,11/09/2017,"1,436.08",74508-INTERNAL FOSTER CARERS-CARER FEES,INTERNAL FOSTER CARE PROVISION,Transfer Payments,Revenue
Walsall Council,http://opendatacommunities.org/id/metropolitan-district-council/walsall,WC84-449,30/09/2017,Adult Social Care,REDACTED,11/09/2017,423.15,76422-DIRECT PAYMENTS TO SOCIAL SERVICES CLIENTS,OP PACKAGE/PLACEMENT COSTS,Transfer Payments,Revenue
Walsall Council,http://opendatacommunities.org/id/metropolitan-district-council/walsall,WC84-450,30/09/2017,Adult Social Care,REDACTED,11/09/2017,"1,210.00",76422-DIRECT PAYMENTS TO SOCIAL SERVICES CLIENTS,OP PACKAGE/PLACEMENT COSTS,Transfer Payments,Revenue
Walsall Council,http://opendatacommunities.org/id/metropolitan-district-council/walsall,WC84-451,30/09/2017,Adult Social Care,BESCOT LODGE RESIDENTIAL CARE HOME,19/09/2017,"1,117.14",73373-RESIDENTIAL & NURSING CARE PLACEMENTS,OP PACKAGE/PLACEMENT COSTS,Third Party Payments,Revenue
Walsall Council,http://opendatacommunities.org/id/metropolitan-district-council/walsall,WC84-452,30/09/2017,Adult Social Care,BESCOT LODGE RESIDENTIAL CARE HOME,26/09/2017,"1,715.14",73373-RESIDENTIAL & NURSING CARE PLACEMENTS,LD PACKAGE/PLACEMENT COSTS,Third Party Payments,Revenue
Walsall Council,http://opendatacommunities.org/id/metropolitan-district-council/walsall,WC84-453,30/09/2017,Adult Social Care,BESCOT LODGE RESIDENTIAL CARE HOME,19/09/2017,"1,774.29",73373-RESIDENTIAL & NURSING CARE PLACEMENTS,OP PACKAGE/PLACEMENT COSTS,Third Party Payments,Revenue
Walsall Council,http://opendatacommunities.org/id/metropolitan-district-council/walsall,WC84-454,30/09/2017,Adult Social Care,BESCOT LODGE RESIDENTIAL CARE HOME,26/09/2017,"1,774.29",73373-RESIDENTIAL & NURSING CARE PLACEMENTS,LD PACKAGE/PLACEMENT COSTS,Third Party Payments,Revenue
Walsall Council,http://opendatacommunities.org/id/metropolitan-district-council/walsall,WC84-455,30/09/2017,Adult Social Care,BESCOT LODGE RESIDENTIAL CARE HOME,26/09/2017,"1,833.43",73373-RESIDENTIAL & NURSING CARE PLACEMENTS,LD PACKAGE/PLACEMENT COSTS,Third Party Payments,Revenue
Walsall Council,http://opendatacommunities.org/id/metropolitan-district-council/walsall,WC84-456,30/09/2017,Adult Social Care,BESCOT LODGE RESIDENTIAL CARE HOME,26/09/2017,"1,833.43",73373-RESIDENTIAL & NURSING CARE PLACEMENTS,LD PACKAGE/PLACEMENT COSTS,Third Party Payments,Revenue
Walsall Council,http://opendatacommunities.org/id/metropolitan-district-council/walsall,WC84-457,30/09/2017,Adult Social Care,BESCOT LODGE RESIDENTIAL CARE HOME,26/09/2017,"1,971.01",73373-RESIDENTIAL & NURSING CARE PLACEMENTS,OP PACKAGE/PLACEMENT COSTS,Third Party Payments,Revenue
Walsall Council,http://opendatacommunities.org/id/metropolitan-district-council/walsall,WC84-458,30/09/2017,Adult Social Care,BESCOT LODGE RESIDENTIAL CARE HOME,19/09/2017,"1,971.42",73373-RESIDENTIAL & NURSING CARE PLACEMENTS,OP PACKAGE/PLACEMENT COSTS,Third Party Payments,Revenue
Walsall Council,http://opendatacommunities.org/id/metropolitan-district-council/walsall,WC84-459,30/09/2017,Adult Social Care,BESCOT LODGE RESIDENTIAL CARE HOME,19/09/2017,"2,037.13",73373-RESIDENTIAL & NURSING CARE PLACEMENTS,OP PACKAGE/PLACEMENT COSTS,Third Party Payments,Revenue
Walsall Council,http://opendatacommunities.org/id/metropolitan-district-council/walsall,WC84-460,30/09/2017,Adult Social Care,BESCOT LODGE RESIDENTIAL CARE HOME,19/09/2017,"2,037.14",73373-RESIDENTIAL & NURSING CARE PLACEMENTS,OP PACKAGE/PLACEMENT COSTS,Third Party Payments,Revenue
Walsall Council,http://opendatacommunities.org/id/metropolitan-district-council/walsall,WC84-461,30/09/2017,Adult Social Care,BESCOT LODGE RESIDENTIAL CARE HOME,26/09/2017,"2,190.00",73373-RESIDENTIAL & NURSING CARE PLACEMENTS,OP PACKAGE/PLACEMENT COSTS,Third Party Payments,Revenue
Walsall Council,http://opendatacommunities.org/id/metropolitan-district-council/walsall,WC84-462,30/09/2017,Adult Social Care,BESCOT LODGE RESIDENTIAL CARE HOME,26/09/2017,"2,190.00",73373-RESIDENTIAL & NURSING CARE PLACEMENTS,OP PACKAGE/PLACEMENT COSTS,Third Party Payments,Revenue
Walsall Council,http://opendatacommunities.org/id/metropolitan-district-council/walsall,WC84-463,30/09/2017,Adult Social Care,BESCOT LODGE RESIDENTIAL CARE HOME,26/09/2017,"2,190.00",73373-RESIDENTIAL & NURSING CARE PLACEMENTS,OP PACKAGE/PLACEMENT COSTS,Third Party Payments,Revenue
Walsall Council,http://opendatacommunities.org/id/metropolitan-district-council/walsall,WC84-464,30/09/2017,Economy & Environment,BESCOT STADIUM SUNDAY MARKET LTD,27/09/2017,"2,800.00",73025-PROFESSIONAL SERVICES-PRIV CONTRACTOR & OTHER AGENCIES,WILLENHALL MARKET,Third Party Payments,Revenue
Walsall Council,http://opendatacommunities.org/id/metropolitan-district-council/walsall,WC84-465,30/09/2017,Adult Social Care,BESS CARE LIMITED,27/09/2017,267.50,73372-DOMICILIARY CARE,OP PACKAGE/PLACEMENT COSTS,Third Party Payments,Revenue
Walsall Council,http://opendatacommunities.org/id/metropolitan-district-council/walsall,WC84-466,30/09/2017,Adult Social Care,REDACTED,11/09/2017,"1,186.90",76422-DIRECT PAYMENTS TO SOCIAL SERVICES CLIENTS,MH COMMISSIONING,Transfer Payments,Revenue
Walsall Council,http://opendatacommunities.org/id/metropolitan-district-council/walsall,WC84-467,30/09/2017,Adult Social Care,REDACTED,11/09/2017,"3,459.80",76422-DIRECT PAYMENTS TO SOCIAL SERVICES CLIENTS,OP PACKAGE/PLACEMENT COSTS,Transfer Payments,Revenue
Walsall Council,http://opendatacommunities.org/id/metropolitan-district-council/walsall,WC84-468,30/09/2017,Childrens,BHATIA BEST SOLICITORS,07/09/2017,"70,994.40",73014-LEGAL FEES-PRIV CONTRACTOR FEES,GENERAL MANAGEMENT SUPPORT (INC LEGAL),Third Party Payments,Revenue
Walsall Council,http://opendatacommunities.org/id/metropolitan-district-council/walsall,WC84-469,30/09/2017,Childrens,REDACTED,01/09/2017,456.00,52000-WITH DRIVER-HIRE OF VEHICLES,SCHOOL TRANSPORT,Transport,Revenue
Walsall Council,http://opendatacommunities.org/id/metropolitan-district-council/walsall,WC84-470,30/09/2017,Economy & Environment,BIFFA WASTE SERVICES LTD,25/09/2017,268.00,73029-HAZARDOUS WASTE REMOVAL/DISPOSAL-PRIV CONTRACTOR FEES,WASTE DISPOSAL - RESIDUAL,Third Party Payments,Revenue
Walsall Council,http://opendatacommunities.org/id/metropolitan-district-council/walsall,WC84-471,30/09/2017,Economy & Environment,BIFFA WASTE SERVICES LTD,25/09/2017,418.45,73039-LANDFILL TAX-PRIV CONTRACTOR FEES,WASTE DISPOSAL - RESIDUAL,Third Party Payments,Revenue
Walsall Council,http://opendatacommunities.org/id/metropolitan-district-council/walsall,WC84-472,30/09/2017,Economy & Environment,BIKERIGHT LIMITED,21/09/2017,"3,019.32",60006-NEW-FURNITURE & EQUIPMENT,INSPIRED GENERATIONS (CSAF),Supplies & Services,Revenue
Walsall Council,http://opendatacommunities.org/id/metropolitan-district-council/walsall,WC84-473,30/09/2017,Childrens,REDACTED,11/09/2017,715.00,76422-DIRECT PAYMENTS TO SOCIAL SERVICES CLIENTS,FAMILY SUPPORT - DIRECT PAYMENTS,Transfer Payments,Revenue
Walsall Council,http://opendatacommunities.org/id/metropolitan-district-council/walsall,WC84-474,30/09/2017,Childrens,BIRCHILLS C OF E COMMUNITY ACADEMY,05/09/2017,-273.88,66505-OTHER-GRANTS TO OTHER ORGS,EARLY YEARS - 3 YR OLDS,Third Party Payments,Revenue
Walsall Council,http://opendatacommunities.org/id/metropolitan-district-council/walsall,WC84-475,30/09/2017,Childrens,BIRCHILLS C OF E COMMUNITY ACADEMY,11/09/2017,"39,480.00",66505-OTHER-GRANTS TO OTHER ORGS,EARLY YEARS - 3 YR OLDS,Third Party Payments,Revenue
Walsall Council,http://opendatacommunities.org/id/metropolitan-district-council/walsall,WC84-476,30/09/2017,Childrens,BIRMINGHAM CITY COUNCIL,15/09/2017,500.00,30030-EXTERNAL TRAINING,VIRTUAL SCHOOL CENTRAL PUPIL PREMIUM,Employees,Revenue
Walsall Council,http://opendatacommunities.org/id/metropolitan-district-council/walsall,WC84-477,30/09/2017,Childrens,BIRMINGHAM CITY COUNCIL,11/09/2017,"1,956.16",74037-INDEPENDENT FOSTER CARE-OTH AGENCY PROVISION,EXTERNAL FOSTER CARE PROVISION,Third Party Payments,Revenue
Walsall Council,http://opendatacommunities.org/id/metropolitan-district-council/walsall,WC84-478,30/09/2017,Economy & Environment,BLACK COUNTRY CONSORTIUM LIMITED,25/09/2017,"83,486.65",01045-PRIVATE GRANTS,CFR 1072 CAPITALISATION OF PROJECT OFFICER COSTS,Capital,Capital
Walsall Council,http://opendatacommunities.org/id/metropolitan-district-council/walsall,WC84-479,30/09/2017,Change and Governance,BLACK COUNTRY FOOD BANK,07/09/2017,"11,600.00",66500-GRANTS TO OTHER ORGS,WALSALL CRISIS SUPPORT SCHEME,Third Party Payments,Revenue
Walsall Council,http://opendatacommunities.org/id/metropolitan-district-council/walsall,WC84-480,30/09/2017,Childrens,BLAKENALL HEATH JMI SCHOOL,08/09/2017,"97,351.61",77300-ISB-FORMULA ALLOCATION,BLAKENALL HEATH JUNIOR SCHOOL,Transfer Payments,Revenue
Walsall Council,http://opendatacommunities.org/id/metropolitan-district-council/walsall,WC84-481,30/09/2017,Childrens,BLOXWICH ACADEMY,11/09/2017,"39,480.00",66505-OTHER-GRANTS TO OTHER ORGS,EARLY YEARS - 3 YR OLDS,Third Party Payments,Revenue
Walsall Council,http://opendatacommunities.org/id/metropolitan-district-council/walsall,WC84-482,30/09/2017,Adult Social Care,BLOXWICH COMMUNITY PARTNERSHIP.,01/09/2017,310.00,73372-DOMICILIARY CARE,OP PACKAGE/PLACEMENT COSTS,Third Party Payments,Revenue
Walsall Council,http://opendatacommunities.org/id/metropolitan-district-council/walsall,WC84-483,30/09/2017,Childrens,BLOXWICH COMMUNITY PARTNERSHIP.,06/09/2017,"6,881.18",66500-GRANTS TO OTHER ORGS,TARGETED YOUTH WORK - COMMISSIONED,Third Party Payments,Revenue
Walsall Council,http://opendatacommunities.org/id/metropolitan-district-council/walsall,WC84-484,30/09/2017,Childrens,BLOXWICH COMMUNITY PARTNERSHIP.,26/09/2017,"6,881.18",66500-GRANTS TO OTHER ORGS,TARGETED YOUTH WORK - COMMISSIONED,Third Party Payments,Revenue
Walsall Council,http://opendatacommunities.org/id/metropolitan-district-council/walsall,WC84-485,30/09/2017,Change and Governance,BLOXWICH COMMUNITY PARTNERSHIP.,01/09/2017,"7,333.33",66500-GRANTS TO OTHER ORGS,BLOXWICH COMMUNITY PARTNERSHIP,Third Party Payments,Revenue
Walsall Council,http://opendatacommunities.org/id/metropolitan-district-council/walsall,WC84-486,30/09/2017,Childrens,BLUE GIRAFFE CHILDCARE,01/09/2017,"3,360.00",66505-OTHER-GRANTS TO OTHER ORGS,EARLY YEARS - 3 YR OLDS,Third Party Payments,Revenue
Walsall Council,http://opendatacommunities.org/id/metropolitan-district-council/walsall,WC84-487,30/09/2017,Childrens,BLUE GIRAFFE CHILDCARE,01/09/2017,"7,923.20",66505-OTHER-GRANTS TO OTHER ORGS,EARLY YEARS - 2 YR OLDS,Third Party Payments,Revenue
Walsall Council,http://opendatacommunities.org/id/metropolitan-district-council/walsall,WC84-488,30/09/2017,Childrens,BLUE GIRAFFE CHILDCARE,25/09/2017,"10,752.00",66505-OTHER-GRANTS TO OTHER ORGS,EARLY YEARS - 3 YR OLDS,Third Party Payments,Revenue
Walsall Council,http://opendatacommunities.org/id/metropolitan-district-council/walsall,WC84-489,30/09/2017,Adult Social Care,BOLDMERE COURT CARE HOME,26/09/2017,"2,142.60",73373-RESIDENTIAL & NURSING CARE PLACEMENTS,OP PACKAGE/PLACEMENT COSTS,Third Party Payments,Revenue
Walsall Council,http://opendatacommunities.org/id/metropolitan-district-council/walsall,WC84-490,30/09/2017,Economy & Environment,BOLINDA UK LTD,20/09/2017,607.78,60501-LIBRARY BOOKS,LIBRARY STOCK AND PERFORMANCE,Supplies & Services,Revenue
Walsall Council,http://opendatacommunities.org/id/metropolitan-district-council/walsall,WC84-491,30/09/2017,Economy & Environment,BOLINDA UK LTD,25/09/2017,893.32,60501-LIBRARY BOOKS,LIBRARY STOCK AND PERFORMANCE,Supplies & Services,Revenue
Walsall Council,http://opendatacommunities.org/id/metropolitan-district-council/walsall,WC84-492,30/09/2017,Economy & Environment,BONINGALE NURSERIES,25/09/2017,"1,295.00",60500-GENERAL MATERIALS,COUNTRYSIDE MANAGEMENT-OTHER,Supplies & Services,Revenue
Walsall Council,http://opendatacommunities.org/id/metropolitan-district-council/walsall,WC84-493,30/09/2017,Economy & Environment,BOOKS ASIA,01/09/2017,261.14,60501-LIBRARY BOOKS,LIBRARY STOCK AND PERFORMANCE,Supplies & Services,Revenue
Walsall Council,http://opendatacommunities.org/id/metropolitan-district-council/walsall,WC84-494,30/09/2017,Economy & Environment,BOOKS ASIA,01/09/2017,295.12,60501-LIBRARY BOOKS,LIBRARY STOCK AND PERFORMANCE,Supplies & Services,Revenue
Walsall Council,http://opendatacommunities.org/id/metropolitan-district-council/walsall,WC84-495,30/09/2017,Economy & Environment,BOOKS ASIA,01/09/2017,347.26,60501-LIBRARY BOOKS,LIBRARY STOCK AND PERFORMANCE,Supplies & Services,Revenue
Walsall Council,http://opendatacommunities.org/id/metropolitan-district-council/walsall,WC84-496,30/09/2017,Adult Social Care,BOWDEN DERRA PARK,19/09/2017,"10,502.76",73373-RESIDENTIAL & NURSING CARE PLACEMENTS,LD PACKAGE/PLACEMENT COSTS,Third Party Payments,Revenue
Walsall Council,http://opendatacommunities.org/id/metropolitan-district-council/walsall,WC84-497,30/09/2017,Change and Governance,BPP PROFESSIONAL EDUCATION,07/09/2017,397.68,30030-EXTERNAL TRAINING,FINANCE,Employees,Revenue
Walsall Council,http://opendatacommunities.org/id/metropolitan-district-council/walsall,WC84-498,30/09/2017,Change and Governance,BPP PROFESSIONAL EDUCATION,18/09/2017,"1,280.97",30030-EXTERNAL TRAINING,FINANCE,Employees,Revenue
Walsall Council,http://opendatacommunities.org/id/metropolitan-district-council/walsall,WC84-499,30/09/2017,Economy & Environment,BRADVALE LTD T/A INSPIRE HEALTHCARE SERVICES,25/09/2017,"1,827.95",73025-PROFESSIONAL SERVICES-PRIV CONTRACTOR & OTHER AGENCIES,DEPOT,Third Party Payments,Revenue
Walsall Council,http://opendatacommunities.org/id/metropolitan-district-council/walsall,WC84-500,30/09/2017,Adult Social Care,BRAIN INJURY REHABILITATION TRUST,14/09/2017,322.00,73373-RESIDENTIAL & NURSING CARE PLACEMENTS,LD PACKAGE/PLACEMENT COSTS,Third Party Payments,Revenue
Walsall Council,http://opendatacommunities.org/id/metropolitan-district-council/walsall,WC84-501,30/09/2017,Adult Social Care,BRAIN INJURY REHABILITATION TRUST,26/09/2017,"1,080.00",73373-RESIDENTIAL & NURSING CARE PLACEMENTS,LD PACKAGE/PLACEMENT COSTS,Third Party Payments,Revenue
Walsall Council,http://opendatacommunities.org/id/metropolitan-district-council/walsall,WC84-502,30/09/2017,Adult Social Care,BRAIN INJURY REHABILITATION TRUST,26/09/2017,"6,480.00",73373-RESIDENTIAL & NURSING CARE PLACEMENTS,LD PACKAGE/PLACEMENT COSTS,Third Party Payments,Revenue
Walsall Council,http://opendatacommunities.org/id/metropolitan-district-council/walsall,WC84-503,30/09/2017,Adult Social Care,BRAIN INJURY REHABILITATION TRUST,26/09/2017,"6,552.00",73373-RESIDENTIAL & NURSING CARE PLACEMENTS,LD PACKAGE/PLACEMENT COSTS,Third Party Payments,Revenue
Walsall Council,http://opendatacommunities.org/id/metropolitan-district-council/walsall,WC84-504,30/09/2017,Adult Social Care,BRAIN INJURY REHABILITATION TRUST,26/09/2017,"7,560.00",73373-RESIDENTIAL & NURSING CARE PLACEMENTS,LD PACKAGE/PLACEMENT COSTS,Third Party Payments,Revenue
Walsall Council,http://opendatacommunities.org/id/metropolitan-district-council/walsall,WC84-505,30/09/2017,Adult Social Care,BRAIN INJURY REHABILITATION TRUST,14/09/2017,"9,660.00",73373-RESIDENTIAL & NURSING CARE PLACEMENTS,LD PACKAGE/PLACEMENT COSTS,Third Party Payments,Revenue
Walsall Council,http://opendatacommunities.org/id/metropolitan-district-council/walsall,WC84-506,30/09/2017,Adult Social Care,BRAIN INJURY REHABILITATION TRUST,14/09/2017,"9,660.00",73373-RESIDENTIAL & NURSING CARE PLACEMENTS,LD PACKAGE/PLACEMENT COSTS,Third Party Payments,Revenue
Walsall Council,http://opendatacommunities.org/id/metropolitan-district-council/walsall,WC84-507,30/09/2017,Adult Social Care,BRAIN INJURY REHABILITATION TRUST,14/09/2017,"9,982.00",73373-RESIDENTIAL & NURSING CARE PLACEMENTS,LD PACKAGE/PLACEMENT COSTS,Third Party Payments,Revenue
Walsall Council,http://opendatacommunities.org/id/metropolitan-district-council/walsall,WC84-508,30/09/2017,Adult Social Care,BRAMBLES RESIDENTIAL CARE HOME,14/09/2017,"2,065.72",73373-RESIDENTIAL & NURSING CARE PLACEMENTS,MH COMMISSIONING,Third Party Payments,Revenue
Walsall Council,http://opendatacommunities.org/id/metropolitan-district-council/walsall,WC84-509,30/09/2017,Childrens,BRANAS ISAF PERSONAL DEVELOPMENT CENTRE LTD,11/09/2017,"18,000.00",74036-EXTERNAL RESIDENTIAL CARE-OTH AGENCY PROVISION,INDEPENDENT RESIDENTIAL HOMES,Third Party Payments,Revenue
Walsall Council,http://opendatacommunities.org/id/metropolitan-district-council/walsall,WC84-510,30/09/2017,Change and Governance,BRELMAYNE LTD,15/09/2017,450.00,60006-NEW-FURNITURE & EQUIPMENT,CA BUSILL JONES PRIMARY SCHOOL,Supplies & Services,Revenue
Walsall Council,http://opendatacommunities.org/id/metropolitan-district-council/walsall,WC84-511,30/09/2017,Childrens,BRELMAYNE LTD,15/09/2017,"17,976.00",01006-SITE WORKS MAIN CONTRACTORS,CFR 1193 VARIOUS - KITCHEN VENTILATION UPGRADES,Capital,Capital
Walsall Council,http://opendatacommunities.org/id/metropolitan-district-council/walsall,WC84-512,30/09/2017,Childrens,BRELMAYNE LTD,20/09/2017,"23,896.00",01006-SITE WORKS MAIN CONTRACTORS,CFR 1193 VARIOUS - KITCHEN VENTILATION UPGRADES,Capital,Capital
Walsall Council,http://opendatacommunities.org/id/metropolitan-district-council/walsall,WC84-513,30/09/2017,Adult Social Care,REDACTED,11/09/2017,550.00,76422-DIRECT PAYMENTS TO SOCIAL SERVICES CLIENTS,LD PACKAGE/PLACEMENT COSTS,Transfer Payments,Revenue
Walsall Council,http://opendatacommunities.org/id/metropolitan-district-council/walsall,WC84-514,30/09/2017,Adult Social Care,REDACTED,11/09/2017,441.90,76422-DIRECT PAYMENTS TO SOCIAL SERVICES CLIENTS,OP PACKAGE/PLACEMENT COSTS,Transfer Payments,Revenue
Walsall Council,http://opendatacommunities.org/id/metropolitan-district-council/walsall,WC84-515,30/09/2017,Childrens,REDACTED,11/09/2017,9.24,60006-NEW-FURNITURE & EQUIPMENT,INTERNAL FOSTER CARE PROVISION,Supplies & Services,Revenue
Walsall Council,http://opendatacommunities.org/id/metropolitan-district-council/walsall,WC84-516,30/09/2017,Childrens,REDACTED,11/09/2017,810.32,74501-MAINTENANCE ALLOWANCE-FOSTER CARERS,INTERNAL FOSTER CARE PROVISION,Transfer Payments,Revenue
Walsall Council,http://opendatacommunities.org/id/metropolitan-district-council/walsall,WC84-517,30/09/2017,Childrens,REDACTED,11/09/2017,810.32,74501-MAINTENANCE ALLOWANCE-FOSTER CARERS,INTERNAL FOSTER CARE PROVISION,Transfer Payments,Revenue
Walsall Council,http://opendatacommunities.org/id/metropolitan-district-council/walsall,WC84-518,30/09/2017,Childrens,REDACTED,11/09/2017,"1,436.08",74508-INTERNAL FOSTER CARERS-CARER FEES,INTERNAL FOSTER CARE PROVISION,Transfer Payments,Revenue
Walsall Council,http://opendatacommunities.org/id/metropolitan-district-council/walsall,WC84-519,30/09/2017,Economy & Environment,BRENNTAG UK LIMITED,21/09/2017,766.00,50301-FUEL-TRANSPORT RUN COSTS,FUEL STOCK ACCOUNT,Transport,Revenue
Walsall Council,http://opendatacommunities.org/id/metropolitan-district-council/walsall,WC84-520,30/09/2017,Adult Social Care,REDACTED,19/09/2017,"1,337.64",73374-SUPPORTED & OTHER ACCOMMODATION,LD PACKAGE/PLACEMENT COSTS,Third Party Payments,Revenue
Walsall Council,http://opendatacommunities.org/id/metropolitan-district-council/walsall,WC84-521,30/09/2017,Adult Social Care,REDACTED,19/09/2017,"1,597.60",73374-SUPPORTED & OTHER ACCOMMODATION,LD PACKAGE/PLACEMENT COSTS,Third Party Payments,Revenue
Walsall Council,http://opendatacommunities.org/id/metropolitan-district-council/walsall,WC84-522,30/09/2017,Adult Social Care,REDACTED,11/09/2017,"2,158.00",76422-DIRECT PAYMENTS TO SOCIAL SERVICES CLIENTS,OP PACKAGE/PLACEMENT COSTS,Transfer Payments,Revenue
Walsall Council,http://opendatacommunities.org/id/metropolitan-district-council/walsall,WC84-523,30/09/2017,Adult Social Care,REDACTED,11/09/2017,922.50,76422-DIRECT PAYMENTS TO SOCIAL SERVICES CLIENTS,OP PACKAGE/PLACEMENT COSTS,Transfer Payments,Revenue
Walsall Council,http://opendatacommunities.org/id/metropolitan-district-council/walsall,WC84-524,30/09/2017,Economy & Environment,BRIAR ASSOCIATES,21/09/2017,500.00,73025-PROFESSIONAL SERVICES-PRIV CONTRACTOR & OTHER AGENCIES,ASSET MANAGEMENT,Third Party Payments,Revenue
Walsall Council,http://opendatacommunities.org/id/metropolitan-district-council/walsall,WC84-525,30/09/2017,Economy & Environment,BRITANNIA APPRENTICESHIPS LTD,20/09/2017,750.00,66500-GRANTS TO OTHER ORGS,RES-WALSALL WORKS,Third Party Payments,Revenue
Walsall Council,http://opendatacommunities.org/id/metropolitan-district-council/walsall,WC84-526,30/09/2017,Economy & Environment,BRITANNIA APPRENTICESHIPS LTD,25/09/2017,"1,500.00",66500-GRANTS TO OTHER ORGS,RES-WALSALL WORKS,Third Party Payments,Revenue
Walsall Council,http://opendatacommunities.org/id/metropolitan-district-council/walsall,WC84-527,30/09/2017,Change and Governance,BRITISH GAS BUSINESS,25/09/2017,"-4,258.68",42000-GAS-ENERGY COSTS,REDUNDANT BUILDINGS,Premises,Revenue
Walsall Council,http://opendatacommunities.org/id/metropolitan-district-council/walsall,WC84-528,30/09/2017,Change and Governance,BRITISH GAS BUSINESS,06/09/2017,"-2,279.53",42000-GAS-ENERGY COSTS,CENTRALISED ENERGY,Premises,Revenue
Walsall Council,http://opendatacommunities.org/id/metropolitan-district-council/walsall,WC84-529,30/09/2017,Change and Governance,BRITISH GAS BUSINESS,25/09/2017,"-2,243.84",42000-GAS-ENERGY COSTS,REDUNDANT BUILDINGS,Premises,Revenue
Walsall Council,http://opendatacommunities.org/id/metropolitan-district-council/walsall,WC84-530,30/09/2017,Change and Governance,BRITISH GAS BUSINESS,25/09/2017,"-1,609.56",42000-GAS-ENERGY COSTS,CENTRALISED ENERGY,Premises,Revenue
Walsall Council,http://opendatacommunities.org/id/metropolitan-district-council/walsall,WC84-531,30/09/2017,Change and Governance,BRITISH GAS BUSINESS,06/09/2017,"-1,270.08",42000-GAS-ENERGY COSTS,RECHARGEABLE UTILITIES,Premises,Revenue
Walsall Council,http://opendatacommunities.org/id/metropolitan-district-council/walsall,WC84-532,30/09/2017,Change and Governance,BRITISH GAS BUSINESS,25/09/2017,-772.98,42000-GAS-ENERGY COSTS,REDUNDANT BUILDINGS,Premises,Revenue
Walsall Council,http://opendatacommunities.org/id/metropolitan-district-council/walsall,WC84-533,30/09/2017,Change and Governance,BRITISH GAS BUSINESS,25/09/2017,-772.98,42000-GAS-ENERGY COSTS,REDUNDANT BUILDINGS,Premises,Revenue
Walsall Council,http://opendatacommunities.org/id/metropolitan-district-council/walsall,WC84-534,30/09/2017,Change and Governance,BRITISH GAS BUSINESS,25/09/2017,-748.05,42000-GAS-ENERGY COSTS,REDUNDANT BUILDINGS,Premises,Revenue
Walsall Council,http://opendatacommunities.org/id/metropolitan-district-council/walsall,WC84-535,30/09/2017,Change and Governance,BRITISH GAS BUSINESS,07/09/2017,-527.01,42000-GAS-ENERGY COSTS,CENTRALISED ENERGY,Premises,Revenue
Walsall Council,http://opendatacommunities.org/id/metropolitan-district-council/walsall,WC84-536,30/09/2017,Change and Governance,BRITISH GAS BUSINESS,25/09/2017,-514.12,42000-GAS-ENERGY COSTS,CENTRALISED ENERGY,Premises,Revenue
Walsall Council,http://opendatacommunities.org/id/metropolitan-district-council/walsall,WC84-537,30/09/2017,Change and Governance,BRITISH GAS BUSINESS,22/09/2017,-444.48,42000-GAS-ENERGY COSTS,CENTRALISED ENERGY,Premises,Revenue
Walsall Council,http://opendatacommunities.org/id/metropolitan-district-council/walsall,WC84-538,30/09/2017,Change and Governance,BRITISH GAS BUSINESS,25/09/2017,-438.55,42000-GAS-ENERGY COSTS,CENTRALISED ENERGY,Premises,Revenue
Walsall Council,http://opendatacommunities.org/id/metropolitan-district-council/walsall,WC84-539,30/09/2017,Change and Governance,BRITISH GAS BUSINESS,07/09/2017,-280.52,42000-GAS-ENERGY COSTS,CENTRALISED ENERGY,Premises,Revenue
Walsall Council,http://opendatacommunities.org/id/metropolitan-district-council/walsall,WC84-540,30/09/2017,Change and Governance,BRITISH GAS BUSINESS,22/09/2017,227.37,42000-GAS-ENERGY COSTS,REDUNDANT BUILDINGS,Premises,Revenue
Walsall Council,http://opendatacommunities.org/id/metropolitan-district-council/walsall,WC84-541,30/09/2017,Change and Governance,BRITISH GAS BUSINESS,22/09/2017,229.11,42000-GAS-ENERGY COSTS,REDUNDANT BUILDINGS,Premises,Revenue
Walsall Council,http://opendatacommunities.org/id/metropolitan-district-council/walsall,WC84-542,30/09/2017,Change and Governance,BRITISH GAS BUSINESS,25/09/2017,262.37,42000-GAS-ENERGY COSTS,CENTRALISED ENERGY,Premises,Revenue
Walsall Council,http://opendatacommunities.org/id/metropolitan-district-council/walsall,WC84-543,30/09/2017,Change and Governance,BRITISH GAS BUSINESS,22/09/2017,270.08,42000-GAS-ENERGY COSTS,REDUNDANT BUILDINGS,Premises,Revenue
Walsall Council,http://opendatacommunities.org/id/metropolitan-district-council/walsall,WC84-544,30/09/2017,Change and Governance,BRITISH GAS BUSINESS,22/09/2017,289.41,42000-GAS-ENERGY COSTS,REDUNDANT BUILDINGS,Premises,Revenue
Walsall Council,http://opendatacommunities.org/id/metropolitan-district-council/walsall,WC84-545,30/09/2017,Change and Governance,BRITISH GAS BUSINESS,22/09/2017,318.98,42000-GAS-ENERGY COSTS,REDUNDANT BUILDINGS,Premises,Revenue
Walsall Council,http://opendatacommunities.org/id/metropolitan-district-council/walsall,WC84-546,30/09/2017,Change and Governance,BRITISH GAS BUSINESS,22/09/2017,321.55,42000-GAS-ENERGY COSTS,REDUNDANT BUILDINGS,Premises,Revenue
Walsall Council,http://opendatacommunities.org/id/metropolitan-district-council/walsall,WC84-547,30/09/2017,Change and Governance,BRITISH GAS BUSINESS,22/09/2017,491.13,42000-GAS-ENERGY COSTS,REDUNDANT BUILDINGS,Premises,Revenue
Walsall Council,http://opendatacommunities.org/id/metropolitan-district-council/walsall,WC84-548,30/09/2017,Change and Governance,BRITISH GAS BUSINESS,07/09/2017,527.01,42000-GAS-ENERGY COSTS,CENTRALISED ENERGY,Premises,Revenue
Walsall Council,http://opendatacommunities.org/id/metropolitan-district-council/walsall,WC84-549,30/09/2017,Change and Governance,BRITISH GAS BUSINESS,06/09/2017,"1,412.71",42000-GAS-ENERGY COSTS,RECHARGEABLE UTILITIES,Premises,Revenue
Walsall Council,http://opendatacommunities.org/id/metropolitan-district-council/walsall,WC84-550,30/09/2017,Change and Governance,BRITISH GAS BUSINESS,06/09/2017,"1,609.56",42000-GAS-ENERGY COSTS,CENTRALISED ENERGY,Premises,Revenue
Walsall Council,http://opendatacommunities.org/id/metropolitan-district-council/walsall,WC84-551,30/09/2017,Change and Governance,BRITISH GAS BUSINESS,25/09/2017,"4,258.68",42000-GAS-ENERGY COSTS,REDUNDANT BUILDINGS,Premises,Revenue
Walsall Council,http://opendatacommunities.org/id/metropolitan-district-council/walsall,WC84-552,30/09/2017,Change and Governance,BRITISH GAS BUSINESS,25/09/2017,"5,624.98",42000-GAS-ENERGY COSTS,REDUNDANT BUILDINGS,Premises,Revenue
Walsall Council,http://opendatacommunities.org/id/metropolitan-district-council/walsall,WC84-553,30/09/2017,Change and Governance,BRITISH GAS BUSINESS,25/09/2017,"11,146.88",42000-GAS-ENERGY COSTS,CENTRALISED ENERGY,Premises,Revenue
Walsall Council,http://opendatacommunities.org/id/metropolitan-district-council/walsall,WC84-554,30/09/2017,Change and Governance,BRITISH TELECOMMUNICATIONS LTD,06/09/2017,712.00,63603-COST OF CALLS-TELEPHONES,PROCESSING,Supplies & Services,Revenue
Walsall Council,http://opendatacommunities.org/id/metropolitan-district-council/walsall,WC84-555,30/09/2017,Childrens,BROADLAND GROUP LTD,01/09/2017,725.00,01006-SITE WORKS MAIN CONTRACTORS,CFR 1193 BLACKWOOD PRIMARY - FLAT ROOFING PHASE 1 OF 4,Capital,Capital
Walsall Council,http://opendatacommunities.org/id/metropolitan-district-council/walsall,WC84-556,30/09/2017,Childrens,BROADLAND GROUP LTD,01/09/2017,"1,450.00",01006-SITE WORKS MAIN CONTRACTORS,CFR 1193 VARIOUS - KITCHEN VENTILATION UPGRADES,Capital,Capital
Walsall Council,http://opendatacommunities.org/id/metropolitan-district-council/walsall,WC84-557,30/09/2017,Adult Social Care,BROADWAY HALLS CARE HOME,26/09/2017,"1,992.86",73373-RESIDENTIAL & NURSING CARE PLACEMENTS,OP PACKAGE/PLACEMENT COSTS,Third Party Payments,Revenue
Walsall Council,http://opendatacommunities.org/id/metropolitan-district-council/walsall,WC84-558,30/09/2017,Childrens,BROWNHILLS ASPHALT & TARMAC LIMITED,06/09/2017,875.00,"40000-REPAIRS,ALTERATIONS & MAINTENANCE-PREM",LOCALITY FAMILY SUPPORT-WEST,Premises,Revenue
Walsall Council,http://opendatacommunities.org/id/metropolitan-district-council/walsall,WC84-559,30/09/2017,Economy & Environment,BROWNHILLS ASPHALT & TARMAC LIMITED,07/09/2017,"1,850.00",73025-PROFESSIONAL SERVICES-PRIV CONTRACTOR & OTHER AGENCIES,SHOPS AND COMMERCIAL PREMISES,Third Party Payments,Revenue
Walsall Council,http://opendatacommunities.org/id/metropolitan-district-council/walsall,WC84-560,30/09/2017,Childrens,BROWNHILLS ASPHALT & TARMAC LIMITED,14/09/2017,"12,689.48",01006-SITE WORKS MAIN CONTRACTORS,LOWER FARM DEV FORMULA CAPITAL,Capital,Capital
Walsall Council,http://opendatacommunities.org/id/metropolitan-district-council/walsall,WC84-561,30/09/2017,Childrens,BROWNHILLS ASPHALT & TARMAC LIMITED,07/09/2017,"19,750.00",01006-SITE WORKS MAIN CONTRACTORS,CFR 1193 LINDENS PRIMARY ROOFING & ASPHALT WORKS - FINAL STAGE,Capital,Capital
Walsall Council,http://opendatacommunities.org/id/metropolitan-district-council/walsall,WC84-562,30/09/2017,Childrens,BROWNHILLS COMMUNITY ASSOCIATION,01/09/2017,"5,376.00",66505-OTHER-GRANTS TO OTHER ORGS,EARLY YEARS - 3 YR OLDS,Third Party Payments,Revenue
Walsall Council,http://opendatacommunities.org/id/metropolitan-district-council/walsall,WC84-563,30/09/2017,Change and Governance,BROWNHILLS COMMUNITY ASSOCIATION,01/09/2017,"7,333.33",66500-GRANTS TO OTHER ORGS,BROWNHILLS COMMUNITY ASSOCIATION,Third Party Payments,Revenue
Walsall Council,http://opendatacommunities.org/id/metropolitan-district-council/walsall,WC84-564,30/09/2017,Childrens,BROWNHILLS COMMUNITY ASSOCIATION,01/09/2017,"13,204.80",66505-OTHER-GRANTS TO OTHER ORGS,EARLY YEARS - 2 YR OLDS,Third Party Payments,Revenue
Walsall Council,http://opendatacommunities.org/id/metropolitan-district-council/walsall,WC84-565,30/09/2017,Adult Social Care,REDACTED,11/09/2017,"1,912.50",76422-DIRECT PAYMENTS TO SOCIAL SERVICES CLIENTS,LD PACKAGE/PLACEMENT COSTS,Transfer Payments,Revenue
Walsall Council,http://opendatacommunities.org/id/metropolitan-district-council/walsall,WC84-566,30/09/2017,Economy & Environment,REDACTED,11/09/2017,600.00,"62521-INTERPRETATION,TRANSLATION & HUMAN AIDS TO TRANSCRIPTION",NAG - TEMPORARY EXHIBITIONS,Supplies & Services,Revenue
Walsall Council,http://opendatacommunities.org/id/metropolitan-district-council/walsall,WC84-567,30/09/2017,Economy & Environment,REDACTED,27/09/2017,600.00,63000-PROFESSIONAL FEES AND SERVICES,PHOTOGRAPHY EXHIBITION NO. 2 WSA,Supplies & Services,Revenue
Walsall Council,http://opendatacommunities.org/id/metropolitan-district-council/walsall,WC84-568,30/09/2017,Childrens,REDACTED,11/09/2017,"18,768.00",74036-EXTERNAL RESIDENTIAL CARE-OTH AGENCY PROVISION,INDEPENDENT RESIDENTIAL HOMES,Third Party Payments,Revenue
Walsall Council,http://opendatacommunities.org/id/metropolitan-district-council/walsall,WC84-569,30/09/2017,Childrens,BT PLC,25/09/2017,488.02,63602-COST OF RENTAL-TELEPHONES,LOCALITY FAMILY SUPPORT-CENTRAL & EAST,Supplies & Services,Revenue
Walsall Council,http://opendatacommunities.org/id/metropolitan-district-council/walsall,WC84-570,30/09/2017,Change and Governance,BT PLC,04/09/2017,"1,268.35",63601-COSTS (NOT INTERNAL RECHARGES)-TELEPHONES,RECHARGEABLE EQUIPMENT,Supplies & Services,Revenue
Walsall Council,http://opendatacommunities.org/id/metropolitan-district-council/walsall,WC84-571,30/09/2017,Change and Governance,BT PLC,25/09/2017,"1,268.35",63601-COSTS (NOT INTERNAL RECHARGES)-TELEPHONES,RECHARGEABLE EQUIPMENT,Supplies & Services,Revenue
Walsall Council,http://opendatacommunities.org/id/metropolitan-district-council/walsall,WC84-572,30/09/2017,Change and Governance,BT PLC,14/09/2017,"2,213.40",63601-COSTS (NOT INTERNAL RECHARGES)-TELEPHONES,CENTRAL COMMUNICATIONS RECHARGES,Supplies & Services,Revenue
Walsall Council,http://opendatacommunities.org/id/metropolitan-district-council/walsall,WC84-573,30/09/2017,Change and Governance,BT PLC,04/09/2017,"15,245.03",63601-COSTS (NOT INTERNAL RECHARGES)-TELEPHONES,CENTRAL COMMUNICATIONS RECHARGES,Supplies & Services,Revenue
Walsall Council,http://opendatacommunities.org/id/metropolitan-district-council/walsall,WC84-574,30/09/2017,Change and Governance,BT PLC,27/09/2017,"15,822.61",63601-COSTS (NOT INTERNAL RECHARGES)-TELEPHONES,CENTRAL COMMUNICATIONS RECHARGES,Supplies & Services,Revenue
Walsall Council,http://opendatacommunities.org/id/metropolitan-district-council/walsall,WC84-575,30/09/2017,Change and Governance,BUDDI LIMITED,04/09/2017,400.00,60008-MAINTENANCE-FURNITURE & EQUIPMENT,PCC PROBATION (BUDDI GPS),Supplies & Services,Revenue
Walsall Council,http://opendatacommunities.org/id/metropolitan-district-council/walsall,WC84-576,30/09/2017,Adult Social Care,BUNZIL HEALTHCARE T/A CARESHOP,27/09/2017,65.31,60000-FURNITURE & EQUIPMENT,REABLEMENT TEAM - HOLLY BANK,Supplies & Services,Revenue
Walsall Council,http://opendatacommunities.org/id/metropolitan-district-council/walsall,WC84-577,30/09/2017,Adult Social Care,BUNZIL HEALTHCARE T/A CARESHOP,25/09/2017,282.73,60539-CLEANING MATERIALS,REABLEMENT TEAM - HOLLY BANK,Supplies & Services,Revenue
Walsall Council,http://opendatacommunities.org/id/metropolitan-district-council/walsall,WC84-578,30/09/2017,Adult Social Care,BUNZIL HEALTHCARE T/A CARESHOP,27/09/2017,764.84,60539-CLEANING MATERIALS,REABLEMENT TEAM - HOLLY BANK,Supplies & Services,Revenue
Walsall Council,http://opendatacommunities.org/id/metropolitan-district-council/walsall,WC84-579,30/09/2017,Adult Social Care,BUNZIL HEALTHCARE T/A CARESHOP,27/09/2017,948.96,60539-CLEANING MATERIALS,REABLEMENT TEAM - HOLLY BANK,Supplies & Services,Revenue
Walsall Council,http://opendatacommunities.org/id/metropolitan-district-council/walsall,WC84-580,30/09/2017,Adult Social Care,BUPA NURSING HOMES-ANVILLE CT,11/09/2017,"-3,321.43",73373-RESIDENTIAL & NURSING CARE PLACEMENTS,MH COMMISSIONING,Third Party Payments,Revenue
Walsall Council,http://opendatacommunities.org/id/metropolitan-district-council/walsall,WC84-581,30/09/2017,Adult Social Care,BUPA NURSING HOMES-ANVILLE CT,26/09/2017,383.75,73373-RESIDENTIAL & NURSING CARE PLACEMENTS,PD PACKAGE/PLACEMENT COSTS,Third Party Payments,Revenue
Walsall Council,http://opendatacommunities.org/id/metropolitan-district-council/walsall,WC84-582,30/09/2017,Adult Social Care,BUPA NURSING HOMES-ANVILLE CT,26/09/2017,767.50,73373-RESIDENTIAL & NURSING CARE PLACEMENTS,PD PACKAGE/PLACEMENT COSTS,Third Party Payments,Revenue
Walsall Council,http://opendatacommunities.org/id/metropolitan-district-council/walsall,WC84-583,30/09/2017,Adult Social Care,BUSH HOME LTD,05/09/2017,"1,656.00",73373-RESIDENTIAL & NURSING CARE PLACEMENTS,OP PACKAGE/PLACEMENT COSTS,Third Party Payments,Revenue
Walsall Council,http://opendatacommunities.org/id/metropolitan-district-council/walsall,WC84-584,30/09/2017,Adult Social Care,BUSH HOME LTD,05/09/2017,"1,656.00",73373-RESIDENTIAL & NURSING CARE PLACEMENTS,OP PACKAGE/PLACEMENT COSTS,Third Party Payments,Revenue
Walsall Council,http://opendatacommunities.org/id/metropolitan-district-council/walsall,WC84-585,30/09/2017,Adult Social Care,BUSH HOME LTD,05/09/2017,"1,656.00",73373-RESIDENTIAL & NURSING CARE PLACEMENTS,OP PACKAGE/PLACEMENT COSTS,Third Party Payments,Revenue
Walsall Council,http://opendatacommunities.org/id/metropolitan-district-council/walsall,WC84-586,30/09/2017,Adult Social Care,BUSH HOME LTD,05/09/2017,"1,656.00",73373-RESIDENTIAL & NURSING CARE PLACEMENTS,OP PACKAGE/PLACEMENT COSTS,Third Party Payments,Revenue
Walsall Council,http://opendatacommunities.org/id/metropolitan-district-council/walsall,WC84-587,30/09/2017,Adult Social Care,BUSH HOME LTD,05/09/2017,"1,656.00",73373-RESIDENTIAL & NURSING CARE PLACEMENTS,OP PACKAGE/PLACEMENT COSTS,Third Party Payments,Revenue
Walsall Council,http://opendatacommunities.org/id/metropolitan-district-council/walsall,WC84-588,30/09/2017,Adult Social Care,BUSH HOME LTD,05/09/2017,"1,657.29",73373-RESIDENTIAL & NURSING CARE PLACEMENTS,OP PACKAGE/PLACEMENT COSTS,Third Party Payments,Revenue
Walsall Council,http://opendatacommunities.org/id/metropolitan-district-council/walsall,WC84-589,30/09/2017,Adult Social Care,BUSH HOME LTD,05/09/2017,"1,658.57",73373-RESIDENTIAL & NURSING CARE PLACEMENTS,OP PACKAGE/PLACEMENT COSTS,Third Party Payments,Revenue
Walsall Council,http://opendatacommunities.org/id/metropolitan-district-council/walsall,WC84-590,30/09/2017,Adult Social Care,BUSH HOME LTD,05/09/2017,"1,840.00",73373-RESIDENTIAL & NURSING CARE PLACEMENTS,OP PACKAGE/PLACEMENT COSTS,Third Party Payments,Revenue
Walsall Council,http://opendatacommunities.org/id/metropolitan-district-council/walsall,WC84-591,30/09/2017,Adult Social Care,BUSH HOME LTD,05/09/2017,"1,840.00",73373-RESIDENTIAL & NURSING CARE PLACEMENTS,OP PACKAGE/PLACEMENT COSTS,Third Party Payments,Revenue
Walsall Council,http://opendatacommunities.org/id/metropolitan-district-council/walsall,WC84-592,30/09/2017,Adult Social Care,BUSH HOME LTD,05/09/2017,"1,840.00",73373-RESIDENTIAL & NURSING CARE PLACEMENTS,OP PACKAGE/PLACEMENT COSTS,Third Party Payments,Revenue
Walsall Council,http://opendatacommunities.org/id/metropolitan-district-council/walsall,WC84-593,30/09/2017,Adult Social Care,BUSH HOME LTD,05/09/2017,"1,840.00",73373-RESIDENTIAL & NURSING CARE PLACEMENTS,OP PACKAGE/PLACEMENT COSTS,Third Party Payments,Revenue
Walsall Council,http://opendatacommunities.org/id/metropolitan-district-council/walsall,WC84-594,30/09/2017,Adult Social Care,BUSH HOME LTD,05/09/2017,"1,840.00",73373-RESIDENTIAL & NURSING CARE PLACEMENTS,OP PACKAGE/PLACEMENT COSTS,Third Party Payments,Revenue
Walsall Council,http://opendatacommunities.org/id/metropolitan-district-council/walsall,WC84-595,30/09/2017,Adult Social Care,BUSH HOME LTD,05/09/2017,"1,840.00",73373-RESIDENTIAL & NURSING CARE PLACEMENTS,OP PACKAGE/PLACEMENT COSTS,Third Party Payments,Revenue
Walsall Council,http://opendatacommunities.org/id/metropolitan-district-council/walsall,WC84-596,30/09/2017,Adult Social Care,BUSH HOME LTD,05/09/2017,"1,840.00",73373-RESIDENTIAL & NURSING CARE PLACEMENTS,MH COMMISSIONING,Third Party Payments,Revenue
Walsall Council,http://opendatacommunities.org/id/metropolitan-district-council/walsall,WC84-597,30/09/2017,Adult Social Care,BUSH HOME LTD,05/09/2017,"1,840.00",73373-RESIDENTIAL & NURSING CARE PLACEMENTS,OP PACKAGE/PLACEMENT COSTS,Third Party Payments,Revenue
Walsall Council,http://opendatacommunities.org/id/metropolitan-district-council/walsall,WC84-598,30/09/2017,Adult Social Care,BUSH HOME LTD,05/09/2017,"1,840.00",73373-RESIDENTIAL & NURSING CARE PLACEMENTS,OP PACKAGE/PLACEMENT COSTS,Third Party Payments,Revenue
Walsall Council,http://opendatacommunities.org/id/metropolitan-district-council/walsall,WC84-599,30/09/2017,Adult Social Care,BUSH HOME LTD,05/09/2017,"1,840.00",73373-RESIDENTIAL & NURSING CARE PLACEMENTS,OP PACKAGE/PLACEMENT COSTS,Third Party Payments,Revenue
Walsall Council,http://opendatacommunities.org/id/metropolitan-district-council/walsall,WC84-600,30/09/2017,Adult Social Care,BUSH HOME LTD,05/09/2017,"1,840.00",73373-RESIDENTIAL & NURSING CARE PLACEMENTS,MH COMMISSIONING,Third Party Payments,Revenue
Walsall Council,http://opendatacommunities.org/id/metropolitan-district-council/walsall,WC84-601,30/09/2017,Adult Social Care,BUSH HOME LTD,14/09/2017,"1,840.00",73373-RESIDENTIAL & NURSING CARE PLACEMENTS,OP PACKAGE/PLACEMENT COSTS,Third Party Payments,Revenue
Walsall Council,http://opendatacommunities.org/id/metropolitan-district-council/walsall,WC84-602,30/09/2017,Adult Social Care,BUSH HOME LTD,05/09/2017,"1,840.28",73373-RESIDENTIAL & NURSING CARE PLACEMENTS,OP PACKAGE/PLACEMENT COSTS,Third Party Payments,Revenue
Walsall Council,http://opendatacommunities.org/id/metropolitan-district-council/walsall,WC84-603,30/09/2017,Adult Social Care,BUSH HOME LTD,05/09/2017,"1,892.57",73373-RESIDENTIAL & NURSING CARE PLACEMENTS,PD PACKAGE/PLACEMENT COSTS,Third Party Payments,Revenue
Walsall Council,http://opendatacommunities.org/id/metropolitan-district-council/walsall,WC84-604,30/09/2017,Adult Social Care,BUSH HOME LTD,05/09/2017,"3,276.00",73373-RESIDENTIAL & NURSING CARE PLACEMENTS,OP PACKAGE/PLACEMENT COSTS,Third Party Payments,Revenue
Walsall Council,http://opendatacommunities.org/id/metropolitan-district-council/walsall,WC84-605,30/09/2017,Adult Social Care,BUSH HOME LTD,05/09/2017,"3,471.43",73373-RESIDENTIAL & NURSING CARE PLACEMENTS,OP PACKAGE/PLACEMENT COSTS,Third Party Payments,Revenue
Walsall Council,http://opendatacommunities.org/id/metropolitan-district-council/walsall,WC84-606,30/09/2017,Childrens,BUSY BEES CHILDCARE LTD,01/09/2017,"1,760.80",66505-OTHER-GRANTS TO OTHER ORGS,EARLY YEARS - 2 YR OLDS,Third Party Payments,Revenue
Walsall Council,http://opendatacommunities.org/id/metropolitan-district-council/walsall,WC84-607,30/09/2017,Childrens,BUSY BEES CHILDCARE LTD,25/09/2017,"3,136.00",66505-OTHER-GRANTS TO OTHER ORGS,EARLY YEARS - 3 YR OLDS,Third Party Payments,Revenue
Walsall Council,http://opendatacommunities.org/id/metropolitan-district-council/walsall,WC84-608,30/09/2017,Childrens,BUSY BEES CHILDCARE LTD,01/09/2017,"6,048.00",66505-OTHER-GRANTS TO OTHER ORGS,EARLY YEARS - 3 YR OLDS,Third Party Payments,Revenue
Walsall Council,http://opendatacommunities.org/id/metropolitan-district-council/walsall,WC84-609,30/09/2017,Economy & Environment,BUXTONS LTD,21/09/2017,310.06,41001-GROUNDS MAINTENANCE,ARBORETUM,Premises,Revenue
Walsall Council,http://opendatacommunities.org/id/metropolitan-district-council/walsall,WC84-610,30/09/2017,Childrens,BY THE BRIDGE,11/09/2017,"2,846.20",74037-INDEPENDENT FOSTER CARE-OTH AGENCY PROVISION,EXTERNAL FOSTER CARE PROVISION,Third Party Payments,Revenue
Walsall Council,http://opendatacommunities.org/id/metropolitan-district-council/walsall,WC84-611,30/09/2017,Childrens,BY THE BRIDGE,11/09/2017,"2,976.00",74037-INDEPENDENT FOSTER CARE-OTH AGENCY PROVISION,EXTERNAL FOSTER CARE PROVISION,Third Party Payments,Revenue
Walsall Council,http://opendatacommunities.org/id/metropolitan-district-council/walsall,WC84-612,30/09/2017,Adult Social Care,C & V ORCHARD MANOR LTD,26/09/2017,"1,620.00",73373-RESIDENTIAL & NURSING CARE PLACEMENTS,LD PACKAGE/PLACEMENT COSTS,Third Party Payments,Revenue
Walsall Council,http://opendatacommunities.org/id/metropolitan-district-council/walsall,WC84-613,30/09/2017,Adult Social Care,C & V ORCHARD MANOR LTD,26/09/2017,"1,620.00",73373-RESIDENTIAL & NURSING CARE PLACEMENTS,OP PACKAGE/PLACEMENT COSTS,Third Party Payments,Revenue
Walsall Council,http://opendatacommunities.org/id/metropolitan-district-council/walsall,WC84-614,30/09/2017,Adult Social Care,C & V ORCHARD MANOR LTD,26/09/2017,"1,620.00",73373-RESIDENTIAL & NURSING CARE PLACEMENTS,OP PACKAGE/PLACEMENT COSTS,Third Party Payments,Revenue
Walsall Council,http://opendatacommunities.org/id/metropolitan-district-council/walsall,WC84-615,30/09/2017,Adult Social Care,C & V ORCHARD MANOR LTD,26/09/2017,"1,620.00",73373-RESIDENTIAL & NURSING CARE PLACEMENTS,MH COMMISSIONING,Third Party Payments,Revenue
Walsall Council,http://opendatacommunities.org/id/metropolitan-district-council/walsall,WC84-616,30/09/2017,Adult Social Care,C & V ORCHARD MANOR LTD,26/09/2017,"1,620.00",73373-RESIDENTIAL & NURSING CARE PLACEMENTS,MH COMMISSIONING,Third Party Payments,Revenue
Walsall Council,http://opendatacommunities.org/id/metropolitan-district-council/walsall,WC84-617,30/09/2017,Adult Social Care,C & V ORCHARD MANOR LTD,26/09/2017,"1,620.00",73373-RESIDENTIAL & NURSING CARE PLACEMENTS,MH COMMISSIONING,Third Party Payments,Revenue
Walsall Council,http://opendatacommunities.org/id/metropolitan-district-council/walsall,WC84-618,30/09/2017,Adult Social Care,C & V ORCHARD MANOR LTD,26/09/2017,"1,800.00",73373-RESIDENTIAL & NURSING CARE PLACEMENTS,OP PACKAGE/PLACEMENT COSTS,Third Party Payments,Revenue
Walsall Council,http://opendatacommunities.org/id/metropolitan-district-council/walsall,WC84-619,30/09/2017,Adult Social Care,C & V ORCHARD MANOR LTD,26/09/2017,"1,800.00",73373-RESIDENTIAL & NURSING CARE PLACEMENTS,OP PACKAGE/PLACEMENT COSTS,Third Party Payments,Revenue
Walsall Council,http://opendatacommunities.org/id/metropolitan-district-council/walsall,WC84-620,30/09/2017,Adult Social Care,C & V ORCHARD MANOR LTD,26/09/2017,"1,800.00",73373-RESIDENTIAL & NURSING CARE PLACEMENTS,OP PACKAGE/PLACEMENT COSTS,Third Party Payments,Revenue
Walsall Council,http://opendatacommunities.org/id/metropolitan-district-council/walsall,WC84-621,30/09/2017,Adult Social Care,C & V ORCHARD MANOR LTD,26/09/2017,"1,800.00",73373-RESIDENTIAL & NURSING CARE PLACEMENTS,MH COMMISSIONING,Third Party Payments,Revenue
Walsall Council,http://opendatacommunities.org/id/metropolitan-district-council/walsall,WC84-622,30/09/2017,Adult Social Care,C & V ORCHARD MANOR LTD,26/09/2017,"1,800.00",73373-RESIDENTIAL & NURSING CARE PLACEMENTS,MH COMMISSIONING,Third Party Payments,Revenue
Walsall Council,http://opendatacommunities.org/id/metropolitan-district-council/walsall,WC84-623,30/09/2017,Adult Social Care,C & V ORCHARD MANOR LTD,26/09/2017,"1,800.00",73373-RESIDENTIAL & NURSING CARE PLACEMENTS,OP PACKAGE/PLACEMENT COSTS,Third Party Payments,Revenue
Walsall Council,http://opendatacommunities.org/id/metropolitan-district-council/walsall,WC84-624,30/09/2017,Adult Social Care,C & V ORCHARD MANOR LTD,26/09/2017,"1,800.00",73373-RESIDENTIAL & NURSING CARE PLACEMENTS,OP PACKAGE/PLACEMENT COSTS,Third Party Payments,Revenue
Walsall Council,http://opendatacommunities.org/id/metropolitan-district-council/walsall,WC84-625,30/09/2017,Adult Social Care,C & V ORCHARD RESIDENTIAL LTD,26/09/2017,"1,620.00",73373-RESIDENTIAL & NURSING CARE PLACEMENTS,OP PACKAGE/PLACEMENT COSTS,Third Party Payments,Revenue
Walsall Council,http://opendatacommunities.org/id/metropolitan-district-council/walsall,WC84-626,30/09/2017,Adult Social Care,C & V ORCHARD RESIDENTIAL LTD,26/09/2017,"1,620.00",73373-RESIDENTIAL & NURSING CARE PLACEMENTS,OP PACKAGE/PLACEMENT COSTS,Third Party Payments,Revenue
Walsall Council,http://opendatacommunities.org/id/metropolitan-district-council/walsall,WC84-627,30/09/2017,Adult Social Care,C & V ORCHARD RESIDENTIAL LTD,26/09/2017,"1,620.00",73373-RESIDENTIAL & NURSING CARE PLACEMENTS,OP PACKAGE/PLACEMENT COSTS,Third Party Payments,Revenue
Walsall Council,http://opendatacommunities.org/id/metropolitan-district-council/walsall,WC84-628,30/09/2017,Adult Social Care,C & V ORCHARD RESIDENTIAL LTD,26/09/2017,"1,620.00",73373-RESIDENTIAL & NURSING CARE PLACEMENTS,OP PACKAGE/PLACEMENT COSTS,Third Party Payments,Revenue
Walsall Council,http://opendatacommunities.org/id/metropolitan-district-council/walsall,WC84-629,30/09/2017,Adult Social Care,C & V ORCHARD RESIDENTIAL LTD,26/09/2017,"1,620.00",73373-RESIDENTIAL & NURSING CARE PLACEMENTS,OP PACKAGE/PLACEMENT COSTS,Third Party Payments,Revenue
Walsall Council,http://opendatacommunities.org/id/metropolitan-district-council/walsall,WC84-630,30/09/2017,Adult Social Care,C & V ORCHARD RESIDENTIAL LTD,26/09/2017,"1,620.00",73373-RESIDENTIAL & NURSING CARE PLACEMENTS,OP PACKAGE/PLACEMENT COSTS,Third Party Payments,Revenue
Walsall Council,http://opendatacommunities.org/id/metropolitan-district-council/walsall,WC84-631,30/09/2017,Adult Social Care,C & V ORCHARD RESIDENTIAL LTD,26/09/2017,"1,800.00",73373-RESIDENTIAL & NURSING CARE PLACEMENTS,OP PACKAGE/PLACEMENT COSTS,Third Party Payments,Revenue
Walsall Council,http://opendatacommunities.org/id/metropolitan-district-council/walsall,WC84-632,30/09/2017,Adult Social Care,C & V ORCHARD RESIDENTIAL LTD,26/09/2017,"1,800.00",73373-RESIDENTIAL & NURSING CARE PLACEMENTS,OP PACKAGE/PLACEMENT COSTS,Third Party Payments,Revenue
Walsall Council,http://opendatacommunities.org/id/metropolitan-district-council/walsall,WC84-633,30/09/2017,Adult Social Care,C & V ORCHARD RESIDENTIAL LTD,26/09/2017,"1,800.00",73373-RESIDENTIAL & NURSING CARE PLACEMENTS,OP PACKAGE/PLACEMENT COSTS,Third Party Payments,Revenue
Walsall Council,http://opendatacommunities.org/id/metropolitan-district-council/walsall,WC84-634,30/09/2017,Adult Social Care,C & V ORCHARD RESIDENTIAL LTD,26/09/2017,"1,800.00",73373-RESIDENTIAL & NURSING CARE PLACEMENTS,OP PACKAGE/PLACEMENT COSTS,Third Party Payments,Revenue
Walsall Council,http://opendatacommunities.org/id/metropolitan-district-council/walsall,WC84-635,30/09/2017,Adult Social Care,C & V ORCHARD RESIDENTIAL LTD,26/09/2017,"1,800.00",73373-RESIDENTIAL & NURSING CARE PLACEMENTS,OP PACKAGE/PLACEMENT COSTS,Third Party Payments,Revenue
Walsall Council,http://opendatacommunities.org/id/metropolitan-district-council/walsall,WC84-636,30/09/2017,Adult Social Care,C & V ORCHARD RESIDENTIAL LTD,26/09/2017,"1,800.00",73373-RESIDENTIAL & NURSING CARE PLACEMENTS,OP PACKAGE/PLACEMENT COSTS,Third Party Payments,Revenue
Walsall Council,http://opendatacommunities.org/id/metropolitan-district-council/walsall,WC84-637,30/09/2017,Adult Social Care,C & V ORCHARD RESIDENTIAL LTD,26/09/2017,"1,800.00",73373-RESIDENTIAL & NURSING CARE PLACEMENTS,OP PACKAGE/PLACEMENT COSTS,Third Party Payments,Revenue
Walsall Council,http://opendatacommunities.org/id/metropolitan-district-council/walsall,WC84-638,30/09/2017,Adult Social Care,C & V ORCHARD RESIDENTIAL LTD,26/09/2017,"1,800.00",73373-RESIDENTIAL & NURSING CARE PLACEMENTS,OP PACKAGE/PLACEMENT COSTS,Third Party Payments,Revenue
Walsall Council,http://opendatacommunities.org/id/metropolitan-district-council/walsall,WC84-639,30/09/2017,Adult Social Care,C & V ORCHARD RESIDENTIAL LTD,26/09/2017,"1,800.00",73373-RESIDENTIAL & NURSING CARE PLACEMENTS,MH COMMISSIONING,Third Party Payments,Revenue
Walsall Council,http://opendatacommunities.org/id/metropolitan-district-council/walsall,WC84-640,30/09/2017,Economy & Environment,C ART ART TRANSPORT LTD,13/09/2017,345.00,73032-TRANSPORTATION-PRIV CONTRACTOR FEES,EXHIBITIONS - SPECIAL PROJECTS/PARTNERSHIPS,Third Party Payments,Revenue
Walsall Council,http://opendatacommunities.org/id/metropolitan-district-council/walsall,WC84-641,30/09/2017,Economy & Environment,C ART ART TRANSPORT LTD,25/09/2017,345.00,73032-TRANSPORTATION-PRIV CONTRACTOR FEES,PHOTOGRAPHY EXHIBITION NO. 2 WSA,Third Party Payments,Revenue
Walsall Council,http://opendatacommunities.org/id/metropolitan-district-council/walsall,WC84-642,30/09/2017,Economy & Environment,C ART ART TRANSPORT LTD,25/09/2017,907.00,73032-TRANSPORTATION-PRIV CONTRACTOR FEES,PHOTOGRAPHY EXHIBITION NO. 2 WSA,Third Party Payments,Revenue
Walsall Council,http://opendatacommunities.org/id/metropolitan-district-council/walsall,WC84-643,30/09/2017,Economy & Environment,C ART ART TRANSPORT LTD,25/09/2017,"1,095.00",73032-TRANSPORTATION-PRIV CONTRACTOR FEES,PHOTOGRAPHY EXHIBITION NO. 2 WSA,Third Party Payments,Revenue
Walsall Council,http://opendatacommunities.org/id/metropolitan-district-council/walsall,WC84-644,30/09/2017,Childrens,REDACTED,11/09/2017,9.24,60006-NEW-FURNITURE & EQUIPMENT,INTERNAL FOSTER CARE PROVISION,Supplies & Services,Revenue
Walsall Council,http://opendatacommunities.org/id/metropolitan-district-council/walsall,WC84-645,30/09/2017,Childrens,REDACTED,11/09/2017,101.29,74503-BIRTHDAY ALLOWANCE-FOSTER CARERS,INTERNAL FOSTER CARE PROVISION,Transfer Payments,Revenue
Walsall Council,http://opendatacommunities.org/id/metropolitan-district-council/walsall,WC84-646,30/09/2017,Childrens,REDACTED,11/09/2017,810.32,74501-MAINTENANCE ALLOWANCE-FOSTER CARERS,INTERNAL FOSTER CARE PROVISION,Transfer Payments,Revenue
Walsall Council,http://opendatacommunities.org/id/metropolitan-district-council/walsall,WC84-647,30/09/2017,Childrens,REDACTED,11/09/2017,810.32,74501-MAINTENANCE ALLOWANCE-FOSTER CARERS,INTERNAL FOSTER CARE PROVISION,Transfer Payments,Revenue
Walsall Council,http://opendatacommunities.org/id/metropolitan-district-council/walsall,WC84-648,30/09/2017,Childrens,REDACTED,11/09/2017,810.32,74501-MAINTENANCE ALLOWANCE-FOSTER CARERS,INTERNAL FOSTER CARE PROVISION,Transfer Payments,Revenue
Walsall Council,http://opendatacommunities.org/id/metropolitan-district-council/walsall,WC84-649,30/09/2017,Childrens,REDACTED,11/09/2017,810.32,74501-MAINTENANCE ALLOWANCE-FOSTER CARERS,INTERNAL FOSTER CARE PROVISION,Transfer Payments,Revenue
Walsall Council,http://opendatacommunities.org/id/metropolitan-district-council/walsall,WC84-650,30/09/2017,Childrens,REDACTED,11/09/2017,985.76,74501-MAINTENANCE ALLOWANCE-FOSTER CARERS,INTERNAL FOSTER CARE PROVISION,Transfer Payments,Revenue
Walsall Council,http://opendatacommunities.org/id/metropolitan-district-council/walsall,WC84-651,30/09/2017,Childrens,REDACTED,11/09/2017,985.76,74501-MAINTENANCE ALLOWANCE-FOSTER CARERS,INTERNAL FOSTER CARE PROVISION,Transfer Payments,Revenue
Walsall Council,http://opendatacommunities.org/id/metropolitan-district-council/walsall,WC84-652,30/09/2017,Childrens,REDACTED,11/09/2017,"4,308.40",74508-INTERNAL FOSTER CARERS-CARER FEES,INTERNAL FOSTER CARE PROVISION,Transfer Payments,Revenue
Walsall Council,http://opendatacommunities.org/id/metropolitan-district-council/walsall,WC84-653,30/09/2017,Childrens,REDACTED,11/09/2017,9.24,60006-NEW-FURNITURE & EQUIPMENT,INTERNAL FOSTER CARE PROVISION,Supplies & Services,Revenue
Walsall Council,http://opendatacommunities.org/id/metropolitan-district-council/walsall,WC84-654,30/09/2017,Childrens,REDACTED,11/09/2017,810.32,74501-MAINTENANCE ALLOWANCE-FOSTER CARERS,INTERNAL FOSTER CARE PROVISION,Transfer Payments,Revenue
Walsall Council,http://opendatacommunities.org/id/metropolitan-district-council/walsall,WC84-655,30/09/2017,Childrens,REDACTED,11/09/2017,810.32,74501-MAINTENANCE ALLOWANCE-FOSTER CARERS,INTERNAL FOSTER CARE PROVISION,Transfer Payments,Revenue
Walsall Council,http://opendatacommunities.org/id/metropolitan-district-council/walsall,WC84-656,30/09/2017,Childrens,REDACTED,11/09/2017,"1,436.08",74508-INTERNAL FOSTER CARERS-CARER FEES,INTERNAL FOSTER CARE PROVISION,Transfer Payments,Revenue
Walsall Council,http://opendatacommunities.org/id/metropolitan-district-council/walsall,WC84-657,30/09/2017,Economy & Environment,C P DAVIDSON & SONS LTD,28/09/2017,439.65,60514-MATERIALS TO STORES,FLEET PARTS STOCK ACCOUNT,Supplies & Services,Revenue
Walsall Council,http://opendatacommunities.org/id/metropolitan-district-council/walsall,WC84-658,30/09/2017,Economy & Environment,C P DAVIDSON & SONS LTD,13/09/2017,"9,139.23",73025-PROFESSIONAL SERVICES-PRIV CONTRACTOR & OTHER AGENCIES,FLEET,Third Party Payments,Revenue
Walsall Council,http://opendatacommunities.org/id/metropolitan-district-council/walsall,WC84-659,30/09/2017,Childrens,REDACTED,25/09/2017,650.92,74501-MAINTENANCE ALLOWANCE-FOSTER CARERS,FAMILY & FRIENDS FOSTER CARE PROVISION,Transfer Payments,Revenue
Walsall Council,http://opendatacommunities.org/id/metropolitan-district-council/walsall,WC84-660,30/09/2017,Childrens,REDACTED,25/09/2017,650.92,74501-MAINTENANCE ALLOWANCE-FOSTER CARERS,FAMILY & FRIENDS FOSTER CARE PROVISION,Transfer Payments,Revenue
Walsall Council,http://opendatacommunities.org/id/metropolitan-district-council/walsall,WC84-661,30/09/2017,Childrens,CACI  LIMITED,11/09/2017,"10,981.94",63114-OTHER FEES & LICENCES-SERVICES-FEES,YOUTH JUSTICE SERVICE,Supplies & Services,Revenue
Walsall Council,http://opendatacommunities.org/id/metropolitan-district-council/walsall,WC84-662,30/09/2017,Change and Governance,CADENT GAS LTD,19/09/2017,277.00,42000-GAS-ENERGY COSTS,REDUNDANT BUILDINGS,Premises,Revenue
Walsall Council,http://opendatacommunities.org/id/metropolitan-district-council/walsall,WC84-663,30/09/2017,Adult Social Care,CALDENE  REST HOME,19/09/2017,"1,656.00",73373-RESIDENTIAL & NURSING CARE PLACEMENTS,OP PACKAGE/PLACEMENT COSTS,Third Party Payments,Revenue
Walsall Council,http://opendatacommunities.org/id/metropolitan-district-council/walsall,WC84-664,30/09/2017,Adult Social Care,CALDMORE AREA HOUSING ASS LTD,14/09/2017,"3,166.30",73373-RESIDENTIAL & NURSING CARE PLACEMENTS,MH COMMISSIONING,Third Party Payments,Revenue
Walsall Council,http://opendatacommunities.org/id/metropolitan-district-council/walsall,WC84-665,30/09/2017,Adult Social Care,CALDMORE AREA HOUSING ASS LTD,14/09/2017,"3,166.30",73373-RESIDENTIAL & NURSING CARE PLACEMENTS,MH COMMISSIONING,Third Party Payments,Revenue
Walsall Council,http://opendatacommunities.org/id/metropolitan-district-council/walsall,WC84-666,30/09/2017,Adult Social Care,CALDMORE AREA HOUSING ASS LTD,14/09/2017,"3,166.30",73373-RESIDENTIAL & NURSING CARE PLACEMENTS,MH COMMISSIONING,Third Party Payments,Revenue
Walsall Council,http://opendatacommunities.org/id/metropolitan-district-council/walsall,WC84-667,30/09/2017,Adult Social Care,CALDMORE AREA HOUSING ASS LTD,14/09/2017,"3,166.30",73373-RESIDENTIAL & NURSING CARE PLACEMENTS,MH COMMISSIONING,Third Party Payments,Revenue
Walsall Council,http://opendatacommunities.org/id/metropolitan-district-council/walsall,WC84-668,30/09/2017,Adult Social Care,CALDMORE AREA HOUSING ASS LTD,14/09/2017,"3,166.30",73373-RESIDENTIAL & NURSING CARE PLACEMENTS,MH COMMISSIONING,Third Party Payments,Revenue
Walsall Council,http://opendatacommunities.org/id/metropolitan-district-council/walsall,WC84-669,30/09/2017,Adult Social Care,CALDMORE AREA HOUSING ASS LTD,14/09/2017,"3,166.30",73373-RESIDENTIAL & NURSING CARE PLACEMENTS,MH COMMISSIONING,Third Party Payments,Revenue
Walsall Council,http://opendatacommunities.org/id/metropolitan-district-council/walsall,WC84-670,30/09/2017,Adult Social Care,CALDMORE AREA HOUSING ASS LTD,14/09/2017,"3,166.30",73373-RESIDENTIAL & NURSING CARE PLACEMENTS,MH COMMISSIONING,Third Party Payments,Revenue
Walsall Council,http://opendatacommunities.org/id/metropolitan-district-council/walsall,WC84-671,30/09/2017,Childrens,CALDMORE PRIMARY ACADEMY,11/09/2017,"29,400.00",66505-OTHER-GRANTS TO OTHER ORGS,EARLY YEARS - 3 YR OLDS,Third Party Payments,Revenue
Walsall Council,http://opendatacommunities.org/id/metropolitan-district-council/walsall,WC84-672,30/09/2017,Childrens,REDACTED,25/09/2017,375.88,74510-RESIDENTS ORDERS,ADOPTION ALLOWANCES,Third Party Payments,Revenue
Walsall Council,http://opendatacommunities.org/id/metropolitan-district-council/walsall,WC84-673,30/09/2017,Adult Social Care,REDACTED,11/09/2017,"1,462.75",76422-DIRECT PAYMENTS TO SOCIAL SERVICES CLIENTS,LD PACKAGE/PLACEMENT COSTS,Transfer Payments,Revenue
Walsall Council,http://opendatacommunities.org/id/metropolitan-district-council/walsall,WC84-674,30/09/2017,Childrens,CAMBIAN CHILDCARE LIMITED,13/09/2017,"4,307.13",74036-EXTERNAL RESIDENTIAL CARE-OTH AGENCY PROVISION,INDEPENDENT RESIDENTIAL HOMES,Third Party Payments,Revenue
Walsall Council,http://opendatacommunities.org/id/metropolitan-district-council/walsall,WC84-675,30/09/2017,Childrens,CAMBIAN CHILDCARE LIMITED,11/09/2017,"13,400.00",74036-EXTERNAL RESIDENTIAL CARE-OTH AGENCY PROVISION,INDEPENDENT RESIDENTIAL HOMES,Third Party Payments,Revenue
Walsall Council,http://opendatacommunities.org/id/metropolitan-district-council/walsall,WC84-676,30/09/2017,Childrens,CAMBIAN CHILDCARE LIMITED,13/09/2017,"14,835.67",74036-EXTERNAL RESIDENTIAL CARE-OTH AGENCY PROVISION,INDEPENDENT RESIDENTIAL HOMES,Third Party Payments,Revenue
Walsall Council,http://opendatacommunities.org/id/metropolitan-district-council/walsall,WC84-677,30/09/2017,Childrens,CAMBIAN CHILDCARE LIMITED,11/09/2017,"19,200.00",74036-EXTERNAL RESIDENTIAL CARE-OTH AGENCY PROVISION,INDEPENDENT RESIDENTIAL HOMES,Third Party Payments,Revenue
Walsall Council,http://opendatacommunities.org/id/metropolitan-district-council/walsall,WC84-678,30/09/2017,Childrens,REDACTED,07/09/2017,650.00,76002-SUPPORT UNDER SECTION 23 OF THE CHILDRENS ACT,LOOKED AFTER CHILDRENS SOCIAL WORK TEAM,Third Party Payments,Revenue
Walsall Council,http://opendatacommunities.org/id/metropolitan-district-council/walsall,WC84-679,30/09/2017,Leasing,CAPITA TREASURY SOLUTIONS LIMITED,18/09/2017,"6,790.33",01018-VEHICLES LEASING,VEHICLE MAINTENANCE VEHICLES,Capital,Capital
Walsall Council,http://opendatacommunities.org/id/metropolitan-district-council/walsall,WC84-680,30/09/2017,Childrens,CAPSTONE FOSTER CARE (SOUTH EAST) LIMITED,11/09/2017,"-1,047.87",74037-INDEPENDENT FOSTER CARE-OTH AGENCY PROVISION,EXTERNAL FOSTER CARE PROVISION,Third Party Payments,Revenue
Walsall Council,http://opendatacommunities.org/id/metropolitan-district-council/walsall,WC84-681,30/09/2017,Childrens,CAPSTONE FOSTER CARE (SOUTH EAST) LIMITED,11/09/2017,"2,855.68",74037-INDEPENDENT FOSTER CARE-OTH AGENCY PROVISION,EXTERNAL FOSTER CARE PROVISION,Third Party Payments,Revenue
Walsall Council,http://opendatacommunities.org/id/metropolitan-district-council/walsall,WC84-682,30/09/2017,Childrens,CAPSTONE FOSTER CARE (SOUTH EAST) LIMITED,11/09/2017,"3,005.64",74037-INDEPENDENT FOSTER CARE-OTH AGENCY PROVISION,EXTERNAL FOSTER CARE PROVISION,Third Party Payments,Revenue
Walsall Council,http://opendatacommunities.org/id/metropolitan-district-council/walsall,WC84-683,30/09/2017,Childrens,CAPSTONE FOSTER CARE (SOUTH EAST) LIMITED,11/09/2017,"3,194.04",74037-INDEPENDENT FOSTER CARE-OTH AGENCY PROVISION,EXTERNAL FOSTER CARE PROVISION,Third Party Payments,Revenue
Walsall Council,http://opendatacommunities.org/id/metropolitan-district-council/walsall,WC84-684,30/09/2017,Childrens,CAPSTONE FOSTER CARE (SOUTH EAST) LIMITED,11/09/2017,"3,194.04",74037-INDEPENDENT FOSTER CARE-OTH AGENCY PROVISION,EXTERNAL FOSTER CARE PROVISION,Third Party Payments,Revenue
Walsall Council,http://opendatacommunities.org/id/metropolitan-district-council/walsall,WC84-685,30/09/2017,Adult Social Care,CARE 2 U LIMITED,13/09/2017,"26,779.61",73372-DOMICILIARY CARE,OP PACKAGE/PLACEMENT COSTS,Third Party Payments,Revenue
Walsall Council,http://opendatacommunities.org/id/metropolitan-district-council/walsall,WC84-686,30/09/2017,Childrens,CARE 4 CHILDREN RESIDENTIAL SERVICES LTD,11/09/2017,"6,400.00",74037-INDEPENDENT FOSTER CARE-OTH AGENCY PROVISION,EXTERNAL FOSTER CARE PROVISION,Third Party Payments,Revenue
Walsall Council,http://opendatacommunities.org/id/metropolitan-district-council/walsall,WC84-687,30/09/2017,Adult Social Care,CARE AVENUES LTD,27/09/2017,543.13,73372-DOMICILIARY CARE,OP PACKAGE/PLACEMENT COSTS,Third Party Payments,Revenue
Walsall Council,http://opendatacommunities.org/id/metropolitan-district-council/walsall,WC84-688,30/09/2017,Adult Social Care,CARE AVENUES LTD,22/09/2017,"1,040.00",73372-DOMICILIARY CARE,OP PACKAGE/PLACEMENT COSTS,Third Party Payments,Revenue
Walsall Council,http://opendatacommunities.org/id/metropolitan-district-council/walsall,WC84-689,30/09/2017,Adult Social Care,CARE AVENUES LTD,13/09/2017,"14,729.69",73372-DOMICILIARY CARE,OP PACKAGE/PLACEMENT COSTS,Third Party Payments,Revenue
Walsall Council,http://opendatacommunities.org/id/metropolitan-district-council/walsall,WC84-690,30/09/2017,Adult Social Care,CARE FIRST CARE HOMES LTD,15/09/2017,780.00,73374-SUPPORTED & OTHER ACCOMMODATION,PD PACKAGE/PLACEMENT COSTS,Third Party Payments,Revenue
Walsall Council,http://opendatacommunities.org/id/metropolitan-district-council/walsall,WC84-691,30/09/2017,Childrens,CARE FOR ME HOUSING AND SUPPORT,25/09/2017,"2,600.00",76010-ACCOMMODATION AND RELATED COSTS-ASSISTANCE TO S/S CLIENTS,TRANSITION AND LEAVING CARE,Transfer Payments,Revenue
Walsall Council,http://opendatacommunities.org/id/metropolitan-district-council/walsall,WC84-692,30/09/2017,Childrens,CARE LEAVERS,11/09/2017,"2,345.48",76010-ACCOMMODATION AND RELATED COSTS-ASSISTANCE TO S/S CLIENTS,TRANSITION AND LEAVING CARE,Transfer Payments,Revenue
Walsall Council,http://opendatacommunities.org/id/metropolitan-district-council/walsall,WC84-693,30/09/2017,Childrens,CARE LEAVERS,11/09/2017,"3,259.01",64002-OTHER EXPENSES-EXPENSES,TRANSITION AND LEAVING CARE,Supplies & Services,Revenue
Walsall Council,http://opendatacommunities.org/id/metropolitan-district-council/walsall,WC84-694,30/09/2017,Childrens,CARE LEAVERS,11/09/2017,"4,265.96",74500-CARE LEAVERS MTCE PAYMENTS,TRANSITION AND LEAVING CARE,Third Party Payments,Revenue
Walsall Council,http://opendatacommunities.org/id/metropolitan-district-council/walsall,WC84-695,30/09/2017,Childrens,CARE LEAVERS,11/09/2017,"4,685.17",76400-RESIDENTS PERSONAL EXPENSES-ALLOWANCES TO S/S CLIENTS,TRANSITION AND LEAVING CARE,Transfer Payments,Revenue
Walsall Council,http://opendatacommunities.org/id/metropolitan-district-council/walsall,WC84-696,30/09/2017,Childrens,CARE TODAY CHILDRENS SERVICES,11/09/2017,"12,732.00",74036-EXTERNAL RESIDENTIAL CARE-OTH AGENCY PROVISION,INDEPENDENT RESIDENTIAL HOMES,Third Party Payments,Revenue
Walsall Council,http://opendatacommunities.org/id/metropolitan-district-council/walsall,WC84-697,30/09/2017,Childrens,CARE XY LIMITED,26/09/2017,558.00,63000-PROFESSIONAL FEES AND SERVICES,DIRECTLY COMMISSIONED NURSING SERVICES,Supplies & Services,Revenue
Walsall Council,http://opendatacommunities.org/id/metropolitan-district-council/walsall,WC84-698,30/09/2017,Childrens,CARE XY LIMITED,20/09/2017,968.75,63000-PROFESSIONAL FEES AND SERVICES,DIRECTLY COMMISSIONED NURSING SERVICES,Supplies & Services,Revenue
Walsall Council,http://opendatacommunities.org/id/metropolitan-district-council/walsall,WC84-699,30/09/2017,Adult Social Care,CARE XY LIMITED,21/09/2017,"2,317.25",73025-PROFESSIONAL SERVICES-PRIV CONTRACTOR & OTHER AGENCIES,COMMUNITY INTERMEDIATE CARE,Third Party Payments,Revenue
Walsall Council,http://opendatacommunities.org/id/metropolitan-district-council/walsall,WC84-700,30/09/2017,Adult Social Care,CARE XY LIMITED,21/09/2017,"3,428.75",73025-PROFESSIONAL SERVICES-PRIV CONTRACTOR & OTHER AGENCIES,COMMUNITY INTERMEDIATE CARE,Third Party Payments,Revenue
Walsall Council,http://opendatacommunities.org/id/metropolitan-district-council/walsall,WC84-701,30/09/2017,Adult Social Care,CARE XY LIMITED,15/09/2017,"4,949.75",73025-PROFESSIONAL SERVICES-PRIV CONTRACTOR & OTHER AGENCIES,COMMUNITY INTERMEDIATE CARE,Third Party Payments,Revenue
Walsall Council,http://opendatacommunities.org/id/metropolitan-district-council/walsall,WC84-702,30/09/2017,Adult Social Care,CARE XY LIMITED,15/09/2017,"5,648.50",73025-PROFESSIONAL SERVICES-PRIV CONTRACTOR & OTHER AGENCIES,COMMUNITY INTERMEDIATE CARE,Third Party Payments,Revenue
Walsall Council,http://opendatacommunities.org/id/metropolitan-district-council/walsall,WC84-703,30/09/2017,Childrens,CARE XY LIMITED,26/09/2017,"9,331.00",63000-PROFESSIONAL FEES AND SERVICES,DIRECTLY COMMISSIONED NURSING SERVICES,Supplies & Services,Revenue
Walsall Council,http://opendatacommunities.org/id/metropolitan-district-council/walsall,WC84-704,30/09/2017,Adult Social Care,CARETECH COMMUNITY SERVICE,01/09/2017,"4,436.63",73374-SUPPORTED & OTHER ACCOMMODATION,LD PACKAGE/PLACEMENT COSTS,Third Party Payments,Revenue
Walsall Council,http://opendatacommunities.org/id/metropolitan-district-council/walsall,WC84-705,30/09/2017,Adult Social Care,CAREVIEW SERVICES LTD,14/09/2017,"6,583.37",73373-RESIDENTIAL & NURSING CARE PLACEMENTS,LD PACKAGE/PLACEMENT COSTS,Third Party Payments,Revenue
Walsall Council,http://opendatacommunities.org/id/metropolitan-district-council/walsall,WC84-706,30/09/2017,Adult Social Care,CARING CARE LIMITED,13/09/2017,"69,378.67",73372-DOMICILIARY CARE,OP PACKAGE/PLACEMENT COSTS,Third Party Payments,Revenue
Walsall Council,http://opendatacommunities.org/id/metropolitan-district-council/walsall,WC84-707,30/09/2017,Adult Social Care,CARING HANDS LIMITED,13/09/2017,"38,057.14",73372-DOMICILIARY CARE,OP PACKAGE/PLACEMENT COSTS,Third Party Payments,Revenue
Walsall Council,http://opendatacommunities.org/id/metropolitan-district-council/walsall,WC84-708,30/09/2017,Childrens,REDACTED,25/09/2017,"1,344.00",66505-OTHER-GRANTS TO OTHER ORGS,EARLY YEARS - 3 YR OLDS,Third Party Payments,Revenue
Walsall Council,http://opendatacommunities.org/id/metropolitan-district-council/walsall,WC84-709,30/09/2017,Adult Social Care,REDACTED,11/09/2017,"1,658.80",76422-DIRECT PAYMENTS TO SOCIAL SERVICES CLIENTS,PD PACKAGE/PLACEMENT COSTS,Transfer Payments,Revenue
Walsall Council,http://opendatacommunities.org/id/metropolitan-district-council/walsall,WC84-710,30/09/2017,Adult Social Care,REDACTED,11/09/2017,562.50,76422-DIRECT PAYMENTS TO SOCIAL SERVICES CLIENTS,PD PACKAGE/PLACEMENT COSTS,Transfer Payments,Revenue
Walsall Council,http://opendatacommunities.org/id/metropolitan-district-council/walsall,WC84-711,30/09/2017,Adult Social Care,REDACTED,18/09/2017,"1,637.40",73374-SUPPORTED & OTHER ACCOMMODATION,LD PACKAGE/PLACEMENT COSTS,Third Party Payments,Revenue
Walsall Council,http://opendatacommunities.org/id/metropolitan-district-council/walsall,WC84-712,30/09/2017,Adult Social Care,REDACTED,18/09/2017,"1,637.40",73374-SUPPORTED & OTHER ACCOMMODATION,LD PACKAGE/PLACEMENT COSTS,Third Party Payments,Revenue
Walsall Council,http://opendatacommunities.org/id/metropolitan-district-council/walsall,WC84-713,30/09/2017,Childrens,REDACTED,11/09/2017,9.24,60006-NEW-FURNITURE & EQUIPMENT,INTERNAL FOSTER CARE PROVISION,Supplies & Services,Revenue
Walsall Council,http://opendatacommunities.org/id/metropolitan-district-council/walsall,WC84-714,30/09/2017,Childrens,REDACTED,11/09/2017,473.00,74510-RESIDENTS ORDERS,ADOPTION ALLOWANCES,Third Party Payments,Revenue
Walsall Council,http://opendatacommunities.org/id/metropolitan-district-council/walsall,WC84-715,30/09/2017,Childrens,REDACTED,11/09/2017,530.96,74508-INTERNAL FOSTER CARERS-CARER FEES,INTERNAL FOSTER CARE PROVISION,Transfer Payments,Revenue
Walsall Council,http://opendatacommunities.org/id/metropolitan-district-council/walsall,WC84-716,30/09/2017,Childrens,CAROLE BROOKS ASSOCIATES LIMITED,14/09/2017,"26,908.42",63102-CONSULTANTS FEES - CORPORATE,GENERAL MANAGEMENT SUPPORT (INC LEGAL),Supplies & Services,Revenue
Walsall Council,http://opendatacommunities.org/id/metropolitan-district-council/walsall,WC84-717,30/09/2017,Childrens,REDACTED,25/09/2017,361.12,74509-SPECIAL GUARDIANSHIP ORDERS,ADOPTION ALLOWANCES,Transfer Payments,Revenue
Walsall Council,http://opendatacommunities.org/id/metropolitan-district-council/walsall,WC84-718,30/09/2017,Economy & Environment,CARWOOD MOTOR UNITS LIMITED,19/09/2017,426.07,73025-PROFESSIONAL SERVICES-PRIV CONTRACTOR & OTHER AGENCIES,FLEET,Third Party Payments,Revenue
Walsall Council,http://opendatacommunities.org/id/metropolitan-district-council/walsall,WC84-719,30/09/2017,Adult Social Care,CAS LEARNING DISABILITES MIDLANDS LIMITED,18/09/2017,"11,192.55",73375-IN PATIENT BEDS,LD PACKAGE/PLACEMENT COSTS,Third Party Payments,Revenue
Walsall Council,http://opendatacommunities.org/id/metropolitan-district-council/walsall,WC84-720,30/09/2017,Adult Social Care,CATHEDRAL LEASING LTD,25/09/2017,389.91,60008-MAINTENANCE-FURNITURE & EQUIPMENT,GOSCOTE,Supplies & Services,Revenue
Walsall Council,http://opendatacommunities.org/id/metropolitan-district-council/walsall,WC84-721,30/09/2017,Adult Social Care,REDACTED,11/09/2017,816.75,76422-DIRECT PAYMENTS TO SOCIAL SERVICES CLIENTS,LD PACKAGE/PLACEMENT COSTS,Transfer Payments,Revenue
Walsall Council,http://opendatacommunities.org/id/metropolitan-district-council/walsall,WC84-722,30/09/2017,Adult Social Care,REDACTED,11/09/2017,"1,350.00",76422-DIRECT PAYMENTS TO SOCIAL SERVICES CLIENTS,MH COMMISSIONING,Transfer Payments,Revenue
Walsall Council,http://opendatacommunities.org/id/metropolitan-district-council/walsall,WC84-723,30/09/2017,Childrens,REDACTED,25/09/2017,425.08,74009-ADOPTION ALLOWANCE,ADOPTION ALLOWANCES,Transfer Payments,Revenue
Walsall Council,http://opendatacommunities.org/id/metropolitan-district-council/walsall,WC84-724,30/09/2017,Adult Social Care,REDACTED,11/09/2017,405.00,76422-DIRECT PAYMENTS TO SOCIAL SERVICES CLIENTS,LD PACKAGE/PLACEMENT COSTS,Transfer Payments,Revenue
Walsall Council,http://opendatacommunities.org/id/metropolitan-district-council/walsall,WC84-725,30/09/2017,Childrens,REDACTED,11/09/2017,"1,267.83",76422-DIRECT PAYMENTS TO SOCIAL SERVICES CLIENTS,FAMILY SUPPORT - DIRECT PAYMENTS,Transfer Payments,Revenue
Walsall Council,http://opendatacommunities.org/id/metropolitan-district-council/walsall,WC84-726,30/09/2017,Childrens,REDACTED,25/09/2017,425.08,74510-RESIDENTS ORDERS,ADOPTION ALLOWANCES,Third Party Payments,Revenue
Walsall Council,http://opendatacommunities.org/id/metropolitan-district-council/walsall,WC84-727,30/09/2017,Adult Social Care,REDACTED,11/09/2017,758.10,76422-DIRECT PAYMENTS TO SOCIAL SERVICES CLIENTS,OP PACKAGE/PLACEMENT COSTS,Transfer Payments,Revenue
Walsall Council,http://opendatacommunities.org/id/metropolitan-district-council/walsall,WC84-728,30/09/2017,Adult Social Care,CEDER LODGE NURSING HOME,14/09/2017,"3,545.48",73373-RESIDENTIAL & NURSING CARE PLACEMENTS,OP PACKAGE/PLACEMENT COSTS,Third Party Payments,Revenue
Walsall Council,http://opendatacommunities.org/id/metropolitan-district-council/walsall,WC84-729,30/09/2017,Childrens,REDACTED,11/09/2017,9.24,60006-NEW-FURNITURE & EQUIPMENT,INTERNAL FOSTER CARE PROVISION,Supplies & Services,Revenue
Walsall Council,http://opendatacommunities.org/id/metropolitan-district-council/walsall,WC84-730,30/09/2017,Childrens,REDACTED,11/09/2017,345.24,74508-INTERNAL FOSTER CARERS-CARER FEES,INTERNAL FOSTER CARE PROVISION,Transfer Payments,Revenue
Walsall Council,http://opendatacommunities.org/id/metropolitan-district-council/walsall,WC84-731,30/09/2017,Childrens,REDACTED,11/09/2017,571.44,74501-MAINTENANCE ALLOWANCE-FOSTER CARERS,INTERNAL FOSTER CARE PROVISION,Transfer Payments,Revenue
Walsall Council,http://opendatacommunities.org/id/metropolitan-district-council/walsall,WC84-732,30/09/2017,Economy & Environment,CERTAS ENERGY UK LIMITED,01/09/2017,694.95,50301-FUEL-TRANSPORT RUN COSTS,FUEL,Transport,Revenue
Walsall Council,http://opendatacommunities.org/id/metropolitan-district-council/walsall,WC84-733,30/09/2017,Economy & Environment,CERTAS ENERGY UK LIMITED,14/09/2017,697.04,50301-FUEL-TRANSPORT RUN COSTS,FUEL,Transport,Revenue
Walsall Council,http://opendatacommunities.org/id/metropolitan-district-council/walsall,WC84-734,30/09/2017,Economy & Environment,CERTAS ENERGY UK LIMITED,14/09/2017,"1,384.90",50301-FUEL-TRANSPORT RUN COSTS,FUEL STOCK ACCOUNT,Transport,Revenue
Walsall Council,http://opendatacommunities.org/id/metropolitan-district-council/walsall,WC84-735,30/09/2017,Economy & Environment,CERTAS ENERGY UK LIMITED,14/09/2017,"13,943.68",50301-FUEL-TRANSPORT RUN COSTS,FUEL STOCK ACCOUNT,Transport,Revenue
Walsall Council,http://opendatacommunities.org/id/metropolitan-district-council/walsall,WC84-736,30/09/2017,Economy & Environment,CERTAS ENERGY UK LIMITED,01/09/2017,"18,628.99",50301-FUEL-TRANSPORT RUN COSTS,FUEL STOCK ACCOUNT,Transport,Revenue
Walsall Council,http://opendatacommunities.org/id/metropolitan-district-council/walsall,WC84-737,30/09/2017,Economy & Environment,CERTAS ENERGY UK LIMITED,19/09/2017,"18,842.00",50301-FUEL-TRANSPORT RUN COSTS,FUEL STOCK ACCOUNT,Transport,Revenue
Walsall Council,http://opendatacommunities.org/id/metropolitan-district-council/walsall,WC84-738,30/09/2017,Childrens,CF CORPORATE FINANCE LTD,25/09/2017,221.22,60009-LEASING/HIRE/RENTAL-EQUIPMENT,LOCALITY FAMILY SUPPORT-NORTH,Supplies & Services,Revenue
Walsall Council,http://opendatacommunities.org/id/metropolitan-district-council/walsall,WC84-739,30/09/2017,Adult Social Care,REDACTED,11/09/2017,405.00,76422-DIRECT PAYMENTS TO SOCIAL SERVICES CLIENTS,LD PACKAGE/PLACEMENT COSTS,Transfer Payments,Revenue
Walsall Council,http://opendatacommunities.org/id/metropolitan-district-council/walsall,WC84-740,30/09/2017,Adult Social Care,REDACTED,11/09/2017,"1,660.25",76422-DIRECT PAYMENTS TO SOCIAL SERVICES CLIENTS,LD PACKAGE/PLACEMENT COSTS,Transfer Payments,Revenue
Walsall Council,http://opendatacommunities.org/id/metropolitan-district-council/walsall,WC84-741,30/09/2017,Adult Social Care,REDACTED,11/09/2017,990.00,76422-DIRECT PAYMENTS TO SOCIAL SERVICES CLIENTS,OP PACKAGE/PLACEMENT COSTS,Transfer Payments,Revenue
Walsall Council,http://opendatacommunities.org/id/metropolitan-district-council/walsall,WC84-742,30/09/2017,Childrens,REDACTED,25/09/2017,368.76,74509-SPECIAL GUARDIANSHIP ORDERS,ADOPTION ALLOWANCES,Transfer Payments,Revenue
Walsall Council,http://opendatacommunities.org/id/metropolitan-district-council/walsall,WC84-743,30/09/2017,Childrens,CHARLIE CATERPILLAR'S DAY NURSERY,13/09/2017,640.00,66502-TOP UP FUNDING -GRANTS TO SCHOOLS,INDEPENDENT PROVIDERS - SPECIAL & AP,Third Party Payments,Revenue
Walsall Council,http://opendatacommunities.org/id/metropolitan-district-council/walsall,WC84-744,30/09/2017,Childrens,CHARLIE CATERPILLAR'S DAY NURSERY,05/09/2017,"12,096.00",66505-OTHER-GRANTS TO OTHER ORGS,EARLY YEARS - 3 YR OLDS,Third Party Payments,Revenue
Walsall Council,http://opendatacommunities.org/id/metropolitan-district-council/walsall,WC84-745,30/09/2017,Childrens,CHARLIE CATERPILLAR'S DAY NURSERY,05/09/2017,"12,768.00",66505-OTHER-GRANTS TO OTHER ORGS,EARLY YEARS - 3 YR OLDS,Third Party Payments,Revenue
Walsall Council,http://opendatacommunities.org/id/metropolitan-district-council/walsall,WC84-746,30/09/2017,Childrens,CHARLIE CATERPILLAR'S DAY NURSERY,05/09/2017,"25,529.60",66505-OTHER-GRANTS TO OTHER ORGS,EARLY YEARS - 2 YR OLDS,Third Party Payments,Revenue
Walsall Council,http://opendatacommunities.org/id/metropolitan-district-council/walsall,WC84-747,30/09/2017,Childrens,REDACTED,11/09/2017,323.70,76422-DIRECT PAYMENTS TO SOCIAL SERVICES CLIENTS,FAMILY SUPPORT - DIRECT PAYMENTS,Transfer Payments,Revenue
Walsall Council,http://opendatacommunities.org/id/metropolitan-district-council/walsall,WC84-748,30/09/2017,Adult Social Care,CHARMEND LTD,14/09/2017,443.00,73373-RESIDENTIAL & NURSING CARE PLACEMENTS,OP PACKAGE/PLACEMENT COSTS,Third Party Payments,Revenue
Walsall Council,http://opendatacommunities.org/id/metropolitan-district-council/walsall,WC84-749,30/09/2017,Adult Social Care,CHARMEND LTD,26/09/2017,"1,151.25",73373-RESIDENTIAL & NURSING CARE PLACEMENTS,OP PACKAGE/PLACEMENT COSTS,Third Party Payments,Revenue
Walsall Council,http://opendatacommunities.org/id/metropolitan-district-council/walsall,WC84-750,30/09/2017,Adult Social Care,CHARMEND LTD,26/09/2017,"1,151.25",73373-RESIDENTIAL & NURSING CARE PLACEMENTS,OP PACKAGE/PLACEMENT COSTS,Third Party Payments,Revenue
Walsall Council,http://opendatacommunities.org/id/metropolitan-district-council/walsall,WC84-751,30/09/2017,Adult Social Care,CHARMEND LTD,26/09/2017,"1,505.20",73373-RESIDENTIAL & NURSING CARE PLACEMENTS,OP PACKAGE/PLACEMENT COSTS,Third Party Payments,Revenue
Walsall Council,http://opendatacommunities.org/id/metropolitan-district-council/walsall,WC84-752,30/09/2017,Adult Social Care,CHARMEND LTD,14/09/2017,"1,767.64",73373-RESIDENTIAL & NURSING CARE PLACEMENTS,OP PACKAGE/PLACEMENT COSTS,Third Party Payments,Revenue
Walsall Council,http://opendatacommunities.org/id/metropolitan-district-council/walsall,WC84-753,30/09/2017,Adult Social Care,CHARTER CARE,13/09/2017,"52,790.34",73372-DOMICILIARY CARE,OP PACKAGE/PLACEMENT COSTS,Third Party Payments,Revenue
Walsall Council,http://opendatacommunities.org/id/metropolitan-district-council/walsall,WC84-754,30/09/2017,Adult Social Care,CHASEVIEW CARE HOME,14/09/2017,"2,000.00",73373-RESIDENTIAL & NURSING CARE PLACEMENTS,OP PACKAGE/PLACEMENT COSTS,Third Party Payments,Revenue
Walsall Council,http://opendatacommunities.org/id/metropolitan-district-council/walsall,WC84-755,30/09/2017,Childrens,REDACTED,14/09/2017,672.00,66505-OTHER-GRANTS TO OTHER ORGS,EARLY YEARS - 3 YR OLDS,Third Party Payments,Revenue
Walsall Council,http://opendatacommunities.org/id/metropolitan-district-council/walsall,WC84-756,30/09/2017,Childrens,REDACTED,05/09/2017,"1,760.64",66505-OTHER-GRANTS TO OTHER ORGS,EARLY YEARS - 2 YR OLDS,Third Party Payments,Revenue
Walsall Council,http://opendatacommunities.org/id/metropolitan-district-council/walsall,WC84-757,30/09/2017,Adult Social Care,REDACTED,11/09/2017,"2,037.00",76422-DIRECT PAYMENTS TO SOCIAL SERVICES CLIENTS,LD PACKAGE/PLACEMENT COSTS,Transfer Payments,Revenue
Walsall Council,http://opendatacommunities.org/id/metropolitan-district-council/walsall,WC84-758,30/09/2017,Childrens,CHILDCARE BUREAU LTD,11/09/2017,"2,900.00",74037-INDEPENDENT FOSTER CARE-OTH AGENCY PROVISION,EXTERNAL FOSTER CARE PROVISION,Third Party Payments,Revenue
Walsall Council,http://opendatacommunities.org/id/metropolitan-district-council/walsall,WC84-759,30/09/2017,Childrens,CHILDCARE BUREAU LTD,11/09/2017,"3,100.00",74037-INDEPENDENT FOSTER CARE-OTH AGENCY PROVISION,EXTERNAL FOSTER CARE PROVISION,Third Party Payments,Revenue
Walsall Council,http://opendatacommunities.org/id/metropolitan-district-council/walsall,WC84-760,30/09/2017,Childrens,CHILDREN ALWAYS FIRST LTD,11/09/2017,"1,946.00",74037-INDEPENDENT FOSTER CARE-OTH AGENCY PROVISION,EXTERNAL FOSTER CARE PROVISION,Third Party Payments,Revenue
Walsall Council,http://opendatacommunities.org/id/metropolitan-district-council/walsall,WC84-761,30/09/2017,Childrens,CHILDREN ALWAYS FIRST LTD,11/09/2017,"2,502.00",74037-INDEPENDENT FOSTER CARE-OTH AGENCY PROVISION,EXTERNAL FOSTER CARE PROVISION,Third Party Payments,Revenue
Walsall Council,http://opendatacommunities.org/id/metropolitan-district-council/walsall,WC84-762,30/09/2017,Childrens,CHILDREN ALWAYS FIRST LTD,11/09/2017,"2,566.64",74037-INDEPENDENT FOSTER CARE-OTH AGENCY PROVISION,EXTERNAL FOSTER CARE PROVISION,Third Party Payments,Revenue
Walsall Council,http://opendatacommunities.org/id/metropolitan-district-council/walsall,WC84-763,30/09/2017,Childrens,CHILDREN ALWAYS FIRST LTD,11/09/2017,"2,646.00",74037-INDEPENDENT FOSTER CARE-OTH AGENCY PROVISION,EXTERNAL FOSTER CARE PROVISION,Third Party Payments,Revenue
